Body Name ,Purpose of Expenditure,Directorate,Dr/Cr,Gross Amount,Beneficiary,Transaction Date
Nottinghamshire County Council ,Teaching Equipment,"Children, Families & Cultural Services ",Debit,2.35,b  q 1241,24/04/2017
Nottinghamshire County Council ,Teaching Equipment,"Children, Families & Cultural Services ",Debit,14.85,b  q 1241,24/04/2017
Nottinghamshire County Council ,Teaching Equipment,"Children, Families & Cultural Services ",Debit,2.35,b  q 1241,24/04/2017
Nottinghamshire County Council ,Teaching Equipment,"Children, Families & Cultural Services ",Debit,8.67,b  q 1241,24/04/2017
Nottinghamshire County Council ,Teaching Equipment,"Children, Families & Cultural Services ",Debit,15.94,b  q 1241,24/04/2017
Nottinghamshire County Council ,Teaching Equipment,"Children, Families & Cultural Services ",Debit,14.85,b  q 1241,24/04/2017
Nottinghamshire County Council ,Teaching Equipment,"Children, Families & Cultural Services ",Debit,1,b  q 1241,17/04/2017
Nottinghamshire County Council ,Teaching Equipment,"Children, Families & Cultural Services ",Debit,6.5,b  q 1241,17/04/2017
Nottinghamshire County Council ,Teaching Equipment,"Children, Families & Cultural Services ",Debit,14.96,b  q 1241,17/04/2017
Nottinghamshire County Council ,Teaching Equipment,"Children, Families & Cultural Services ",Debit,14.94,amazon uk marketplace,03/05/2017
Nottinghamshire County Council ,Teaching Equipment,"Children, Families & Cultural Services ",Debit,17.74,amazon uk marketplace,03/05/2017
Nottinghamshire County Council ,Teaching Equipment,"Children, Families & Cultural Services ",Debit,9.98,amazon uk marketplace,03/05/2017
Nottinghamshire County Council ,Teaching Equipment,"Children, Families & Cultural Services ",Debit,6.46,amazon uk marketplace,03/05/2017
Nottinghamshire County Council ,Teaching Equipment,"Children, Families & Cultural Services ",Debit,9.58,amazon uk marketplace,02/05/2017
Nottinghamshire County Council ,Provisions,"Children, Families & Cultural Services ",Debit,204.14,tesco stores 3378,02/05/2017
Nottinghamshire County Council ,Provisions,"Children, Families & Cultural Services ",Debit,109.75,tesco stores 3378,24/04/2017
Nottinghamshire County Council ,Provisions,"Children, Families & Cultural Services ",Debit,153.13,tesco stores 3378,19/04/2017
Nottinghamshire County Council ,Provisions,"Children, Families & Cultural Services ",Debit,65.07,tesco stores 3378,06/04/2017
Nottinghamshire County Council ,Building Maintenance,"Children, Families & Cultural Services ",Debit,17.74,amazon uk marketplace,31/05/2017
Nottinghamshire County Council ,Provisions,"Children, Families & Cultural Services ",Debit,214,tesco stores 3378,30/05/2017
Nottinghamshire County Council ,Provisions,"Children, Families & Cultural Services ",Debit,7,tesco delivery saver1,28/05/2017
Nottinghamshire County Council ,Provisions,"Children, Families & Cultural Services ",Debit,105.06,tesco stores 3378,26/05/2017
Nottinghamshire County Council ,Provisions,"Children, Families & Cultural Services ",Debit,74.91,tesco stores 3378,22/05/2017
Nottinghamshire County Council ,Provisions,"Children, Families & Cultural Services ",Debit,107.22,tesco stores 3378,15/05/2017
Nottinghamshire County Council ,Provisions,"Children, Families & Cultural Services ",Debit,16,tesco store 2571,09/05/2017
Nottinghamshire County Council ,Provisions,"Children, Families & Cultural Services ",Debit,105.82,tesco stores 3378,08/05/2017
Nottinghamshire County Council ,Provisions,"Children, Families & Cultural Services ",Debit,129.43,tesco stores 3378,04/05/2017
Nottinghamshire County Council ,Office / General Equipment,"Children, Families & Cultural Services ",Debit,7,tesco delivery saver2,28/06/2017
Nottinghamshire County Council ,Provisions,"Children, Families & Cultural Services ",Debit,111.46,tesco stores 3378,26/06/2017
Nottinghamshire County Council ,Provisions,"Children, Families & Cultural Services ",Debit,88.98,tesco stores 3378,19/06/2017
Nottinghamshire County Council ,Provisions,"Children, Families & Cultural Services ",Debit,92.8,tesco stores 3378,14/06/2017
Nottinghamshire County Council ,Provisions,"Children, Families & Cultural Services ",Debit,108.51,tesco stores 3378,12/06/2017
Nottinghamshire County Council ,Provisions,"Children, Families & Cultural Services ",Debit,101.38,tesco stores 3378,05/06/2017
Nottinghamshire County Council ,Teaching Equipment,"Children, Families & Cultural Services ",Credit,-14.85,b  q 1241,28/04/2017
Nottinghamshire County Council ,Teaching Equipment,"Children, Families & Cultural Services ",Credit,-2.35,b  q 1241,28/04/2017
Nottinghamshire County Council ,Teaching Equipment,"Children, Families & Cultural Services ",Credit,-2.35,b  q 1241,28/04/2017
Nottinghamshire County Council ,Teaching Equipment,"Children, Families & Cultural Services ",Credit,-14.85,b  q 1241,28/04/2017
Nottinghamshire County Council ,Teaching Equipment,"Children, Families & Cultural Services ",Debit,1.88,amazon uk marketplace,04/05/2017
Nottinghamshire County Council ,Books - General,"Children, Families & Cultural Services ",Debit,7.98,amazon uk retail amazon.,07/05/2017
Nottinghamshire County Council ,Books - General,"Children, Families & Cultural Services ",Debit,43,field-studies,11/05/2017
Nottinghamshire County Council ,Cleaning Materials,"Children, Families & Cultural Services ",Debit,24,go outdoors,15/05/2017
Nottinghamshire County Council ,Teaching Equipment,"Children, Families & Cultural Services ",Debit,5.98,sainsburys s/mkt,16/05/2017
Nottinghamshire County Council ,Books - General,"Children, Families & Cultural Services ",Debit,3.72,amazon uk marketplace,22/05/2017
Nottinghamshire County Council ,Teaching Equipment,"Children, Families & Cultural Services ",Debit,3.72,b  q 1241,20/05/2017
Nottinghamshire County Council ,Teaching Equipment,"Children, Families & Cultural Services ",Debit,3.38,b  q 1241,20/05/2017
Nottinghamshire County Council ,Teaching Equipment,"Children, Families & Cultural Services ",Debit,3.38,b  q 1241,20/05/2017
Nottinghamshire County Council ,Teaching Equipment,"Children, Families & Cultural Services ",Debit,3.38,b  q 1241,20/05/2017
Nottinghamshire County Council ,Teaching Equipment,"Children, Families & Cultural Services ",Debit,3.38,b  q 1241,20/05/2017
Nottinghamshire County Council ,Teaching Equipment,"Children, Families & Cultural Services ",Debit,232.8,bpi minster films,01/06/2017
Nottinghamshire County Council ,Teaching Equipment,"Children, Families & Cultural Services ",Debit,48,bpi minster films,01/06/2017
Nottinghamshire County Council ,Teaching Equipment,"Children, Families & Cultural Services ",Debit,5,sainsburys s/mkt,15/06/2017
Nottinghamshire County Council ,Teaching Equipment,"Children, Families & Cultural Services ",Debit,8.96,holland  barrett,17/06/2017
Nottinghamshire County Council ,Teaching Equipment,"Children, Families & Cultural Services ",Debit,131.94,www.tts-groups.co.uk,28/06/2017
Nottinghamshire County Council ,Grounds Maintenance,"Children, Families & Cultural Services ",Debit,79.96,sgc,07/06/2017
Nottinghamshire County Council ,Provisions,"Children, Families & Cultural Services ",Debit,413.87,owen taylor  sons,07/06/2017
Nottinghamshire County Council ,Personal Needs,"Children, Families & Cultural Services ",Debit,20.17,tradeinn,08/06/2017
Nottinghamshire County Council ,Office / General Equipment,"Children, Families & Cultural Services ",Debit,190.33,handi centre bingham,12/06/2017
Nottinghamshire County Council ,Personal Needs,"Children, Families & Cultural Services ",Debit,2.69,amazon uk marketplace,12/06/2017
Nottinghamshire County Council ,Personal Needs,"Children, Families & Cultural Services ",Debit,30.85,asda home shopping,12/06/2017
Nottinghamshire County Council ,Personal Needs,"Children, Families & Cultural Services ",Debit,7.98,amazon.co.uk,13/06/2017
Nottinghamshire County Council ,Cleaning & Domestic Equipment,"Children, Families & Cultural Services ",Debit,24.99,amazon uk marketplace,13/06/2017
Nottinghamshire County Council ,Personal Needs,"Children, Families & Cultural Services ",Debit,21.98,amazon uk marketplace,13/06/2017
Nottinghamshire County Council ,Clothing/Shoes/Uniforms,"Children, Families & Cultural Services ",Debit,14.7,www.schoolwearsolution,14/06/2017
Nottinghamshire County Council ,Personal Needs,"Children, Families & Cultural Services ",Debit,37.5,www.nottingham.climbin,14/06/2017
Nottinghamshire County Council ,Personal Needs,"Children, Families & Cultural Services ",Debit,2.63,amazon.co.uk,13/06/2017
Nottinghamshire County Council ,Personal Needs,"Children, Families & Cultural Services ",Debit,14.94,amazon.co.uk,14/06/2017
Nottinghamshire County Council ,Personal Needs,"Children, Families & Cultural Services ",Credit,-21.98,amz mountain-ark,19/06/2017
Nottinghamshire County Council ,Aids & Appliances,"Children, Families & Cultural Services ",Debit,18.48,amazon uk marketplace,21/06/2017
Nottinghamshire County Council ,Personal Needs,"Children, Families & Cultural Services ",Debit,4.98,amazon uk marketplace,21/06/2017
Nottinghamshire County Council ,Personal Needs,"Children, Families & Cultural Services ",Debit,20.98,amazon uk marketplace,24/06/2017
Nottinghamshire County Council ,Holidays,"Children, Families & Cultural Services ",Debit,437.58,center parcs internet,23/06/2017
Nottinghamshire County Council ,Office / General Equipment,"Children, Families & Cultural Services ",Debit,47.7,amazon uk marketplace,24/06/2017
Nottinghamshire County Council ,Personal Needs,"Children, Families & Cultural Services ",Debit,25.19,www.talkingproducts.com,23/06/2017
Nottinghamshire County Council ,Personal Needs,"Children, Families & Cultural Services ",Debit,29.93,amazon uk retail,26/06/2017
Nottinghamshire County Council ,Personal Needs,"Children, Families & Cultural Services ",Debit,34.32,asda home shopping,26/06/2017
Nottinghamshire County Council ,Personal Needs,"Children, Families & Cultural Services ",Debit,7.55,amazon uk marketplace,29/06/2017
Nottinghamshire County Council ,Clothing/Shoes/Uniforms,"Children, Families & Cultural Services ",Debit,73,paypal  granthamclo,29/06/2017
Nottinghamshire County Council ,Personal Needs,"Children, Families & Cultural Services ",Debit,21.76,amazon uk retail,29/06/2017
Nottinghamshire County Council ,Personal Needs,"Children, Families & Cultural Services ",Debit,9.97,amazon uk retail,29/06/2017
Nottinghamshire County Council ,Personal Needs,"Children, Families & Cultural Services ",Debit,3.26,amazon uk marketplace,07/05/2017
Nottinghamshire County Council ,Personal Needs,"Children, Families & Cultural Services ",Debit,4.89,amazon uk marketplace,07/05/2017
Nottinghamshire County Council ,Office / General Equipment,"Children, Families & Cultural Services ",Debit,81,product support ag,04/05/2017
Nottinghamshire County Council ,Personal Needs,"Children, Families & Cultural Services ",Debit,49.82,amazon uk marketplace,07/05/2017
Nottinghamshire County Council ,Personal Needs,"Children, Families & Cultural Services ",Debit,3.64,amazon uk marketplace,05/05/2017
Nottinghamshire County Council ,Personal Needs,"Children, Families & Cultural Services ",Debit,4.48,amazon uk marketplace,09/05/2017
Nottinghamshire County Council ,Office / General Equipment,"Children, Families & Cultural Services ",Debit,25.25,amazon uk marketplace,09/05/2017
Nottinghamshire County Council ,Personal Needs,"Children, Families & Cultural Services ",Debit,8.5,amazon uk marketplace,10/05/2017
Nottinghamshire County Council ,Personal Needs,"Children, Families & Cultural Services ",Debit,2.28,amazon uk marketplace,10/05/2017
Nottinghamshire County Council ,Office / General Equipment,"Children, Families & Cultural Services ",Debit,29.99,amazon uk retail amazon.,11/05/2017
Nottinghamshire County Council ,Laundry & Dry Cleaning,"Children, Families & Cultural Services ",Debit,137.9,incchoice,11/05/2017
Nottinghamshire County Council ,Cleaning & Domestic Equipment,"Children, Families & Cultural Services ",Debit,25.13,amazon uk retail amazon.,12/05/2017
Nottinghamshire County Council ,Personal Needs,"Children, Families & Cultural Services ",Debit,150,bouncy kings of leices,15/05/2017
Nottinghamshire County Council ,Personal Needs,"Children, Families & Cultural Services ",Debit,54.88,asda home shopping,17/05/2017
Nottinghamshire County Council ,Personal Needs,"Children, Families & Cultural Services ",Debit,32.96,www.esup.co.uk,17/05/2017
Nottinghamshire County Council ,Personal Needs,"Children, Families & Cultural Services ",Debit,33.19,wilko.com,18/05/2017
Nottinghamshire County Council ,Personal Needs,"Children, Families & Cultural Services ",Debit,17.07,amazon uk marketplace,21/05/2017
Nottinghamshire County Council ,Personal Needs,"Children, Families & Cultural Services ",Debit,33.47,amazon uk marketplace,20/05/2017
Nottinghamshire County Council ,Personal Needs,"Children, Families & Cultural Services ",Debit,8.99,amazon uk marketplace,19/05/2017
Nottinghamshire County Council ,Personal Needs,"Children, Families & Cultural Services ",Debit,3.75,amazon uk marketplace,22/05/2017
Nottinghamshire County Council ,Personal Needs,"Children, Families & Cultural Services ",Debit,80.23,blinds 2 go ltd,23/05/2017
Nottinghamshire County Council ,Cleaning & Domestic Equipment,"Children, Families & Cultural Services ",Debit,17.46,www espares co uk,24/05/2017
Nottinghamshire County Council ,Cleaning & Domestic Equipment,"Children, Families & Cultural Services ",Debit,105.54,www.ascateringsupplies,24/05/2017
Nottinghamshire County Council ,Personal Needs,"Children, Families & Cultural Services ",Debit,28.51,amazon uk retail,27/05/2017
Nottinghamshire County Council ,Clothing/Shoes/Uniforms,"Children, Families & Cultural Services ",Debit,17.88,amazon svcs europesar,26/05/2017
Nottinghamshire County Council ,Personal Needs,"Children, Families & Cultural Services ",Debit,22.46,amazon uk retail amazon.,29/05/2017
Nottinghamshire County Council ,Personal Needs,"Children, Families & Cultural Services ",Debit,9.49,amazon uk retail,30/05/2017
Nottinghamshire County Council ,Grounds Maintenance,"Children, Families & Cultural Services ",Debit,113.89,sgc,01/06/2017
Nottinghamshire County Council ,Provisions,"Children, Families & Cultural Services ",Debit,398.29,owen taylor  sons,11/04/2017
Nottinghamshire County Council ,Cleaning & Domestic Equipment,"Children, Families & Cultural Services ",Debit,9.47,amazon uk marketplace,11/04/2017
Nottinghamshire County Council ,Cleaning & Domestic Equipment,"Children, Families & Cultural Services ",Debit,20.61,amazon uk marketplace,11/04/2017
Nottinghamshire County Council ,Cleaning & Domestic Equipment,"Children, Families & Cultural Services ",Debit,19.35,amazon uk marketplace,12/04/2017
Nottinghamshire County Council ,Office / General Equipment,"Children, Families & Cultural Services ",Debit,38.99,amazon uk retail,12/04/2017
Nottinghamshire County Council ,Office / General Equipment,"Children, Families & Cultural Services ",Debit,125,product support ag,11/04/2017
Nottinghamshire County Council ,Cleaning & Domestic Equipment,"Children, Families & Cultural Services ",Debit,20.97,amazon uk marketplace,12/04/2017
Nottinghamshire County Council ,Cleaning & Domestic Equipment,"Children, Families & Cultural Services ",Debit,27.24,amazon uk retail amazon.,12/04/2017
Nottinghamshire County Council ,Stationery,"Children, Families & Cultural Services ",Debit,24.01,amazon uk retail amazon.,12/04/2017
Nottinghamshire County Council ,Personal Needs,"Children, Families & Cultural Services ",Debit,114.55,wilko.com,13/04/2017
Nottinghamshire County Council ,Cleaning & Domestic Equipment,"Children, Families & Cultural Services ",Debit,37.29,www.nisbets.com,18/04/2017
Nottinghamshire County Council ,Cleaning & Domestic Equipment,"Children, Families & Cultural Services ",Debit,27.99,debenhams.com,19/04/2017
Nottinghamshire County Council ,Clothing/Shoes/Uniforms,"Children, Families & Cultural Services ",Debit,75.25,fledglings,19/04/2017
Nottinghamshire County Council ,Cleaning & Domestic Equipment,"Children, Families & Cultural Services ",Debit,51.12,morclean ltd,21/04/2017
Nottinghamshire County Council ,Personal Needs,"Children, Families & Cultural Services ",Credit,-1.9,wilko.com,21/04/2017
Nottinghamshire County Council ,Cleaning & Domestic Equipment,"Children, Families & Cultural Services ",Credit,-2,debenhams.com,24/04/2017
Nottinghamshire County Council ,Personal Needs,"Children, Families & Cultural Services ",Debit,10.89,amazon uk marketplace,25/04/2017
Nottinghamshire County Council ,Personal Needs,"Children, Families & Cultural Services ",Debit,5.31,amazon uk marketplace,26/04/2017
Nottinghamshire County Council ,Personal Needs,"Children, Families & Cultural Services ",Debit,1.31,amazon uk marketplace,26/04/2017
Nottinghamshire County Council ,Personal Needs,"Children, Families & Cultural Services ",Debit,12.98,amazon uk marketplace,26/04/2017
Nottinghamshire County Council ,Personal Needs,"Children, Families & Cultural Services ",Debit,3.07,amazon uk marketplace,26/04/2017
Nottinghamshire County Council ,Personal Needs,"Children, Families & Cultural Services ",Debit,21.18,amazon uk marketplace,27/04/2017
Nottinghamshire County Council ,Personal Needs,"Children, Families & Cultural Services ",Debit,3.04,amazon uk marketplace,27/04/2017
Nottinghamshire County Council ,Personal Needs,"Children, Families & Cultural Services ",Debit,10.44,amazon uk marketplace,27/04/2017
Nottinghamshire County Council ,Personal Needs,"Children, Families & Cultural Services ",Debit,22.46,amazon uk retail,27/04/2017
Nottinghamshire County Council ,Personal Needs,"Children, Families & Cultural Services ",Debit,21.99,amazon uk marketplace,28/04/2017
Nottinghamshire County Council ,Personal Needs,"Children, Families & Cultural Services ",Debit,26.99,amazon uk marketplace,28/04/2017
Nottinghamshire County Council ,Personal Needs,"Children, Families & Cultural Services ",Debit,2.19,amazon uk marketplace,29/04/2017
Nottinghamshire County Council ,Personal Needs,"Children, Families & Cultural Services ",Debit,6.66,amazon uk retail amazon.,28/04/2017
Nottinghamshire County Council ,Personal Needs,"Children, Families & Cultural Services ",Debit,19.94,amazon uk retail,28/04/2017
Nottinghamshire County Council ,Personal Needs,"Children, Families & Cultural Services ",Debit,3.79,amazon uk marketplace,29/04/2017
Nottinghamshire County Council ,Cleaning & Domestic Equipment,"Children, Families & Cultural Services ",Debit,26.04,amazon uk marketplace,28/04/2017
Nottinghamshire County Council ,Personal Needs,"Children, Families & Cultural Services ",Debit,113.92,www.picsesart.co.uk,28/04/2017
Nottinghamshire County Council ,Cleaning & Domestic Equipment,"Children, Families & Cultural Services ",Debit,89.1,tesco direct,28/04/2017
Nottinghamshire County Council ,Personal Needs,"Children, Families & Cultural Services ",Debit,23.77,amazon uk marketplace,01/05/2017
Nottinghamshire County Council ,Provisions,"Children, Families & Cultural Services ",Debit,516.26,owen taylor  sons,03/05/2017
Nottinghamshire County Council ,Personal Needs,"Children, Families & Cultural Services ",Debit,14.95,supercuts mansfield,03/04/2017
Nottinghamshire County Council ,Fire Precaution Equipment,"Children, Families & Cultural Services ",Debit,1,b  m retail,04/04/2017
Nottinghamshire County Council ,Provisions,"Children, Families & Cultural Services ",Debit,44.08,tesco stores 5437,05/04/2017
Nottinghamshire County Council ,Provisions,"Children, Families & Cultural Services ",Debit,49.3,tesco stores 5437,12/04/2017
Nottinghamshire County Council ,Clothing/Shoes/Uniforms,"Children, Families & Cultural Services ",Debit,14,primark,12/04/2017
Nottinghamshire County Council ,Provisions,"Children, Families & Cultural Services ",Debit,9.37,tesco stores 5437,15/04/2017
Nottinghamshire County Council ,Provisions,"Children, Families & Cultural Services ",Debit,55.7,tesco stores 5437,24/04/2017
Nottinghamshire County Council ,Provisions,"Children, Families & Cultural Services ",Debit,53.65,tesco stores 5437,03/05/2017
Nottinghamshire County Council ,Provisions,"Children, Families & Cultural Services ",Debit,40.35,tesco stores 5437,05/05/2017
Nottinghamshire County Council ,Fire Precaution Equipment,"Children, Families & Cultural Services ",Debit,10,asda superstore 04261,18/05/2017
Nottinghamshire County Council ,Provisions,"Children, Families & Cultural Services ",Debit,41.96,tesco stores 5437,02/06/2017
Nottinghamshire County Council ,Clothing/Shoes/Uniforms,"Children, Families & Cultural Services ",Debit,28,tesco stores 5379,02/06/2017
Nottinghamshire County Council ,Clothing/Shoes/Uniforms,"Children, Families & Cultural Services ",Debit,2.5,primark,11/06/2017
Nottinghamshire County Council ,Clothing/Shoes/Uniforms,"Children, Families & Cultural Services ",Debit,50,j d sports 621,16/06/2017
Nottinghamshire County Council ,Clothing/Shoes/Uniforms,"Children, Families & Cultural Services ",Debit,9.53,select - mansfield 2,16/06/2017
Nottinghamshire County Council ,Clothing/Shoes/Uniforms,"Children, Families & Cultural Services ",Debit,19.6,primark,16/06/2017
Nottinghamshire County Council ,Clothing/Shoes/Uniforms,"Children, Families & Cultural Services ",Debit,16,river island 269,16/06/2017
Nottinghamshire County Council ,Provisions,"Children, Families & Cultural Services ",Debit,47.7,tesco stores 5437,19/06/2017
Nottinghamshire County Council ,Personal Needs,"Children, Families & Cultural Services ",Debit,10,nottingham road news,21/06/2017
Nottinghamshire County Council ,Provisions,"Children, Families & Cultural Services ",Debit,64.13,tesco stores 5437,23/06/2017
Nottinghamshire County Council ,Fire Precaution Equipment,"Children, Families & Cultural Services ",Debit,59.5,mansfield aquatics,23/06/2017
Nottinghamshire County Council ,Activities & Support,"Children, Families & Cultural Services ",Debit,13,disclosure  barring,23/05/2017
Nottinghamshire County Council ,Provisions,"Children, Families & Cultural Services ",Debit,2.15,sainsburys s/mkts,01/04/2017
Nottinghamshire County Council ,Fuel - Diesel,"Children, Families & Cultural Services ",Debit,61.73,sainsburys s/mkts,01/04/2017
Nottinghamshire County Council ,Personal Needs,"Children, Families & Cultural Services ",Debit,3.78,mcdonalds,03/04/2017
Nottinghamshire County Council ,Provisions,"Children, Families & Cultural Services ",Debit,50.48,tesco stores 5437,03/04/2017
Nottinghamshire County Council ,Activities & Support,"Children, Families & Cultural Services ",Debit,64.64,asda store ston in as,03/04/2017
Nottinghamshire County Council ,Provisions,"Children, Families & Cultural Services ",Debit,92.28,tesco stores 3378,03/04/2017
Nottinghamshire County Council ,Clients - H & S Equipt,"Children, Families & Cultural Services ",Debit,50,pastdue cred vterminal,27/06/2017
Nottinghamshire County Council ,Aftercare - Equipment,"Children, Families & Cultural Services ",Credit,-84.99,ao retail limited,21/06/2017
Nottinghamshire County Council ,Aftercare Lodging/Hostel,"Children, Families & Cultural Services ",Debit,31.14,p nwkshwd dc,21/06/2017
Nottinghamshire County Council ,Clients - H & S Equipt,"Children, Families & Cultural Services ",Debit,18.39,asda  stores 4201,20/06/2017
Nottinghamshire County Council ,Aftercare - Equipment,"Children, Families & Cultural Services ",Debit,10,asda  stores 4201,20/06/2017
Nottinghamshire County Council ,Aftercare - Equipment,"Children, Families & Cultural Services ",Debit,110,the furniture project,20/06/2017
Nottinghamshire County Council ,Aftercare - Equipment,"Children, Families & Cultural Services ",Debit,340,jrw flooring,16/06/2017
Nottinghamshire County Council ,Aftercare - Equipment,"Children, Families & Cultural Services ",Debit,762.98,ao retail limited,15/06/2017
Nottinghamshire County Council ,Aftercare - Equipment,"Children, Families & Cultural Services ",Debit,199,ex catalogue furniture,15/06/2017
Nottinghamshire County Council ,Aftercare - Equipment,"Children, Families & Cultural Services ",Debit,107,wilko retail limit,15/06/2017
Nottinghamshire County Council ,Aftercare - Equipment,"Children, Families & Cultural Services ",Debit,74.95,the childrens air,15/06/2017
Nottinghamshire County Council ,Clients - H & S Equipt,"Children, Families & Cultural Services ",Debit,5.99,bm retail,14/06/2017
Nottinghamshire County Council ,Aftercare - Equipment,"Children, Families & Cultural Services ",Debit,32.98,argos ltd,06/06/2017
Nottinghamshire County Council ,Aftercare - Equipment,"Children, Families & Cultural Services ",Debit,39.99,b  m retail,06/06/2017
Nottinghamshire County Council ,Aftercare - Equipment,"Children, Families & Cultural Services ",Debit,222,jrw flooring,24/05/2017
Nottinghamshire County Council ,Aftercare - Equipment,"Children, Families & Cultural Services ",Debit,61,asda  stores 4201,24/05/2017
Nottinghamshire County Council ,Section 17,"Children, Families & Cultural Services ",Debit,14.94,trainline,24/05/2017
Nottinghamshire County Council ,Clients - H & S Equipt,"Children, Families & Cultural Services ",Debit,4.94,toby carvery,18/05/2017
Nottinghamshire County Council ,Clients - H & S Equipt,"Children, Families & Cultural Services ",Debit,8.13,wm morrison store,17/05/2017
Nottinghamshire County Council ,Aftercare - Equipment,"Children, Families & Cultural Services ",Debit,147,tvlicensing.co.uk,11/05/2017
Nottinghamshire County Council ,Aftercare - Equipment,"Children, Families & Cultural Services ",Debit,574.97,currys online,11/05/2017
Nottinghamshire County Council ,Clients - H & S Equipt,"Children, Families & Cultural Services ",Debit,149,ex catalogue furniture,10/05/2017
Nottinghamshire County Council ,Aftercare - Equipment,"Children, Families & Cultural Services ",Debit,93.46,bm retail,10/05/2017
Nottinghamshire County Council ,Aftercare - Equipment,"Children, Families & Cultural Services ",Debit,130,the furniture project,10/05/2017
Nottinghamshire County Council ,Aftercare - Equipment,"Children, Families & Cultural Services ",Debit,149.99,currys,10/05/2017
Nottinghamshire County Council ,Provisions,"Children, Families & Cultural Services ",Debit,3.65,tesco stores 5437,30/05/2017
Nottinghamshire County Council ,Provisions,"Children, Families & Cultural Services ",Debit,11.46,mcdonalds,30/05/2017
Nottinghamshire County Council ,Provisions,"Children, Families & Cultural Services ",Debit,99.39,tesco stores 5437,29/05/2017
Nottinghamshire County Council ,Provisions,"Children, Families & Cultural Services ",Debit,11.2,tesco stores 5437,25/05/2017
Nottinghamshire County Council ,Personal Needs,"Children, Families & Cultural Services ",Debit,7.4,boots 0012,25/05/2017
Nottinghamshire County Council ,Clothing/Shoes/Uniforms,"Children, Families & Cultural Services ",Debit,48.05,j d sports 621,25/05/2017
Nottinghamshire County Council ,Office / General Equipment,"Children, Families & Cultural Services ",Debit,14.99,tesco stores 5437,25/05/2017
Nottinghamshire County Council ,Personal Needs,"Children, Families & Cultural Services ",Debit,7.99,amazon uk prime amzn.co.,23/05/2017
Nottinghamshire County Council ,Provisions,"Children, Families & Cultural Services ",Debit,10.68,mcdonalds,12/05/2017
Nottinghamshire County Council ,Provisions,"Children, Families & Cultural Services ",Debit,87.78,aldi,24/04/2017
Nottinghamshire County Council ,Provisions,"Children, Families & Cultural Services ",Debit,15.95,sainsburys s/mkts,24/04/2017
Nottinghamshire County Council ,Personal Needs,"Children, Families & Cultural Services ",Debit,8,amazon uk marketplace,23/04/2017
Nottinghamshire County Council ,Provisions,"Children, Families & Cultural Services ",Debit,4.17,aldi,23/04/2017
Nottinghamshire County Council ,Provisions,"Children, Families & Cultural Services ",Debit,6.37,bargain booze,17/04/2017
Nottinghamshire County Council ,Provisions,"Children, Families & Cultural Services ",Debit,97.72,wm morrisons plc,09/04/2017
Nottinghamshire County Council ,Personal Needs,"Children, Families & Cultural Services ",Debit,16,i jump trampoline park,09/04/2017
Nottinghamshire County Council ,Personal Needs,"Children, Families & Cultural Services ",Debit,3.4,the towers,06/04/2017
Nottinghamshire County Council ,Office / General Equipment,"Children, Families & Cultural Services ",Debit,56.57,wm morrison 023,06/04/2017
Nottinghamshire County Council ,Office / General Equipment,"Children, Families & Cultural Services ",Debit,117.99,ministry of design,04/04/2017
Nottinghamshire County Council ,Personal Needs,"Children, Families & Cultural Services ",Debit,7.99,amazon prime,23/06/2017
Nottinghamshire County Council ,Personal Needs,"Children, Families & Cultural Services ",Debit,2.49,s  r newsagents 15851,19/06/2017
Nottinghamshire County Council ,Office / General Equipment,"Children, Families & Cultural Services ",Debit,1.78,b  m retail,19/06/2017
Nottinghamshire County Council ,Provisions,"Children, Families & Cultural Services ",Debit,15.55,sainsburys s/mkts,19/06/2017
Nottinghamshire County Council ,Provisions,"Children, Families & Cultural Services ",Debit,71.17,aldi,19/06/2017
Nottinghamshire County Council ,Office / General Equipment,"Children, Families & Cultural Services ",Debit,6,b  m retail,19/06/2017
Nottinghamshire County Council ,Personal Needs,"Children, Families & Cultural Services ",Debit,6.99,bargain booze,18/06/2017
Nottinghamshire County Council ,Personal Needs,"Children, Families & Cultural Services ",Debit,20,tesco stores 5437,17/06/2017
Nottinghamshire County Council ,Provisions,"Children, Families & Cultural Services ",Debit,6,mcdonalds,17/06/2017
Nottinghamshire County Council ,Personal Needs,"Children, Families & Cultural Services ",Debit,20,i jump trampoline park,13/06/2017
Nottinghamshire County Council ,Provisions,"Children, Families & Cultural Services ",Debit,64.3,aldi,03/06/2017
Nottinghamshire County Council ,Provisions,"Children, Families & Cultural Services ",Debit,4.4,sainsburys s/mkts,03/06/2017
Nottinghamshire County Council ,Other Fee's & Services,"Adult Social Care, Health & Public Protection",Debit,5,gov.uk/dart-charge,02/06/2017
Nottinghamshire County Council ,Other Fee's & Services,"Adult Social Care, Health & Public Protection",Credit,-7.99,amazon uk prime amzn.co.,06/04/2017
Nottinghamshire County Council ,Other Fee's & Services,"Adult Social Care, Health & Public Protection",Debit,5,gov.uk/dart-charge,15/05/2017
Nottinghamshire County Council ,Provisions,"Adult Social Care, Health & Public Protection",Debit,145.19,w m morrisons.com,29/05/2017
Nottinghamshire County Council ,Provisions,"Adult Social Care, Health & Public Protection",Debit,70.03,w m morrisons.com,27/05/2017
Nottinghamshire County Council ,Cleaning Materials,"Adult Social Care, Health & Public Protection",Debit,4.55,w m morrisons.com,24/05/2017
Nottinghamshire County Council ,Provisions,"Adult Social Care, Health & Public Protection",Debit,107.75,w m morrisons.com,24/05/2017
Nottinghamshire County Council ,Cleaning Materials,"Adult Social Care, Health & Public Protection",Debit,16.58,w m morrisons.com,22/05/2017
Nottinghamshire County Council ,Provisions,"Adult Social Care, Health & Public Protection",Debit,101.65,w m morrisons.com,22/05/2017
Nottinghamshire County Council ,Cleaning Materials,"Adult Social Care, Health & Public Protection",Debit,4.02,w m morrisons.com,18/05/2017
Nottinghamshire County Council ,Provisions,"Adult Social Care, Health & Public Protection",Debit,120.65,w m morrisons.com,18/05/2017
Nottinghamshire County Council ,Catering Equipment,"Adult Social Care, Health & Public Protection",Debit,62.9,amazon uk marketplace,17/05/2017
Nottinghamshire County Council ,Cleaning Materials,"Adult Social Care, Health & Public Protection",Debit,12.67,w m morrisons.com,15/05/2017
Nottinghamshire County Council ,Provisions,"Adult Social Care, Health & Public Protection",Debit,102.64,w m morrisons.com,15/05/2017
Nottinghamshire County Council ,Provisions,"Adult Social Care, Health & Public Protection",Credit,-9.09,w m morrisons.com,11/05/2017
Nottinghamshire County Council ,Provisions,"Adult Social Care, Health & Public Protection",Debit,125.57,w m morrisons.com,11/05/2017
Nottinghamshire County Council ,Provisions,"Adult Social Care, Health & Public Protection",Debit,7,w m morrisons.com,09/05/2017
Nottinghamshire County Council ,Provisions,"Adult Social Care, Health & Public Protection",Debit,99.48,w m morrisons.com,08/05/2017
Nottinghamshire County Council ,Cleaning Materials,"Adult Social Care, Health & Public Protection",Debit,8.17,w m morrisons.com,04/05/2017
Nottinghamshire County Council ,Provisions,"Adult Social Care, Health & Public Protection",Debit,60.83,w m morrisons.com,04/05/2017
Nottinghamshire County Council ,Provisions,"Adult Social Care, Health & Public Protection",Debit,68.84,w m morrisons.com,01/05/2017
Nottinghamshire County Council ,Cleaning Materials,"Adult Social Care, Health & Public Protection",Debit,10.96,w m morrisons.com,01/05/2017
Nottinghamshire County Council ,Provisions,"Adult Social Care, Health & Public Protection",Debit,106.12,w m morrisons.com,27/04/2017
Nottinghamshire County Council ,Cleaning Materials,"Adult Social Care, Health & Public Protection",Debit,5.12,w m morrisons.com,24/04/2017
Nottinghamshire County Council ,Provisions,"Adult Social Care, Health & Public Protection",Debit,117.93,w m morrisons.com,24/04/2017
Nottinghamshire County Council ,Catering Consumables,"Adult Social Care, Health & Public Protection",Debit,32.98,lakeland.limited,21/04/2017
Nottinghamshire County Council ,Provisions,"Adult Social Care, Health & Public Protection",Debit,16.98,www.drinkstuff.com,23/04/2017
Nottinghamshire County Council ,Cleaning Materials,"Adult Social Care, Health & Public Protection",Debit,23.2,w m morrisons.com,20/04/2017
Nottinghamshire County Council ,Catering Consumables,"Adult Social Care, Health & Public Protection",Debit,10,w m morrisons.com,20/04/2017
Nottinghamshire County Council ,Provisions,"Adult Social Care, Health & Public Protection",Debit,127.3,w m morrisons.com,20/04/2017
Nottinghamshire County Council ,Provisions,"Adult Social Care, Health & Public Protection",Debit,103.72,w m morrisons.com,17/04/2017
Nottinghamshire County Council ,Cleaning Materials,"Adult Social Care, Health & Public Protection",Debit,3,w m morrisons.com,17/04/2017
Nottinghamshire County Council ,Cleaning Materials,"Adult Social Care, Health & Public Protection",Debit,34.23,w m morrisons.com,13/04/2017
Nottinghamshire County Council ,Provisions,"Adult Social Care, Health & Public Protection",Debit,133.67,w m morrisons.com,13/04/2017
Nottinghamshire County Council ,Provisions,"Adult Social Care, Health & Public Protection",Debit,109.09,w m morrisons.com,10/04/2017
Nottinghamshire County Council ,Cleaning Materials,"Adult Social Care, Health & Public Protection",Debit,8,w m morrisons.com,10/04/2017
Nottinghamshire County Council ,Provisions,"Adult Social Care, Health & Public Protection",Debit,132.15,w m morrisons.com,07/04/2017
Nottinghamshire County Council ,Provisions,"Adult Social Care, Health & Public Protection",Debit,7,w m morrisons.com,09/04/2017
Nottinghamshire County Council ,Cleaning Materials,"Adult Social Care, Health & Public Protection",Debit,8.17,w m morrisons.com,29/06/2017
Nottinghamshire County Council ,Provisions,"Adult Social Care, Health & Public Protection",Debit,151.42,w m morrisons.com,29/06/2017
Nottinghamshire County Council ,Cleaning Materials,"Adult Social Care, Health & Public Protection",Debit,21.06,w m morrisons.com,26/06/2017
Nottinghamshire County Council ,Provisions,"Adult Social Care, Health & Public Protection",Debit,61.32,w m morrisons.com,26/06/2017
Nottinghamshire County Council ,Provisions,"Adult Social Care, Health & Public Protection",Debit,49.18,w m morrisons.com,24/06/2017
Nottinghamshire County Council ,Provisions,"Adult Social Care, Health & Public Protection",Debit,47.08,w m morrisons.com,21/06/2017
Nottinghamshire County Council ,Cleaning Materials,"Adult Social Care, Health & Public Protection",Debit,11.6,w m morrisons.com,19/06/2017
Nottinghamshire County Council ,Provisions,"Adult Social Care, Health & Public Protection",Debit,116.36,w m morrisons.com,19/06/2017
Nottinghamshire County Council ,Provisions,"Adult Social Care, Health & Public Protection",Debit,111.6,w m morrisons.com,15/06/2017
Nottinghamshire County Council ,Provisions,"Adult Social Care, Health & Public Protection",Credit,-1.5,w m morrisons.com,14/06/2017
Nottinghamshire County Council ,Provisions,"Adult Social Care, Health & Public Protection",Debit,154.43,w m morrisons.com,12/06/2017
Nottinghamshire County Council ,Provisions,"Adult Social Care, Health & Public Protection",Debit,7,w m morrisons.com,09/06/2017
Nottinghamshire County Council ,Provisions,"Adult Social Care, Health & Public Protection",Debit,95.06,w m morrisons.com,08/06/2017
Nottinghamshire County Council ,Cleaning Materials,"Adult Social Care, Health & Public Protection",Debit,11.03,w m morrisons.com,05/06/2017
Nottinghamshire County Council ,Provisions,"Adult Social Care, Health & Public Protection",Debit,154.22,w m morrisons.com,05/06/2017
Nottinghamshire County Council ,Cleaning Materials,"Adult Social Care, Health & Public Protection",Debit,13.01,w m morrisons.com,02/06/2017
Nottinghamshire County Council ,Provisions,"Adult Social Care, Health & Public Protection",Debit,108.29,w m morrisons.com,02/06/2017
Nottinghamshire County Council ,Provisions,"Adult Social Care, Health & Public Protection",Debit,136.16,w m morrisons.com,03/04/2017
Nottinghamshire County Council ,Provisions,"Children, Families & Cultural Services ",Debit,39.97,currys-worksop 2369,29/06/2017
Nottinghamshire County Council ,Provisions,"Children, Families & Cultural Services ",Debit,8.97,aldi,26/06/2017
Nottinghamshire County Council ,Provisions,"Children, Families & Cultural Services ",Debit,22.69,aldi,26/06/2017
Nottinghamshire County Council ,Provisions,"Children, Families & Cultural Services ",Debit,2.5,asda stores 4517,26/06/2017
Nottinghamshire County Council ,Provisions,"Children, Families & Cultural Services ",Debit,53,asda stores 4517,26/06/2017
Nottinghamshire County Council ,Provisions,"Children, Families & Cultural Services ",Debit,10.8,asda stores 4517,26/06/2017
Nottinghamshire County Council ,Provisions,"Children, Families & Cultural Services ",Debit,7.8,tesco stores-3439,23/06/2017
Nottinghamshire County Council ,Provisions,"Children, Families & Cultural Services ",Debit,16.64,aldi,22/06/2017
Nottinghamshire County Council ,Provisions,"Children, Families & Cultural Services ",Debit,3.16,aldi,22/06/2017
Nottinghamshire County Council ,Provisions,"Children, Families & Cultural Services ",Debit,10.54,aldi,20/06/2017
Nottinghamshire County Council ,Provisions,"Children, Families & Cultural Services ",Debit,20.17,aldi,20/06/2017
Nottinghamshire County Council ,Provisions,"Children, Families & Cultural Services ",Debit,5,asda stores 4517,20/06/2017
Nottinghamshire County Council ,Provisions,"Children, Families & Cultural Services ",Debit,27.33,asda stores 4517,19/06/2017
Nottinghamshire County Council ,Provisions,"Children, Families & Cultural Services ",Debit,15,asda stores 4517,19/06/2017
Nottinghamshire County Council ,Provisions,"Children, Families & Cultural Services ",Debit,4.18,asda stores 4517,16/06/2017
Nottinghamshire County Council ,Provisions,"Children, Families & Cultural Services ",Debit,3.4,aldi,16/06/2017
Nottinghamshire County Council ,Provisions,"Children, Families & Cultural Services ",Debit,5.7,asda stores 4517,15/06/2017
Nottinghamshire County Council ,Provisions,"Children, Families & Cultural Services ",Debit,13.9,tesco store 3439,13/06/2017
Nottinghamshire County Council ,Provisions,"Children, Families & Cultural Services ",Debit,31.88,aldi,12/06/2017
Nottinghamshire County Council ,Provisions,"Children, Families & Cultural Services ",Debit,63.5,asda stores 4517,12/06/2017
Nottinghamshire County Council ,Provisions,"Children, Families & Cultural Services ",Debit,9.09,aldi,09/06/2017
Nottinghamshire County Council ,Provisions,"Children, Families & Cultural Services ",Debit,17.01,bm retail ltd,09/06/2017
Nottinghamshire County Council ,Provisions,"Children, Families & Cultural Services ",Debit,9.09,poundstretcher 0783,08/06/2017
Nottinghamshire County Council ,Provisions,"Children, Families & Cultural Services ",Debit,10.35,asda stores 4475,08/06/2017
Nottinghamshire County Council ,Provisions,"Children, Families & Cultural Services ",Debit,8.45,home bargains worksop,08/06/2017
Nottinghamshire County Council ,Provisions,"Children, Families & Cultural Services ",Debit,8,poundworld,06/06/2017
Nottinghamshire County Council ,Provisions,"Children, Families & Cultural Services ",Debit,3.16,aldi,05/06/2017
Nottinghamshire County Council ,Provisions,"Children, Families & Cultural Services ",Debit,23.5,aldi,05/06/2017
Nottinghamshire County Council ,Provisions,"Children, Families & Cultural Services ",Debit,43.4,asda stores 4517,05/06/2017
Nottinghamshire County Council ,Provisions,"Children, Families & Cultural Services ",Debit,1,b  q 1098,25/04/2017
Nottinghamshire County Council ,Provisions,"Children, Families & Cultural Services ",Debit,1,b  q 1098,25/04/2017
Nottinghamshire County Council ,Provisions,"Children, Families & Cultural Services ",Debit,4.96,tesco store 3439,02/05/2017
Nottinghamshire County Council ,Provisions,"Children, Families & Cultural Services ",Debit,19,tesco store 3439,02/05/2017
Nottinghamshire County Council ,Provisions,"Children, Families & Cultural Services ",Debit,12.74,tesco store 3439,02/05/2017
Nottinghamshire County Council ,Provisions,"Children, Families & Cultural Services ",Debit,13.68,tesco store 3439,02/05/2017
Nottinghamshire County Council ,Provisions,"Children, Families & Cultural Services ",Debit,15.83,asda stores 4517,28/04/2017
Nottinghamshire County Council ,Provisions,"Children, Families & Cultural Services ",Debit,1,b  q 1098,25/04/2017
Nottinghamshire County Council ,Provisions,"Children, Families & Cultural Services ",Debit,1,b  q 1098,25/04/2017
Nottinghamshire County Council ,Provisions,"Children, Families & Cultural Services ",Debit,2,b  q 1098,25/04/2017
Nottinghamshire County Council ,Provisions,"Children, Families & Cultural Services ",Debit,2.8,asda stores 4517,25/04/2017
Nottinghamshire County Council ,Provisions,"Children, Families & Cultural Services ",Debit,2,tesco stores-3439,25/04/2017
Nottinghamshire County Council ,Provisions,"Children, Families & Cultural Services ",Debit,17,tesco stores-3439,25/04/2017
Nottinghamshire County Council ,Provisions,"Children, Families & Cultural Services ",Debit,8.5,poundworld,25/04/2017
Nottinghamshire County Council ,Provisions,"Children, Families & Cultural Services ",Debit,3,asda stores 4517,25/04/2017
Nottinghamshire County Council ,Provisions,"Children, Families & Cultural Services ",Debit,16.5,original factory s,24/04/2017
Nottinghamshire County Council ,Provisions,"Children, Families & Cultural Services ",Debit,24.15,aldi,24/04/2017
Nottinghamshire County Council ,Provisions,"Children, Families & Cultural Services ",Debit,8.03,aldi,21/04/2017
Nottinghamshire County Council ,Provisions,"Children, Families & Cultural Services ",Debit,4,asda stores 4517,20/04/2017
Nottinghamshire County Council ,Provisions,"Children, Families & Cultural Services ",Debit,25,asda stores 4517,20/04/2017
Nottinghamshire County Council ,Provisions,"Children, Families & Cultural Services ",Debit,23.98,wickes,18/04/2017
Nottinghamshire County Council ,Provisions,"Children, Families & Cultural Services ",Debit,36.49,tesco store 3439,18/04/2017
Nottinghamshire County Council ,Provisions,"Children, Families & Cultural Services ",Debit,16.84,tesco store 3439,18/04/2017
Nottinghamshire County Council ,Provisions,"Children, Families & Cultural Services ",Debit,11.45,tesco store 3439,18/04/2017
Nottinghamshire County Council ,Provisions,"Children, Families & Cultural Services ",Debit,9,b  q 1098,09/05/2017
Nottinghamshire County Council ,Provisions,"Children, Families & Cultural Services ",Debit,9,b  q 1098,09/05/2017
Nottinghamshire County Council ,Provisions,"Children, Families & Cultural Services ",Debit,4.2,tesco store 3439,26/05/2017
Nottinghamshire County Council ,Provisions,"Children, Families & Cultural Services ",Debit,16.55,tesco store 3439,25/05/2017
Nottinghamshire County Council ,Provisions,"Children, Families & Cultural Services ",Debit,16.8,tesco store 3439,25/05/2017
Nottinghamshire County Council ,Provisions,"Children, Families & Cultural Services ",Debit,10,original factory s,25/05/2017
Nottinghamshire County Council ,Provisions,"Children, Families & Cultural Services ",Debit,15.75,asda stores 4517,22/05/2017
Nottinghamshire County Council ,Provisions,"Children, Families & Cultural Services ",Debit,21.61,aldi,22/05/2017
Nottinghamshire County Council ,Provisions,"Children, Families & Cultural Services ",Debit,14.49,tesco stores 5437,19/05/2017
Nottinghamshire County Council ,Provisions,"Children, Families & Cultural Services ",Debit,14.18,aldi,19/05/2017
Nottinghamshire County Council ,Provisions,"Children, Families & Cultural Services ",Debit,5.94,asda stores 4517,18/05/2017
Nottinghamshire County Council ,Provisions,"Children, Families & Cultural Services ",Debit,15,poundworld,16/05/2017
Nottinghamshire County Council ,Provisions,"Children, Families & Cultural Services ",Debit,26.9,aldi,15/05/2017
Nottinghamshire County Council ,Provisions,"Children, Families & Cultural Services ",Debit,8,asda stores 4517,15/05/2017
Nottinghamshire County Council ,Provisions,"Children, Families & Cultural Services ",Debit,12.4,asda stores 4517,15/05/2017
Nottinghamshire County Council ,Provisions,"Children, Families & Cultural Services ",Debit,15,asda stores 4517,15/05/2017
Nottinghamshire County Council ,Provisions,"Children, Families & Cultural Services ",Debit,4.5,asda stores 4517,12/05/2017
Nottinghamshire County Council ,Provisions,"Children, Families & Cultural Services ",Debit,7.66,asda stores 4517,12/05/2017
Nottinghamshire County Council ,Provisions,"Children, Families & Cultural Services ",Debit,4.5,asda stores 4517,12/05/2017
Nottinghamshire County Council ,Provisions,"Children, Families & Cultural Services ",Debit,3.4,asda stores 4517,11/05/2017
Nottinghamshire County Council ,Provisions,"Children, Families & Cultural Services ",Debit,5.97,asda stores 4517,11/05/2017
Nottinghamshire County Council ,Provisions,"Children, Families & Cultural Services ",Debit,4.69,ryman,10/05/2017
Nottinghamshire County Council ,Provisions,"Children, Families & Cultural Services ",Debit,7,wilko retail limit,10/05/2017
Nottinghamshire County Council ,Provisions,"Children, Families & Cultural Services ",Debit,45.4,asda stores 4517,08/05/2017
Nottinghamshire County Council ,Provisions,"Children, Families & Cultural Services ",Debit,20.49,asda stores 4517,08/05/2017
Nottinghamshire County Council ,Provisions,"Children, Families & Cultural Services ",Debit,5,asda stores 4517,08/05/2017
Nottinghamshire County Council ,Provisions,"Children, Families & Cultural Services ",Debit,15,original factory s,05/05/2017
Nottinghamshire County Council ,Provisions,"Children, Families & Cultural Services ",Debit,11.05,aldi,05/05/2017
Nottinghamshire County Council ,Provisions,"Children, Families & Cultural Services ",Debit,17.09,aldi,04/05/2017
Nottinghamshire County Council ,Activities & Support,"Children, Families & Cultural Services ",Debit,2.8,asda stores 4474,31/05/2017
Nottinghamshire County Council ,Activities & Support,"Children, Families & Cultural Services ",Debit,4,asda superstore,10/05/2017
Nottinghamshire County Council ,Activities & Support,"Children, Families & Cultural Services ",Debit,3.5,sainsburys superma,21/04/2017
Nottinghamshire County Council ,Activities & Support,"Children, Families & Cultural Services ",Debit,35,sherwood pines cycles,21/04/2017
Nottinghamshire County Council ,Activities & Support,"Children, Families & Cultural Services ",Debit,14.99,b  m retail,02/05/2017
Nottinghamshire County Council ,Activities & Support,"Children, Families & Cultural Services ",Debit,15.33,wh smith,20/04/2017
Nottinghamshire County Council ,Activities & Support,"Children, Families & Cultural Services ",Debit,7,tesco stores 5379,19/04/2017
Nottinghamshire County Council ,Activities & Support,"Children, Families & Cultural Services ",Debit,28.17,amazon uk marketplace,15/04/2017
Nottinghamshire County Council ,Activities & Support,"Children, Families & Cultural Services ",Debit,5.3,sainsburys local,15/04/2017
Nottinghamshire County Council ,Activities & Support,"Children, Families & Cultural Services ",Debit,11.72,co-op group 065071,26/05/2017
Nottinghamshire County Council ,Activities & Support,"Children, Families & Cultural Services ",Debit,10,wm morrison 048,27/05/2017
Nottinghamshire County Council ,Activities & Support,"Children, Families & Cultural Services ",Debit,20.9,amazon uk marketplace,19/05/2017
Nottinghamshire County Council ,Activities & Support,"Children, Families & Cultural Services ",Debit,70,mobile solutions,16/05/2017
Nottinghamshire County Council ,Activities & Support,"Children, Families & Cultural Services ",Debit,1.5,sainsburys s/mkts,05/05/2017
Nottinghamshire County Council ,Activities & Support,"Children, Families & Cultural Services ",Debit,6.69,aldi,05/05/2017
Nottinghamshire County Council ,Activities & Support,"Children, Families & Cultural Services ",Debit,40,elc-internet,03/04/2017
Nottinghamshire County Council ,Activities & Support,"Children, Families & Cultural Services ",Debit,21.39,farmfoods limited,06/06/2017
Nottinghamshire County Council ,Activities & Support,"Children, Families & Cultural Services ",Debit,29.39,wm morrison 048,25/05/2017
Nottinghamshire County Council ,Office / General Equipment,"Children, Families & Cultural Services ",Debit,114.9,plastics plus ltd,04/05/2017
Nottinghamshire County Council ,Office / General Equipment,"Children, Families & Cultural Services ",Debit,19.75,www.cromwell.co.uk,10/04/2017
Nottinghamshire County Council ,Provisions,"Children, Families & Cultural Services ",Credit,-151.2,total merchandise,15/06/2017
Nottinghamshire County Council ,Provisions,"Children, Families & Cultural Services ",Debit,250,total merchandise,13/06/2017
Nottinghamshire County Council ,Provisions,"Children, Families & Cultural Services ",Debit,46,total merchandise,13/06/2017
Nottinghamshire County Council ,Provisions,"Children, Families & Cultural Services ",Debit,250,total merchandise,13/06/2017
Nottinghamshire County Council ,Provisions,"Children, Families & Cultural Services ",Debit,6.39,co-op group 010941,05/06/2017
Nottinghamshire County Council ,Stationery,Resources ,Debit,55,paypal,21/06/2017
Nottinghamshire County Council ,Consultants,Resources ,Debit,64.98,flybe.com   ,13/06/2017
Nottinghamshire County Council ,Activities & Support,"Children, Families & Cultural Services ",Debit,33.5,barn farm campsite lim,06/04/2017
Nottinghamshire County Council ,Activities & Support,"Children, Families & Cultural Services ",Debit,48,greenhills park,06/04/2017
Nottinghamshire County Council ,Activities & Support,"Children, Families & Cultural Services ",Debit,48,caravan park,01/06/2017
Nottinghamshire County Council ,Activities & Support,"Children, Families & Cultural Services ",Debit,30,sherwood forest hd,13/05/2017
Nottinghamshire County Council ,Minor Works,"Children, Families & Cultural Services ",Debit,19.99,frank key (notts) ltd,01/06/2017
Nottinghamshire County Council ,Minor Works,"Children, Families & Cultural Services ",Debit,10.2,terratruck distrib,01/06/2017
Nottinghamshire County Council ,Minor Works,"Children, Families & Cultural Services ",Debit,4.98,tesco stores 2702,25/05/2017
Nottinghamshire County Council ,Minor Works,"Children, Families & Cultural Services ",Debit,5.98,wickes bulwell,24/05/2017
Nottinghamshire County Council ,Minor Works,"Children, Families & Cultural Services ",Debit,4.22,tesco stores 2702,23/05/2017
Nottinghamshire County Council ,Minor Works,"Children, Families & Cultural Services ",Debit,5.26,tesco stores 2702,17/05/2017
Nottinghamshire County Council ,Minor Works,"Children, Families & Cultural Services ",Debit,46.24,terratruck distrib,15/05/2017
Nottinghamshire County Council ,Minor Works,"Children, Families & Cultural Services ",Debit,10.47,tesco stores (5378),15/05/2017
Nottinghamshire County Council ,Minor Works,"Children, Families & Cultural Services ",Debit,2.53,tesco stores (5378),11/05/2017
Nottinghamshire County Council ,Minor Works,"Children, Families & Cultural Services ",Debit,2.7,w m morrisons,09/05/2017
Nottinghamshire County Council ,Minor Works,"Children, Families & Cultural Services ",Debit,33.26,frank key (notts) ltd,05/05/2017
Nottinghamshire County Council ,Minor Works,"Children, Families & Cultural Services ",Debit,9.83,tesco stores 2702,04/05/2017
Nottinghamshire County Council ,Minor Works,"Children, Families & Cultural Services ",Debit,5,tesco pfs 4083,04/05/2017
Nottinghamshire County Council ,Minor Works,"Children, Families & Cultural Services ",Debit,50,frank key tool hire lt,04/05/2017
Nottinghamshire County Council ,Minor Works,"Children, Families & Cultural Services ",Credit,-20,frank key tool hire lt,04/05/2017
Nottinghamshire County Council ,Minor Works,"Children, Families & Cultural Services ",Debit,4.62,tesco stores 2702,02/05/2017
Nottinghamshire County Council ,Minor Works,"Children, Families & Cultural Services ",Debit,30,frank key tool hire lt,27/04/2017
Nottinghamshire County Council ,Minor Works,"Children, Families & Cultural Services ",Debit,5.12,tesco stores 2702,27/04/2017
Nottinghamshire County Council ,Minor Works,"Children, Families & Cultural Services ",Debit,5.93,tesco stores (5378),24/04/2017
Nottinghamshire County Council ,Minor Works,"Children, Families & Cultural Services ",Debit,73.2,frank key,20/04/2017
Nottinghamshire County Council ,Minor Works,"Children, Families & Cultural Services ",Credit,-31.2,frank key,20/04/2017
Nottinghamshire County Council ,Minor Works,"Children, Families & Cultural Services ",Debit,7.66,tesco stores 2702,20/04/2017
Nottinghamshire County Council ,Minor Works,"Children, Families & Cultural Services ",Debit,180.64,frank key (notts) ltd,18/04/2017
Nottinghamshire County Council ,Minor Works,"Children, Families & Cultural Services ",Debit,5.72,tesco stores 2702,17/04/2017
Nottinghamshire County Council ,Minor Works,"Children, Families & Cultural Services ",Debit,5.05,tesco stores (5378),11/04/2017
Nottinghamshire County Council ,Minor Works,"Children, Families & Cultural Services ",Debit,157.19,f martin ltd,07/04/2017
Nottinghamshire County Council ,Minor Works,"Children, Families & Cultural Services ",Debit,7.2,lindleys autocentre,06/04/2017
Nottinghamshire County Council ,Minor Works,"Children, Families & Cultural Services ",Debit,15.82,tesco stores 2702,06/04/2017
Nottinghamshire County Council ,Minor Works,"Children, Families & Cultural Services ",Debit,2.99,tp bulwell,09/06/2017
Nottinghamshire County Council ,Minor Works,"Children, Families & Cultural Services ",Debit,29.89,tp bulwell,09/06/2017
Nottinghamshire County Council ,Minor Works,"Children, Families & Cultural Services ",Debit,9.8,screwfix,30/06/2017
Nottinghamshire County Council ,Minor Works,"Children, Families & Cultural Services ",Debit,2.83,tesco stores 5359,29/06/2017
Nottinghamshire County Council ,Minor Works,"Children, Families & Cultural Services ",Debit,4.95,tesco stores 2702,22/06/2017
Nottinghamshire County Council ,Minor Works,"Children, Families & Cultural Services ",Debit,8.27,w m morrisons,20/06/2017
Nottinghamshire County Council ,Minor Works,"Children, Families & Cultural Services ",Debit,9,frank key (notts) ltd,20/06/2017
Nottinghamshire County Council ,Minor Works,"Children, Families & Cultural Services ",Debit,10.82,tesco stores 2702,18/06/2017
Nottinghamshire County Council ,Minor Works,"Children, Families & Cultural Services ",Debit,8.67,tesco stores 2702,15/06/2017
Nottinghamshire County Council ,Minor Works,"Children, Families & Cultural Services ",Debit,5.85,cotgrave service s,13/06/2017
Nottinghamshire County Council ,Minor Works,"Children, Families & Cultural Services ",Debit,5.66,tesco pfs 4083,08/06/2017
Nottinghamshire County Council ,Minor Works,"Children, Families & Cultural Services ",Debit,5.86,tesco stores 2702,08/06/2017
Nottinghamshire County Council ,Minor Works,"Children, Families & Cultural Services ",Debit,5.95,lmp service station ltd,06/06/2017
Nottinghamshire County Council ,Minor Works,"Children, Families & Cultural Services ",Debit,4.42,tesco stores 2702,05/06/2017
Nottinghamshire County Council ,Minor Works,"Children, Families & Cultural Services ",Debit,41.53,homebase ltd 088,03/04/2017
Nottinghamshire County Council ,Provisions,"Children, Families & Cultural Services ",Debit,6.48,mcdonalds,25/06/2017
Nottinghamshire County Council ,Personal Needs,"Children, Families & Cultural Services ",Debit,4.5,the dome,25/06/2017
Nottinghamshire County Council ,Provisions,"Children, Families & Cultural Services ",Debit,9.28,aldi,24/06/2017
Nottinghamshire County Council ,Personal Needs,"Children, Families & Cultural Services ",Debit,1.5,the dome,25/06/2017
Nottinghamshire County Council ,Provisions,"Children, Families & Cultural Services ",Debit,1.55,sainsburys s/mkts,18/06/2017
Nottinghamshire County Council ,Provisions,"Children, Families & Cultural Services ",Debit,35.47,asda store ston in as,16/06/2017
Nottinghamshire County Council ,Fire Precaution Equipment,"Children, Families & Cultural Services ",Debit,44.99,argos ltd,16/06/2017
Nottinghamshire County Council ,Provisions,"Children, Families & Cultural Services ",Debit,119,tesco stores 5437,14/06/2017
Nottinghamshire County Council ,Provisions,"Children, Families & Cultural Services ",Debit,23.51,sainsburys s/mkts,07/06/2017
Nottinghamshire County Council ,Provisions,"Children, Families & Cultural Services ",Debit,29.09,aldi,07/06/2017
Nottinghamshire County Council ,Personal Needs,"Children, Families & Cultural Services ",Debit,4.98,mcdonalds,28/04/2017
Nottinghamshire County Council ,Personal Needs,"Children, Families & Cultural Services ",Debit,10,carphone warehouse,10/04/2017
Nottinghamshire County Council ,Provisions,"Children, Families & Cultural Services ",Debit,34.24,wm morrison 023,10/04/2017
Nottinghamshire County Council ,Provisions,"Children, Families & Cultural Services ",Debit,1.39,aldi,10/04/2017
Nottinghamshire County Council ,Personal Needs,"Children, Families & Cultural Services ",Debit,3,sainsburys s/mkts,01/06/2017
Nottinghamshire County Council ,Provisions,"Children, Families & Cultural Services ",Debit,48.78,asda store ston in as,28/05/2017
Nottinghamshire County Council ,Provisions,"Children, Families & Cultural Services ",Debit,48.31,wm morrison 023,22/05/2017
Nottinghamshire County Council ,Personal Needs,"Children, Families & Cultural Services ",Debit,9.6,water meadows,21/05/2017
Nottinghamshire County Council ,Provisions,"Children, Families & Cultural Services ",Debit,59.87,asda store ston in as,19/05/2017
Nottinghamshire County Council ,Personal Needs,"Children, Families & Cultural Services ",Debit,6.5,w m morrisons cafe,17/05/2017
Nottinghamshire County Council ,Provisions,"Children, Families & Cultural Services ",Debit,54.32,tesco stores 5437,12/05/2017
Nottinghamshire County Council ,Personal Needs,"Children, Families & Cultural Services ",Debit,3.5,w m morrisons cafe,13/05/2017
Nottinghamshire County Council ,Provisions,"Children, Families & Cultural Services ",Debit,40.17,tesco stores 5437,10/05/2017
Nottinghamshire County Council ,Provisions,"Children, Families & Cultural Services ",Debit,14.24,tesco stores 5437,08/05/2017
Nottinghamshire County Council ,Provisions,"Children, Families & Cultural Services ",Debit,1.05,sainsburys s/mkts,08/05/2017
Nottinghamshire County Council ,Provisions,"Children, Families & Cultural Services ",Debit,24.94,asda store ston in as,08/05/2017
Nottinghamshire County Council ,Minor Works,"Children, Families & Cultural Services ",Debit,5.58,morrison petrol,23/06/2017
Nottinghamshire County Council ,Minor Works,"Children, Families & Cultural Services ",Debit,106.91,ps marsden lmower svs lt,13/06/2017
Nottinghamshire County Council ,Building Maintenance,"Children, Families & Cultural Services ",Debit,81.98,spentex bca ltd,07/06/2017
Nottinghamshire County Council ,Phone - Mobile,"Children, Families & Cultural Services ",Debit,24,textmagiccom,30/06/2017
Nottinghamshire County Council ,Activities & Support,"Children, Families & Cultural Services ",Debit,7.99,amazon uk marketplace,29/06/2017
Nottinghamshire County Council ,Activities & Support,"Children, Families & Cultural Services ",Debit,14.99,amazon uk marketplace,29/06/2017
Nottinghamshire County Council ,Building Maintenance,"Children, Families & Cultural Services ",Debit,9.98,amazon.co.uk,29/06/2017
Nottinghamshire County Council ,Activities & Support,"Children, Families & Cultural Services ",Debit,25.99,amazon uk marketplace,28/06/2017
Nottinghamshire County Council ,Building Maintenance,"Children, Families & Cultural Services ",Debit,12.98,amazon.co.uk,26/06/2017
Nottinghamshire County Council ,Activities & Support,"Children, Families & Cultural Services ",Debit,2.66,amazon uk marketplace,26/06/2017
Nottinghamshire County Council ,Building Maintenance,"Children, Families & Cultural Services ",Debit,31.86,amazon.co.uk,25/06/2017
Nottinghamshire County Council ,Building Maintenance,"Children, Families & Cultural Services ",Debit,33,formech,23/06/2017
Nottinghamshire County Council ,Stationery,"Children, Families & Cultural Services ",Debit,2.61,amazon uk marketplace,24/06/2017
Nottinghamshire County Council ,Building Maintenance,"Children, Families & Cultural Services ",Debit,133.8,screwfix direct,23/06/2017
Nottinghamshire County Council ,Building Maintenance,"Children, Families & Cultural Services ",Debit,36,www.jib.org.uk,23/06/2017
Nottinghamshire County Council ,Stationery,"Children, Families & Cultural Services ",Debit,17.66,amazon uk marketplace,24/06/2017
Nottinghamshire County Council ,Building Maintenance,"Children, Families & Cultural Services ",Debit,213.96,www.arcrylic-online.co.u,23/06/2017
Nottinghamshire County Council ,Activities & Support,"Children, Families & Cultural Services ",Debit,139.9,amazon uk marketplace,17/06/2017
Nottinghamshire County Council ,Other Public Transport,"Children, Families & Cultural Services ",Debit,39,ncp limited,13/06/2017
Nottinghamshire County Council ,Other Public Transport,"Children, Families & Cultural Services ",Debit,27.3,taxipay taxi fare,13/06/2017
Nottinghamshire County Council ,Other Public Transport,"Children, Families & Cultural Services ",Debit,26.2,taxipay taxi fare,13/06/2017
Nottinghamshire County Council ,Other Public Transport,"Children, Families & Cultural Services ",Debit,23.47,city cabs edinburgh lt,12/06/2017
Nottinghamshire County Council ,Other Public Transport,"Children, Families & Cultural Services ",Debit,24.2,taxipay taxi fare,12/06/2017
Nottinghamshire County Council ,Subsistence Allowance,"Children, Families & Cultural Services ",Debit,29.55,ox 184,11/06/2017
Nottinghamshire County Council ,Subsistence Allowance,"Children, Families & Cultural Services ",Debit,21.98,premier inn44521635,12/06/2017
Nottinghamshire County Council ,Phone - Mobile,"Children, Families & Cultural Services ",Debit,24,textmagiccom,10/06/2017
Nottinghamshire County Council ,Building Maintenance,"Children, Families & Cultural Services ",Debit,40.98,screwfix direct,07/06/2017
Nottinghamshire County Council ,Clothing And Footwear,"Children, Families & Cultural Services ",Debit,61.19,www.viking-direct.co.u,07/06/2017
Nottinghamshire County Council ,Building Maintenance,"Children, Families & Cultural Services ",Debit,9.49,amazon uk marketplace,06/06/2017
Nottinghamshire County Council ,Activities & Support,"Children, Families & Cultural Services ",Debit,9.99,lovefilm by post,06/06/2017
Nottinghamshire County Council ,Phone - Mobile,"Children, Families & Cultural Services ",Debit,24,textmagiccom,05/06/2017
Nottinghamshire County Council ,Stationery,"Children, Families & Cultural Services ",Debit,19.48,amazon uk retail amazon.,30/05/2017
Nottinghamshire County Council ,Minor Works,"Children, Families & Cultural Services ",Debit,5.99,amazon uk retail amazon.,30/05/2017
Nottinghamshire County Council ,Phone - Mobile,"Children, Families & Cultural Services ",Debit,24,textmagiccom,25/05/2017
Nottinghamshire County Council ,Minor Works,"Children, Families & Cultural Services ",Debit,7.99,amazon uk marketplace,22/05/2017
Nottinghamshire County Council ,Minor Works,"Children, Families & Cultural Services ",Debit,36.95,amazon uk retail amazon.,18/05/2017
Nottinghamshire County Council ,Minor Works,"Children, Families & Cultural Services ",Debit,7.99,amazon uk marketplace,17/05/2017
Nottinghamshire County Council ,Activities & Support,"Children, Families & Cultural Services ",Debit,24,textmagiccom,16/05/2017
Nottinghamshire County Council ,Materials - External,"Children, Families & Cultural Services ",Credit,-59,amz amazon.co.uk,09/05/2017
Nottinghamshire County Council ,Materials - External,"Children, Families & Cultural Services ",Debit,59,amazon uk retail,09/05/2017
Nottinghamshire County Council ,Materials - External,"Children, Families & Cultural Services ",Debit,7.99,amazon uk marketplace,08/05/2017
Nottinghamshire County Council ,Materials - External,"Children, Families & Cultural Services ",Debit,59,amazon uk retail amazon.,07/05/2017
Nottinghamshire County Council ,Cleaning & Domestic Equipment,"Children, Families & Cultural Services ",Debit,19.95,amazon uk retail amazon.,07/05/2017
Nottinghamshire County Council ,Activities & Support,"Children, Families & Cultural Services ",Debit,9.99,lovefilm by post,06/05/2017
Nottinghamshire County Council ,Cleaning Materials,"Children, Families & Cultural Services ",Debit,3.99,amazon uk marketplace,05/05/2017
Nottinghamshire County Council ,Minor Works,"Children, Families & Cultural Services ",Debit,12.98,amazon uk marketplace,04/05/2017
Nottinghamshire County Council ,Phone and Network (Land Lines),"Children, Families & Cultural Services ",Debit,24,textmagiccom,03/05/2017
Nottinghamshire County Council ,Software Maintenance,"Children, Families & Cultural Services ",Debit,16.99,amazon uk retail amazon.,03/05/2017
Nottinghamshire County Council ,Building Maintenance,"Children, Families & Cultural Services ",Debit,5.29,amazon uk retail amazon.,02/05/2017
Nottinghamshire County Council ,Building Maintenance,"Children, Families & Cultural Services ",Debit,7.95,amazon uk marketplace,01/05/2017
Nottinghamshire County Council ,Building Maintenance,"Children, Families & Cultural Services ",Debit,16.49,halls locksmiths ltd,28/04/2017
Nottinghamshire County Council ,Building Maintenance,"Children, Families & Cultural Services ",Debit,11.79,screwfix direct,27/04/2017
Nottinghamshire County Council ,Building Maintenance,"Children, Families & Cultural Services ",Debit,12.99,amazon uk marketplace,27/04/2017
Nottinghamshire County Council ,Building Maintenance,"Children, Families & Cultural Services ",Debit,29.95,amazon uk marketplace,24/04/2017
Nottinghamshire County Council ,Building Maintenance,"Children, Families & Cultural Services ",Debit,72.48,screwfix direct,21/04/2017
Nottinghamshire County Council ,Phone - Mobile,"Children, Families & Cultural Services ",Debit,24,textmagiccom,20/04/2017
Nottinghamshire County Council ,Building Maintenance,"Children, Families & Cultural Services ",Debit,48,electrical contractors,20/04/2017
Nottinghamshire County Council ,Office / General Equipment,"Children, Families & Cultural Services ",Debit,14.96,amazon uk marketplace,20/04/2017
Nottinghamshire County Council ,Office / General Equipment,"Children, Families & Cultural Services ",Debit,12.95,amazon uk marketplace,20/04/2017
Nottinghamshire County Council ,Building Maintenance,"Children, Families & Cultural Services ",Debit,13.7,amazon uk marketplace,19/04/2017
Nottinghamshire County Council ,Building Maintenance,"Children, Families & Cultural Services ",Debit,48,www.jib.org.uk,19/04/2017
Nottinghamshire County Council ,Building Maintenance,"Children, Families & Cultural Services ",Debit,23.57,amazon uk retail amazon.,17/04/2017
Nottinghamshire County Council ,Minor Works,"Children, Families & Cultural Services ",Debit,714,www.lesar.co.uk,12/04/2017
Nottinghamshire County Council ,Building Maintenance,"Children, Families & Cultural Services ",Debit,338.82,screwfix direct,11/04/2017
Nottinghamshire County Council ,Computer Equipment,"Children, Families & Cultural Services ",Debit,"1,031.98",amazon uk marketplace,10/04/2017
Nottinghamshire County Council ,Phone - Mobile,"Children, Families & Cultural Services ",Debit,24,textmagiccom,06/04/2017
Nottinghamshire County Council ,Activities & Support,"Children, Families & Cultural Services ",Debit,9.99,lovefilm by post,06/04/2017
Nottinghamshire County Council ,Clothing And Footwear,"Children, Families & Cultural Services ",Debit,289.08,safetybootsuk,06/04/2017
Nottinghamshire County Council ,Office / General Equipment,"Children, Families & Cultural Services ",Debit,44.97,amazon uk marketplace,05/04/2017
Nottinghamshire County Council ,Office / General Equipment,"Children, Families & Cultural Services ",Debit,94.71,amazon uk marketplace,04/04/2017
Nottinghamshire County Council ,Clients - H & S Equipt,"Children, Families & Cultural Services ",Debit,219,ege furniture ltd,25/04/2017
Nottinghamshire County Council ,Clients - H & S Equipt,"Children, Families & Cultural Services ",Debit,2,co-op group 010161,11/04/2017
Nottinghamshire County Council ,Clients - H & S Equipt,"Children, Families & Cultural Services ",Debit,180.92,sse,07/04/2017
Nottinghamshire County Council ,Aftercare - Equipment,"Children, Families & Cultural Services ",Debit,125.97,dunelm ltd,01/06/2017
Nottinghamshire County Council ,Aftercare - Equipment,"Children, Families & Cultural Services ",Debit,13.99,sharif and sons,01/06/2017
Nottinghamshire County Council ,Clients - H & S Equipt,"Children, Families & Cultural Services ",Debit,31.49,storage king - derby,31/05/2017
Nottinghamshire County Council ,Clients - H & S Equipt,"Children, Families & Cultural Services ",Debit,20.6,seven dental nottingha,25/05/2017
Nottinghamshire County Council ,Clients - H & S Equipt,"Children, Families & Cultural Services ",Debit,36.05,sportsdirect 195,23/05/2017
Nottinghamshire County Council ,Clients - H & S Equipt,"Children, Families & Cultural Services ",Debit,29.25,sainsburys s/mkts,17/05/2017
Nottinghamshire County Council ,Clients - H & S Equipt,"Children, Families & Cultural Services ",Debit,6,bus ticket or emt wifi,23/06/2017
Nottinghamshire County Council ,Clients - H & S Equipt,"Children, Families & Cultural Services ",Debit,20,lul ticket machine,23/06/2017
Nottinghamshire County Council ,Clients - H & S Equipt,"Children, Families & Cultural Services ",Debit,6.69,pret a manger,23/06/2017
Nottinghamshire County Council ,Clients - H & S Equipt,"Children, Families & Cultural Services ",Debit,4.9,costa coffee 43041380,23/06/2017
Nottinghamshire County Council ,Clients - H & S Equipt,"Children, Families & Cultural Services ",Debit,150,midland hotel,19/06/2017
Nottinghamshire County Council ,Clients - H & S Equipt,"Children, Families & Cultural Services ",Debit,9.8,pelham kitchen,14/06/2017
Nottinghamshire County Council ,Clients - H & S Equipt,"Children, Families & Cultural Services ",Debit,147,tvlicensing.co.uk,08/06/2017
Nottinghamshire County Council ,Activities & Support,"Children, Families & Cultural Services ",Debit,7.99,amazon uk marketplace,30/06/2017
Nottinghamshire County Council ,Activities & Support,"Children, Families & Cultural Services ",Debit,5.45,amazon uk retail,27/06/2017
Nottinghamshire County Council ,Activities & Support,"Children, Families & Cultural Services ",Debit,5.91,amazon.co.uk,23/06/2017
Nottinghamshire County Council ,Activities & Support,"Children, Families & Cultural Services ",Credit,-6.49,amz amazon.co.uk,24/06/2017
Nottinghamshire County Council ,Activities & Support,"Children, Families & Cultural Services ",Debit,34.99,argos retail group,22/06/2017
Nottinghamshire County Council ,Activities & Support,"Children, Families & Cultural Services ",Debit,6.49,amazon uk retail,22/06/2017
Nottinghamshire County Council ,Activities & Support,"Children, Families & Cultural Services ",Debit,24.1,amazon uk marketplace,03/04/2017
Nottinghamshire County Council ,Activities & Support,"Children, Families & Cultural Services ",Debit,1.75,aldi,24/05/2017
Nottinghamshire County Council ,Activities & Support,"Children, Families & Cultural Services ",Debit,102.2,amazon uk marketplace,20/05/2017
Nottinghamshire County Council ,Activities & Support,"Children, Families & Cultural Services ",Debit,23.96,amazon uk marketplace,16/05/2017
Nottinghamshire County Council ,Activities & Support,"Children, Families & Cultural Services ",Debit,6.99,amazon uk marketplace,15/05/2017
Nottinghamshire County Council ,Activities & Support,"Children, Families & Cultural Services ",Debit,3.35,amazon uk marketplace,15/05/2017
Nottinghamshire County Council ,Activities & Support,"Children, Families & Cultural Services ",Debit,39.97,amazon uk marketplace,15/05/2017
Nottinghamshire County Council ,Activities & Support,"Children, Families & Cultural Services ",Debit,18.34,home bargains,02/05/2017
Nottinghamshire County Council ,Activities & Support,"Children, Families & Cultural Services ",Debit,47,tesco stores (5378),12/04/2017
Nottinghamshire County Council ,Activities & Support,"Children, Families & Cultural Services ",Debit,3,poundworld retail,02/05/2017
Nottinghamshire County Council ,Activities & Support,"Children, Families & Cultural Services ",Debit,29.41,w m morrisons,26/04/2017
Nottinghamshire County Council ,Activities & Support,"Children, Families & Cultural Services ",Debit,20.97,w m morrisons,26/04/2017
Nottinghamshire County Council ,Activities & Support,"Children, Families & Cultural Services ",Debit,23.36,w m morrisons,25/04/2017
Nottinghamshire County Council ,Activities & Support,"Children, Families & Cultural Services ",Debit,19.75,asda superstore 04030,20/04/2017
Nottinghamshire County Council ,Activities & Support,"Children, Families & Cultural Services ",Debit,24.9,asda superstore 04030,20/04/2017
Nottinghamshire County Council ,Activities & Support,"Children, Families & Cultural Services ",Debit,19.96,asda superstore 04030,13/04/2017
Nottinghamshire County Council ,Activities & Support,"Children, Families & Cultural Services ",Debit,14.28,asda superstore 04030,13/04/2017
Nottinghamshire County Council ,Activities & Support,"Children, Families & Cultural Services ",Debit,18.33,asda superstore 04030,11/04/2017
Nottinghamshire County Council ,Activities & Support,"Children, Families & Cultural Services ",Debit,12.17,asda superstore 04030,11/04/2017
Nottinghamshire County Council ,Activities & Support,"Children, Families & Cultural Services ",Debit,18.96,aldi,06/04/2017
Nottinghamshire County Council ,Activities & Support,"Children, Families & Cultural Services ",Debit,20.54,asda superstore 04030,04/04/2017
Nottinghamshire County Council ,Activities & Support,"Children, Families & Cultural Services ",Debit,20.35,aldi,26/05/2017
Nottinghamshire County Council ,Activities & Support,"Children, Families & Cultural Services ",Debit,22.9,aldi,26/05/2017
Nottinghamshire County Council ,Activities & Support,"Children, Families & Cultural Services ",Debit,11.11,aldi,16/05/2017
Nottinghamshire County Council ,Activities & Support,"Children, Families & Cultural Services ",Debit,17.99,aldi,16/05/2017
Nottinghamshire County Council ,Activities & Support,"Children, Families & Cultural Services ",Debit,22.06,aldi,10/05/2017
Nottinghamshire County Council ,Activities & Support,"Children, Families & Cultural Services ",Debit,24.06,aldi,10/05/2017
Nottinghamshire County Council ,Activities & Support,"Children, Families & Cultural Services ",Debit,7.5,wilko retail limit,04/05/2017
Nottinghamshire County Council ,Activities & Support,"Children, Families & Cultural Services ",Debit,28.39,aldi,28/06/2017
Nottinghamshire County Council ,Activities & Support,"Children, Families & Cultural Services ",Debit,25.81,aldi,27/06/2017
Nottinghamshire County Council ,Activities & Support,"Children, Families & Cultural Services ",Debit,20,aldi,23/06/2017
Nottinghamshire County Council ,Activities & Support,"Children, Families & Cultural Services ",Debit,19.71,aldi,20/06/2017
Nottinghamshire County Council ,Activities & Support,"Children, Families & Cultural Services ",Debit,19.97,aldi,20/06/2017
Nottinghamshire County Council ,Activities & Support,"Children, Families & Cultural Services ",Debit,16.66,aldi,16/06/2017
Nottinghamshire County Council ,Activities & Support,"Children, Families & Cultural Services ",Debit,16.67,aldi,16/06/2017
Nottinghamshire County Council ,Activities & Support,"Children, Families & Cultural Services ",Debit,15.73,aldi,13/06/2017
Nottinghamshire County Council ,Activities & Support,"Children, Families & Cultural Services ",Debit,26.35,aldi,09/06/2017
Nottinghamshire County Council ,Activities & Support,"Children, Families & Cultural Services ",Debit,23.93,asda store ston in as,12/06/2017
Nottinghamshire County Council ,Activities & Support,"Children, Families & Cultural Services ",Debit,26.08,asda store ston in as,08/06/2017
Nottinghamshire County Council ,Activities & Support,"Children, Families & Cultural Services ",Debit,13.23,fast key services limi,30/06/2017
Nottinghamshire County Council ,Activities & Support,"Children, Families & Cultural Services ",Debit,141.64,amazon uk marketplace,29/06/2017
Nottinghamshire County Council ,Activities & Support,"Children, Families & Cultural Services ",Debit,80,aaia,29/06/2017
Nottinghamshire County Council ,Activities & Support,"Children, Families & Cultural Services ",Debit,80,aaia,29/06/2017
Nottinghamshire County Council ,Activities & Support,"Children, Families & Cultural Services ",Debit,47.9,amazon uk marketplace,28/06/2017
Nottinghamshire County Council ,Activities & Support,"Children, Families & Cultural Services ",Debit,310,radisson blu hotel bir,09/06/2017
Nottinghamshire County Council ,Activities & Support,"Children, Families & Cultural Services ",Debit,30.6,amazon uk marketplace,11/06/2017
Nottinghamshire County Council ,Activities & Support,"Children, Families & Cultural Services ",Debit,112.55,amazon uk retail amazon.,02/04/2017
Nottinghamshire County Council ,Activities & Support,"Children, Families & Cultural Services ",Debit,462,www.pmgltd.co.uk,25/05/2017
Nottinghamshire County Council ,Activities & Support,"Children, Families & Cultural Services ",Debit,144.5,bookpoint limited,23/05/2017
Nottinghamshire County Council ,Activities & Support,"Children, Families & Cultural Services ",Debit,227.5,bookpoint limited,17/05/2017
Nottinghamshire County Council ,Activities & Support,"Children, Families & Cultural Services ",Debit,19.99,argos retail group,18/05/2017
Nottinghamshire County Council ,Activities & Support,"Children, Families & Cultural Services ",Debit,53.86,amazon uk marketplace,10/05/2017
Nottinghamshire County Council ,Activities & Support,"Children, Families & Cultural Services ",Debit,19.58,amazon uk retail,09/05/2017
Nottinghamshire County Council ,Activities & Support,"Children, Families & Cultural Services ",Debit,52.5,amazon uk marketplace,07/05/2017
Nottinghamshire County Council ,Activities & Support,"Children, Families & Cultural Services ",Debit,51.96,amazon uk marketplace,28/04/2017
Nottinghamshire County Council ,Activities & Support,"Children, Families & Cultural Services ",Debit,5.98,amazon uk marketplace,21/04/2017
Nottinghamshire County Council ,Activities & Support,"Children, Families & Cultural Services ",Debit,9.99,amazon uk retail amazon.,20/04/2017
Nottinghamshire County Council ,Activities & Support,"Children, Families & Cultural Services ",Debit,39,advanced digital resea,19/04/2017
Nottinghamshire County Council ,Activities & Support,"Children, Families & Cultural Services ",Debit,78,www.earlyexcellence.com,18/04/2017
Nottinghamshire County Council ,Activities & Support,"Children, Families & Cultural Services ",Debit,14.38,amazon uk marketplace,11/04/2017
Nottinghamshire County Council ,Activities & Support,"Children, Families & Cultural Services ",Debit,80,forestry comm sherwood,04/04/2017
Nottinghamshire County Council ,Postages,"Children, Families & Cultural Services ",Debit,7.16,post office counter,10/04/2017
Nottinghamshire County Council ,Postages,"Children, Families & Cultural Services ",Debit,2.5,www.edofe.org,05/04/2017
Nottinghamshire County Council ,Postages,"Children, Families & Cultural Services ",Debit,8.45,www.edofe.org,24/05/2017
Nottinghamshire County Council ,Activities & Support,"Children, Families & Cultural Services ",Debit,0,www.edofe.org,24/05/2017
Nottinghamshire County Council ,Staff Training,"Children, Families & Cultural Services ",Debit,90.72,partner networks ltd,19/05/2017
Nottinghamshire County Council ,Staff Training,"Children, Families & Cultural Services ",Debit,14.4,partner networks ltd,17/05/2017
Nottinghamshire County Council ,Staff Training,"Children, Families & Cultural Services ",Debit,14.4,partner networks ltd,16/05/2017
Nottinghamshire County Council ,Postages,"Children, Families & Cultural Services ",Debit,2.5,www.edofe.org,03/04/2017
Nottinghamshire County Council ,Postages,"Children, Families & Cultural Services ",Debit,3.9,post office counter,29/06/2017
Nottinghamshire County Council ,Postages,"Children, Families & Cultural Services ",Debit,2.32,the post office,21/06/2017
Nottinghamshire County Council ,Activities & Support,"Children, Families & Cultural Services ",Debit,54.28,www.edofe.org,07/06/2017
Nottinghamshire County Council ,Postages,"Children, Families & Cultural Services ",Debit,1.86,post office counter,02/06/2017
Nottinghamshire County Council ,Provisions,"Children, Families & Cultural Services ",Debit,3,sainsburys smkt,27/06/2017
Nottinghamshire County Council ,Provisions,"Children, Families & Cultural Services ",Debit,39.6,sainsburys smkt,26/06/2017
Nottinghamshire County Council ,Provisions,"Children, Families & Cultural Services ",Debit,67.3,sainsburys smkt,19/06/2017
Nottinghamshire County Council ,Provisions,"Children, Families & Cultural Services ",Debit,9.3,sainsburys s/mkts,18/06/2017
Nottinghamshire County Council ,Provisions,"Children, Families & Cultural Services ",Debit,8.21,central co-op,17/06/2017
Nottinghamshire County Council ,Provisions,"Children, Families & Cultural Services ",Debit,24,sainsburys smkt,10/06/2017
Nottinghamshire County Council ,Provisions,"Children, Families & Cultural Services ",Debit,23.9,sainsburys smkt,08/06/2017
Nottinghamshire County Council ,Provisions,"Children, Families & Cultural Services ",Debit,2.6,sainsburys smkt,07/06/2017
Nottinghamshire County Council ,Provisions,"Children, Families & Cultural Services ",Debit,45.3,sainsburys smkt,05/06/2017
Nottinghamshire County Council ,Provisions,"Children, Families & Cultural Services ",Debit,4.7,sainsburys smkt,03/06/2017
Nottinghamshire County Council ,Provisions,"Children, Families & Cultural Services ",Debit,14.85,sainsburys smkt,02/06/2017
Nottinghamshire County Council ,Provisions,"Children, Families & Cultural Services ",Debit,6.5,sainsburys s/mkts,31/05/2017
Nottinghamshire County Council ,Provisions,"Children, Families & Cultural Services ",Debit,68.6,sainsburys smkt,30/05/2017
Nottinghamshire County Council ,Provisions,"Children, Families & Cultural Services ",Debit,5.3,sainsburys s/mkts,29/05/2017
Nottinghamshire County Council ,Provisions,"Children, Families & Cultural Services ",Debit,18,sainsburys smkt,27/05/2017
Nottinghamshire County Council ,Provisions,"Children, Families & Cultural Services ",Debit,16.06,asda superstore,25/05/2017
Nottinghamshire County Council ,Provisions,"Children, Families & Cultural Services ",Debit,14.15,sainsburys smkt,23/05/2017
Nottinghamshire County Council ,Provisions,"Children, Families & Cultural Services ",Debit,43.3,sainsburys smkt,22/05/2017
Nottinghamshire County Council ,Provisions,"Children, Families & Cultural Services ",Debit,4.94,sainsburys s/mkts,20/05/2017
Nottinghamshire County Council ,Provisions,"Children, Families & Cultural Services ",Debit,5.85,sainsburys smkt,17/05/2017
Nottinghamshire County Council ,Provisions,"Children, Families & Cultural Services ",Debit,59.25,sainsburys smkt,15/05/2017
Nottinghamshire County Council ,Provisions,"Children, Families & Cultural Services ",Debit,12.75,sainsburys smkt,10/05/2017
Nottinghamshire County Council ,Provisions,"Children, Families & Cultural Services ",Debit,51.77,sainsburys smkt,08/05/2017
Nottinghamshire County Council ,Provisions,"Children, Families & Cultural Services ",Debit,19.45,sainsburys smkt,03/05/2017
Nottinghamshire County Council ,Provisions,"Children, Families & Cultural Services ",Debit,2.4,asda superstore,30/04/2017
Nottinghamshire County Council ,Provisions,"Children, Families & Cultural Services ",Debit,37.4,sainsburys smkt,28/04/2017
Nottinghamshire County Council ,Provisions,"Children, Families & Cultural Services ",Debit,10.72,co op food,26/04/2017
Nottinghamshire County Council ,Provisions,"Children, Families & Cultural Services ",Debit,11.8,sainsburys smkt,24/04/2017
Nottinghamshire County Council ,Provisions,"Children, Families & Cultural Services ",Debit,49.1,sainsburys smkt,24/04/2017
Nottinghamshire County Council ,Provisions,"Children, Families & Cultural Services ",Debit,35,sainsburys smkt,19/04/2017
Nottinghamshire County Council ,Provisions,"Children, Families & Cultural Services ",Debit,31.55,sainsburys smkt,13/04/2017
Nottinghamshire County Council ,Provisions,"Children, Families & Cultural Services ",Debit,25.35,sainsburys smkt,10/04/2017
Nottinghamshire County Council ,Provisions,"Children, Families & Cultural Services ",Debit,37.85,sainsburys smkt,08/04/2017
Nottinghamshire County Council ,Other Fee's & Services,"Children, Families & Cultural Services ",Debit,49.95,wheelgatepark.com,12/04/2017
Nottinghamshire County Council ,Office / General Equipment,"Children, Families & Cultural Services ",Debit,147,tvlicensing.co.uk,30/05/2017
Nottinghamshire County Council ,Office / General Equipment,"Children, Families & Cultural Services ",Debit,119,tesco direct,30/05/2017
Nottinghamshire County Council ,Office / General Equipment,"Children, Families & Cultural Services ",Debit,27.19,argos retail group,24/05/2017
Nottinghamshire County Council ,Other Fee's & Services,"Children, Families & Cultural Services ",Debit,9.25,gro hm passport office,19/05/2017
Nottinghamshire County Council ,Office / General Equipment,"Children, Families & Cultural Services ",Debit,147,tvlicensing.co.uk,15/05/2017
Nottinghamshire County Council ,Other Fee's & Services,"Children, Families & Cultural Services ",Debit,30,mansfield,23/06/2017
Nottinghamshire County Council ,Other Fee's & Services,"Children, Families & Cultural Services ",Debit,73.94,www.argos.co.uk,23/06/2017
Nottinghamshire County Council ,Other Fee's & Services,"Children, Families & Cultural Services ",Credit,-9.25,gro hm passport office,19/05/2017
Nottinghamshire County Council ,Provisions,"Children, Families & Cultural Services ",Debit,24.93,tesco stores 5437,28/04/2017
Nottinghamshire County Council ,Personal Needs,"Children, Families & Cultural Services ",Debit,0.7,tesco pfs 5538,28/04/2017
Nottinghamshire County Council ,Provisions,"Children, Families & Cultural Services ",Debit,7.06,tesco stores 6226,26/04/2017
Nottinghamshire County Council ,Provisions,"Children, Families & Cultural Services ",Debit,55.5,tesco stores 5437,21/04/2017
Nottinghamshire County Council ,Provisions,"Children, Families & Cultural Services ",Debit,1.2,sainsburys s/mkts,21/04/2017
Nottinghamshire County Council ,Personal Needs,"Children, Families & Cultural Services ",Debit,11,sainsburys s/mkts,14/04/2017
Nottinghamshire County Council ,Personal Needs,"Children, Families & Cultural Services ",Debit,11,sainsburys s/mkts,13/04/2017
Nottinghamshire County Council ,Personal Needs,"Children, Families & Cultural Services ",Debit,20,hmcourts-service.g,26/05/2017
Nottinghamshire County Council ,Office / General Equipment,"Children, Families & Cultural Services ",Debit,13.5,caddyshack golf ce,11/06/2017
Nottinghamshire County Council ,Office / General Equipment,"Children, Families & Cultural Services ",Debit,92.97,dw sports fitness,11/06/2017
Nottinghamshire County Council ,Clothing/Shoes/Uniforms,"Children, Families & Cultural Services ",Debit,49,tesco stores 5437,10/06/2017
Nottinghamshire County Council ,Office / General Equipment,"Adult Social Care, Health & Public Protection",Debit,28.99,robinsons caravans,29/06/2017
Nottinghamshire County Council ,Office / General Equipment,"Adult Social Care, Health & Public Protection",Debit,3.4,post office counter,26/06/2017
Nottinghamshire County Council ,Office / General Equipment,"Adult Social Care, Health & Public Protection",Debit,14,matalan,22/06/2017
Nottinghamshire County Council ,Office / General Equipment,"Adult Social Care, Health & Public Protection",Debit,265.2,parkway secure storage,22/06/2017
Nottinghamshire County Council ,Office / General Equipment,"Adult Social Care, Health & Public Protection",Debit,28.99,robinsons caravans,15/06/2017
Nottinghamshire County Council ,Office / General Equipment,"Adult Social Care, Health & Public Protection",Debit,99.02,screwfix direct,14/06/2017
Nottinghamshire County Council ,Office / General Equipment,"Adult Social Care, Health & Public Protection",Debit,62.79,screwfix direct,14/06/2017
Nottinghamshire County Council ,Office / General Equipment,"Adult Social Care, Health & Public Protection",Debit,2.2,tesco store 3439,13/06/2017
Nottinghamshire County Council ,Office / General Equipment,"Adult Social Care, Health & Public Protection",Debit,4.7,sainsburys s/mkt,13/06/2017
Nottinghamshire County Council ,Office / General Equipment,"Adult Social Care, Health & Public Protection",Debit,459.6,www.rhodesandscholes.c,12/06/2017
Nottinghamshire County Council ,Office / General Equipment,"Adult Social Care, Health & Public Protection",Debit,2,tesco store 3439,12/06/2017
Nottinghamshire County Council ,Office / General Equipment,"Adult Social Care, Health & Public Protection",Debit,1.7,tesco store 3439,01/06/2017
Nottinghamshire County Council ,Office / General Equipment,"Adult Social Care, Health & Public Protection",Debit,1,tesco store 3439,30/05/2017
Nottinghamshire County Council ,Office / General Equipment,"Adult Social Care, Health & Public Protection",Debit,28.99,robinsons caravans,30/05/2017
Nottinghamshire County Council ,Office / General Equipment,"Adult Social Care, Health & Public Protection",Debit,1.48,sainsburys local,24/05/2017
Nottinghamshire County Council ,Office / General Equipment,"Adult Social Care, Health & Public Protection",Debit,122.56,screwfix direct,23/05/2017
Nottinghamshire County Council ,Office / General Equipment,"Adult Social Care, Health & Public Protection",Debit,2,tesco stores-3439,23/05/2017
Nottinghamshire County Council ,Office / General Equipment,"Adult Social Care, Health & Public Protection",Debit,2.34,tesco store 3439,15/05/2017
Nottinghamshire County Council ,Office / General Equipment,"Adult Social Care, Health & Public Protection",Debit,84.99,amazon uk retail amazon.,11/05/2017
Nottinghamshire County Council ,Office / General Equipment,"Adult Social Care, Health & Public Protection",Debit,2.5,tesco store 3439,11/05/2017
Nottinghamshire County Council ,Office / General Equipment,"Adult Social Care, Health & Public Protection",Debit,1.89,tesco store 3439,10/05/2017
Nottinghamshire County Council ,Office / General Equipment,"Adult Social Care, Health & Public Protection",Debit,16.99,amazon uk retail amazon.,10/05/2017
Nottinghamshire County Council ,Office / General Equipment,"Adult Social Care, Health & Public Protection",Debit,20.12,amazon uk retail amazon.,10/05/2017
Nottinghamshire County Council ,Office / General Equipment,"Adult Social Care, Health & Public Protection",Debit,0.98,tesco store 3439,09/05/2017
Nottinghamshire County Council ,Office / General Equipment,"Adult Social Care, Health & Public Protection",Debit,3,tesco store 3439,08/05/2017
Nottinghamshire County Council ,Office / General Equipment,"Adult Social Care, Health & Public Protection",Debit,27.77,buy wholefoods online,08/05/2017
Nottinghamshire County Council ,Office / General Equipment,"Adult Social Care, Health & Public Protection",Debit,1,tesco store 3439,02/05/2017
Nottinghamshire County Council ,Office / General Equipment,"Adult Social Care, Health & Public Protection",Debit,2.1,sainsburys s/mkts,28/04/2017
Nottinghamshire County Council ,Office / General Equipment,"Adult Social Care, Health & Public Protection",Debit,28.99,robinsons caravans,26/04/2017
Nottinghamshire County Council ,Office / General Equipment,"Adult Social Care, Health & Public Protection",Debit,1.1,sainsburys s/mkt,07/04/2017
Nottinghamshire County Council ,Office / General Equipment,"Adult Social Care, Health & Public Protection",Debit,1.1,sainsburys s/mkt,05/04/2017
Nottinghamshire County Council ,Office / General Equipment,"Adult Social Care, Health & Public Protection",Debit,2.98,asda superstore 04261,04/04/2017
Nottinghamshire County Council ,Aids & Appliances,"Children, Families & Cultural Services ",Debit,31.22,amazon uk retail amazon.,24/04/2017
Nottinghamshire County Council ,Interview Expenses,"Children, Families & Cultural Services ",Debit,458.85,love2shop.co.uk,09/06/2017
Nottinghamshire County Council ,Furniture,"Children, Families & Cultural Services ",Debit,387.8,amazon uk marketplace,16/06/2017
Nottinghamshire County Council ,Activities & Support,"Children, Families & Cultural Services ",Credit,-26,civil war/palace,08/06/2017
Nottinghamshire County Council ,Provisions,"Children, Families & Cultural Services ",Credit,-187.48,owen taylor  sons,19/04/2017
Nottinghamshire County Council ,Provisions,"Children, Families & Cultural Services ",Debit,187.48,owen taylor  sons,19/04/2017
Nottinghamshire County Council ,Provisions,"Children, Families & Cultural Services ",Debit,187.48,owen taylor  sons,19/04/2017
Nottinghamshire County Council ,Personal Needs,"Children, Families & Cultural Services ",Debit,56.07,boots.com,09/05/2017
Nottinghamshire County Council ,Activities & Support,"Children, Families & Cultural Services ",Debit,26,civil war/palace,09/05/2017
Nottinghamshire County Council ,Provisions,"Children, Families & Cultural Services ",Debit,181.98,owen taylor  sons,04/05/2017
Nottinghamshire County Council ,Provisions,"Children, Families & Cultural Services ",Credit,-11,primark,25/05/2017
Nottinghamshire County Council ,Office / General Equipment,"Children, Families & Cultural Services ",Debit,9.17,wilko retail limit,23/05/2017
Nottinghamshire County Council ,Clothing/Shoes/Uniforms,"Children, Families & Cultural Services ",Debit,22,primark,23/05/2017
Nottinghamshire County Council ,Provisions,"Children, Families & Cultural Services ",Debit,4.17,mcdonalds,23/05/2017
Nottinghamshire County Council ,Office / General Equipment,"Children, Families & Cultural Services ",Debit,4.99,currys,23/05/2017
Nottinghamshire County Council ,Clothing/Shoes/Uniforms,"Children, Families & Cultural Services ",Debit,60.5,primark,21/05/2017
Nottinghamshire County Council ,Provisions,"Children, Families & Cultural Services ",Debit,9.1,sainsburys s/mkts,20/05/2017
Nottinghamshire County Council ,Provisions,"Children, Families & Cultural Services ",Debit,64.86,aldi,20/05/2017
Nottinghamshire County Council ,Provisions,"Children, Families & Cultural Services ",Debit,1.86,wm morrisons plc,05/05/2017
Nottinghamshire County Council ,Personal Needs,"Children, Families & Cultural Services ",Debit,7,ijump trampoline parks,05/05/2017
Nottinghamshire County Council ,Provisions,"Children, Families & Cultural Services ",Debit,4.17,mcdonalds,12/04/2017
Nottinghamshire County Council ,Provisions,"Children, Families & Cultural Services ",Debit,111.5,primark 642,07/04/2017
Nottinghamshire County Council ,Provisions,"Children, Families & Cultural Services ",Debit,9.58,mcdonalds,09/04/2017
Nottinghamshire County Council ,Provisions,"Children, Families & Cultural Services ",Debit,35.85,frankie  bennys 5182,07/04/2017
Nottinghamshire County Council ,Provisions,"Children, Families & Cultural Services ",Debit,60,j d sports 584,07/04/2017
Nottinghamshire County Council ,Provisions,"Children, Families & Cultural Services ",Debit,12.05,next 0847 sheffield me,07/04/2017
Nottinghamshire County Council ,Provisions,"Children, Families & Cultural Services ",Debit,12,next 0847 sheffield me,07/04/2017
Nottinghamshire County Council ,Provisions,"Children, Families & Cultural Services ",Debit,19.18,tesco stores 2995,30/06/2017
Nottinghamshire County Council ,Provisions,"Children, Families & Cultural Services ",Debit,14.47,mcdonalds,03/06/2017
Nottinghamshire County Council ,Other Fee's & Services,"Children, Families & Cultural Services ",Debit,114.9,trainline,19/06/2017
Nottinghamshire County Council ,Activities & Support,"Children, Families & Cultural Services ",Credit,-37.4,payasugym com,26/04/2017
Nottinghamshire County Council ,Other Fee's & Services,Resources ,Debit,10,www.gov.uk,28/04/2017
Nottinghamshire County Council ,Other Fee's & Services,Resources ,Debit,35,www.moneyclaim.gov,27/04/2017
Nottinghamshire County Council ,Other Fee's & Services,Resources ,Debit,60,www.moneyclaim.gov,25/04/2017
Nottinghamshire County Council ,Other Fee's & Services,Resources ,Debit,60,www.moneyclaim.gov,12/04/2017
Nottinghamshire County Council ,Other Fee's & Services,Resources ,Debit,77,www.moneyclaim.gov,12/04/2017
Nottinghamshire County Council ,Other Fee's & Services,Resources ,Debit,35,www.moneyclaim.gov,11/04/2017
Nottinghamshire County Council ,Other Fee's & Services,Resources ,Debit,60,www.moneyclaim.gov,11/04/2017
Nottinghamshire County Council ,Other Fee's & Services,Resources ,Debit,60,www.moneyclaim.gov,11/04/2017
Nottinghamshire County Council ,Other Fee's & Services,Resources ,Debit,25,www.moneyclaim.gov,10/04/2017
Nottinghamshire County Council ,Other Fee's & Services,Resources ,Debit,10,www.gov.uk,07/04/2017
Nottinghamshire County Council ,Other Fee's & Services,Resources ,Debit,60,www.moneyclaim.gov,31/05/2017
Nottinghamshire County Council ,Other Fee's & Services,Resources ,Debit,10,www.gov.uk,31/05/2017
Nottinghamshire County Council ,Other Fee's & Services,Resources ,Debit,10,www.gov.uk,31/05/2017
Nottinghamshire County Council ,Other Fee's & Services,Resources ,Debit,25,www.moneyclaim.gov,31/05/2017
Nottinghamshire County Council ,Other Fee's & Services,Resources ,Debit,105,www.moneyclaim.gov,30/05/2017
Nottinghamshire County Council ,Other Fee's & Services,Resources ,Debit,77,www.moneyclaim.gov,26/05/2017
Nottinghamshire County Council ,Other Fee's & Services,Resources ,Debit,77,www.moneyclaim.gov,26/05/2017
Nottinghamshire County Council ,Other Fee's & Services,Resources ,Debit,77,www.moneyclaim.gov,26/05/2017
Nottinghamshire County Council ,Other Fee's & Services,Resources ,Debit,77,www.moneyclaim.gov,26/05/2017
Nottinghamshire County Council ,Other Fee's & Services,Resources ,Debit,77,www.moneyclaim.gov,24/05/2017
Nottinghamshire County Council ,Other Fee's & Services,Resources ,Debit,77,www.moneyclaim.gov,24/05/2017
Nottinghamshire County Council ,Other Fee's & Services,Resources ,Debit,77,www.moneyclaim.gov,24/05/2017
Nottinghamshire County Council ,Other Fee's & Services,Resources ,Debit,60,www.moneyclaim.gov,11/05/2017
Nottinghamshire County Council ,Other Fee's & Services,Resources ,Debit,25,www.moneyclaim.gov,11/05/2017
Nottinghamshire County Council ,Other Fee's & Services,Resources ,Debit,77,www.moneyclaim.gov,11/05/2017
Nottinghamshire County Council ,Other Fee's & Services,Resources ,Debit,60,www.moneyclaim.gov,09/05/2017
Nottinghamshire County Council ,Other Fee's & Services,Resources ,Debit,25,www.moneyclaim.gov,08/05/2017
Nottinghamshire County Council ,Other Fee's & Services,Resources ,Debit,25,www.moneyclaim.gov,05/05/2017
Nottinghamshire County Council ,Other Fee's & Services,Resources ,Debit,35,www.moneyclaim.gov,05/05/2017
Nottinghamshire County Council ,Other Fee's & Services,Resources ,Debit,35.94,www.192.com ltd,04/05/2017
Nottinghamshire County Council ,Other Fee's & Services,Resources ,Debit,70,www.moneyclaim.gov,22/06/2017
Nottinghamshire County Council ,Other Fee's & Services,Resources ,Debit,77,www.moneyclaim.gov,22/06/2017
Nottinghamshire County Council ,Other Fee's & Services,Resources ,Debit,77,www.moneyclaim.gov,22/06/2017
Nottinghamshire County Council ,Other Fee's & Services,Resources ,Debit,77,www.moneyclaim.gov,22/06/2017
Nottinghamshire County Council ,Other Fee's & Services,Resources ,Debit,77,www.moneyclaim.gov,22/06/2017
Nottinghamshire County Council ,Other Fee's & Services,Resources ,Debit,631.9,www.moneyclaim.gov,20/06/2017
Nottinghamshire County Council ,Other Fee's & Services,Resources ,Debit,25,www.moneyclaim.gov,19/06/2017
Nottinghamshire County Council ,Other Fee's & Services,Resources ,Debit,25,www.moneyclaim.gov,19/06/2017
Nottinghamshire County Council ,Other Fee's & Services,Resources ,Debit,60,www.moneyclaim.gov,16/06/2017
Nottinghamshire County Council ,Other Fee's & Services,Resources ,Debit,35,www.moneyclaim.gov,16/06/2017
Nottinghamshire County Council ,Other Fee's & Services,Resources ,Debit,25,www.moneyclaim.gov,14/06/2017
Nottinghamshire County Council ,Other Fee's & Services,Resources ,Debit,77,www.moneyclaim.gov,14/06/2017
Nottinghamshire County Council ,Other Fee's & Services,Resources ,Debit,35,www.moneyclaim.gov,14/06/2017
Nottinghamshire County Council ,Other Fee's & Services,Resources ,Debit,25,www.moneyclaim.gov,14/06/2017
Nottinghamshire County Council ,Other Fee's & Services,Resources ,Debit,410,www.moneyclaim.gov,14/06/2017
Nottinghamshire County Council ,Other Fee's & Services,Resources ,Debit,25,www.moneyclaim.gov,14/06/2017
Nottinghamshire County Council ,Other Fee's & Services,Resources ,Debit,77,www.moneyclaim.gov,13/06/2017
Nottinghamshire County Council ,Other Fee's & Services,Resources ,Debit,70,www.moneyclaim.gov,13/06/2017
Nottinghamshire County Council ,Other Fee's & Services,Resources ,Debit,4,www.registry-trust.org,09/06/2017
Nottinghamshire County Council ,Other Fee's & Services,Resources ,Debit,77,www.moneyclaim.gov,05/06/2017
Nottinghamshire County Council ,Other Fee's & Services,Resources ,Debit,10,www.gov.uk,02/06/2017
Nottinghamshire County Council ,Other Fee's & Services,"Children, Families & Cultural Services ",Debit,16,paylink internet,29/06/2017
Nottinghamshire County Council ,Other Fee's & Services,"Children, Families & Cultural Services ",Debit,16.29,www.derby.gov.uk,29/06/2017
Nottinghamshire County Council ,Other Fee's & Services,"Children, Families & Cultural Services ",Debit,15.27,north lincolnshire cou,29/06/2017
Nottinghamshire County Council ,Other Fee's & Services,"Children, Families & Cultural Services ",Debit,54,http://www.derbyshire.,29/06/2017
Nottinghamshire County Council ,Foster Carers Equipment,"Children, Families & Cultural Services ",Debit,20.44,www.argos.co.uk,22/06/2017
Nottinghamshire County Council ,Other Fee's & Services,"Children, Families & Cultural Services ",Debit,16,paylink internet,21/06/2017
Nottinghamshire County Council ,Other Fee's & Services,"Children, Families & Cultural Services ",Debit,46,lincolnshire cc card p,21/06/2017
Nottinghamshire County Council ,Other Fee's & Services,"Children, Families & Cultural Services ",Credit,-23.4,gro hm passport office,13/06/2017
Nottinghamshire County Council ,Other Fee's & Services,"Children, Families & Cultural Services ",Credit,-23.4,gro hm passport office,13/06/2017
Nottinghamshire County Council ,Other Fee's & Services,"Children, Families & Cultural Services ",Debit,29.85,gro hm passport office,14/06/2017
Nottinghamshire County Council ,Other Fee's & Services,"Children, Families & Cultural Services ",Credit,-23.4,gro hm passport office,13/06/2017
Nottinghamshire County Council ,Other Fee's & Services,"Children, Families & Cultural Services ",Credit,-29.85,gro hm passport office,12/06/2017
Nottinghamshire County Council ,Other Fee's & Services,"Children, Families & Cultural Services ",Debit,153.3,gro hm passport office,13/06/2017
Nottinghamshire County Council ,Other Fee's & Services,"Children, Families & Cultural Services ",Debit,111.5,post office counter,13/06/2017
Nottinghamshire County Council ,Other Fee's & Services,"Children, Families & Cultural Services ",Credit,-23.4,gro hm passport office,13/06/2017
Nottinghamshire County Council ,Other Fee's & Services,"Children, Families & Cultural Services ",Debit,29.85,gro hm passport office,12/06/2017
Nottinghamshire County Council ,Other Fee's & Services,"Children, Families & Cultural Services ",Credit,-16.29,derby c cncl tel payme,12/06/2017
Nottinghamshire County Council ,Other Fee's & Services,"Children, Families & Cultural Services ",Debit,16.29,derby c cncl tel payme,12/06/2017
Nottinghamshire County Council ,Other Fee's & Services,"Children, Families & Cultural Services ",Debit,19,bradford met council,12/06/2017
Nottinghamshire County Council ,Other Fee's & Services,"Children, Families & Cultural Services ",Debit,27,http://www.derbyshire.,12/06/2017
Nottinghamshire County Council ,Other Fee's & Services,"Children, Families & Cultural Services ",Debit,16,paylink internet,08/06/2017
Nottinghamshire County Council ,Other Fee's & Services,"Children, Families & Cultural Services ",Credit,-46.8,gro hm passport office,07/06/2017
Nottinghamshire County Council ,Other Fee's & Services,"Children, Families & Cultural Services ",Debit,16,paylink internet,08/06/2017
Nottinghamshire County Council ,Other Fee's & Services,"Children, Families & Cultural Services ",Debit,76.65,gro hm passport office,07/06/2017
Nottinghamshire County Council ,Other Fee's & Services,"Children, Families & Cultural Services ",Debit,29.85,gro hm passport office,05/06/2017
Nottinghamshire County Council ,Other Fee's & Services,"Children, Families & Cultural Services ",Debit,35,nottingham cc,30/05/2017
Nottinghamshire County Council ,Other Fee's & Services,"Children, Families & Cultural Services ",Credit,-16,civica cnp  chp,22/05/2017
Nottinghamshire County Council ,Other Fee's & Services,"Children, Families & Cultural Services ",Debit,16,paylink internet,18/05/2017
Nottinghamshire County Council ,Other Fee's & Services,"Children, Families & Cultural Services ",Debit,16,paylink internet,18/05/2017
Nottinghamshire County Council ,Aftercare Lodging/Hostel,"Children, Families & Cultural Services ",Debit,340.28,allpay ltd,10/05/2017
Nottinghamshire County Council ,Other Fee's & Services,"Children, Families & Cultural Services ",Debit,16,paylink internet,09/05/2017
Nottinghamshire County Council ,Other Fee's & Services,"Children, Families & Cultural Services ",Debit,11,paylink internet,09/05/2017
Nottinghamshire County Council ,Other Fee's & Services,"Children, Families & Cultural Services ",Debit,111.5,post office counter,19/04/2017
Nottinghamshire County Council ,Other Fee's & Services,"Children, Families & Cultural Services ",Debit,55.75,post office counter,11/04/2017
Nottinghamshire County Council ,Other Fee's & Services,"Children, Families & Cultural Services ",Debit,111.5,post office counter,05/04/2017
Nottinghamshire County Council ,Other Fee's & Services,"Children, Families & Cultural Services ",Credit,-29.85,gro hm passport office,04/04/2017
Nottinghamshire County Council ,Other Fee's & Services,"Children, Families & Cultural Services ",Debit,29.85,gro hm passport office,05/04/2017
Nottinghamshire County Council ,Other Fee's & Services,"Children, Families & Cultural Services ",Debit,29.85,gro hm passport office,04/04/2017
Nottinghamshire County Council ,Activities & Support,"Adult Social Care, Health & Public Protection",Credit,-5.9,asda home shopping,28/04/2017
Nottinghamshire County Council ,Activities & Support,"Adult Social Care, Health & Public Protection",Debit,191.8,asda home shopping,28/04/2017
Nottinghamshire County Council ,Activities & Support,"Adult Social Care, Health & Public Protection",Debit,180.79,asda home shopping,14/04/2017
Nottinghamshire County Council ,Activities & Support,"Adult Social Care, Health & Public Protection",Debit,5,asda home shopping,07/04/2017
Nottinghamshire County Council ,Activities & Support,"Adult Social Care, Health & Public Protection",Debit,74.45,asda home shopping,26/05/2017
Nottinghamshire County Council ,Activities & Support,"Adult Social Care, Health & Public Protection",Credit,-4,asda home shopping,26/05/2017
Nottinghamshire County Council ,Activities & Support,"Adult Social Care, Health & Public Protection",Debit,81.05,asda home shopping,18/05/2017
Nottinghamshire County Council ,Activities & Support,"Adult Social Care, Health & Public Protection",Debit,183.32,asda home shopping,12/05/2017
Nottinghamshire County Council ,Activities & Support,"Adult Social Care, Health & Public Protection",Debit,5,asda home shopping,11/05/2017
Nottinghamshire County Council ,Activities & Support,"Adult Social Care, Health & Public Protection",Debit,68.45,asda home shopping,22/06/2017
Nottinghamshire County Council ,Activities & Support,"Adult Social Care, Health & Public Protection",Debit,5,asda home shopping,12/06/2017
Nottinghamshire County Council ,Activities & Support,"Adult Social Care, Health & Public Protection",Credit,-0.51,asda home shopping,08/06/2017
Nottinghamshire County Council ,Activities & Support,"Adult Social Care, Health & Public Protection",Debit,184.4,asda home shopping,08/06/2017
Nottinghamshire County Council ,Provisions,"Children, Families & Cultural Services ",Debit,5,misterton foodstre,26/06/2017
Nottinghamshire County Council ,Provisions,"Children, Families & Cultural Services ",Debit,40,wilko retail limit,23/06/2017
Nottinghamshire County Council ,Provisions,"Children, Families & Cultural Services ",Debit,11.5,silver saver limited,22/06/2017
Nottinghamshire County Council ,Provisions,"Children, Families & Cultural Services ",Debit,7.21,aldi,19/06/2017
Nottinghamshire County Council ,Provisions,"Children, Families & Cultural Services ",Debit,6.52,co-op group 012451,14/06/2017
Nottinghamshire County Council ,Provisions,"Children, Families & Cultural Services ",Debit,4.35,wilko retail limit,14/06/2017
Nottinghamshire County Council ,Provisions,"Children, Families & Cultural Services ",Debit,10,aldi,14/06/2017
Nottinghamshire County Council ,Provisions,"Children, Families & Cultural Services ",Debit,8.31,w m morrison plc,09/06/2017
Nottinghamshire County Council ,Provisions,"Children, Families & Cultural Services ",Debit,70,w m morrison plc,09/06/2017
Nottinghamshire County Council ,Provisions,"Children, Families & Cultural Services ",Debit,2.29,ryman,05/06/2017
Nottinghamshire County Council ,Provisions,"Children, Families & Cultural Services ",Debit,10.05,the works,05/06/2017
Nottinghamshire County Council ,Provisions,"Children, Families & Cultural Services ",Debit,9.01,asda stores 4475,26/05/2017
Nottinghamshire County Council ,Provisions,"Children, Families & Cultural Services ",Debit,6.76,aldi,25/05/2017
Nottinghamshire County Council ,Provisions,"Children, Families & Cultural Services ",Debit,10,wilko retail limit,23/05/2017
Nottinghamshire County Council ,Provisions,"Children, Families & Cultural Services ",Debit,9.98,farmfoods- worksop,19/05/2017
Nottinghamshire County Council ,Provisions,"Children, Families & Cultural Services ",Debit,9.18,the works,21/05/2017
Nottinghamshire County Council ,Provisions,"Children, Families & Cultural Services ",Debit,24,wilko retail limit,19/05/2017
Nottinghamshire County Council ,Provisions,"Children, Families & Cultural Services ",Debit,5.5,misterton foodstre,18/05/2017
Nottinghamshire County Council ,Provisions,"Children, Families & Cultural Services ",Debit,12.55,wilko retail limit,18/05/2017
Nottinghamshire County Council ,Provisions,"Children, Families & Cultural Services ",Debit,4.49,aldi,16/05/2017
Nottinghamshire County Council ,Provisions,"Children, Families & Cultural Services ",Debit,1.5,iceland,12/05/2017
Nottinghamshire County Council ,Provisions,"Children, Families & Cultural Services ",Debit,20,farmfoods- worksop,12/05/2017
Nottinghamshire County Council ,Provisions,"Children, Families & Cultural Services ",Debit,2.19,misterton foodstre,11/05/2017
Nottinghamshire County Council ,Provisions,"Children, Families & Cultural Services ",Debit,2.65,iceland,08/05/2017
Nottinghamshire County Council ,Provisions,"Children, Families & Cultural Services ",Debit,3.26,home bargains (retford,05/05/2017
Nottinghamshire County Council ,Provisions,"Children, Families & Cultural Services ",Debit,8.06,misterton foodstre,04/05/2017
Nottinghamshire County Council ,Provisions,"Children, Families & Cultural Services ",Debit,12.8,ken ward sports speciali,02/05/2017
Nottinghamshire County Council ,Provisions,"Children, Families & Cultural Services ",Debit,12.54,asda stores 4475,28/04/2017
Nottinghamshire County Council ,Provisions,"Children, Families & Cultural Services ",Debit,4.45,iceland,25/04/2017
Nottinghamshire County Council ,Provisions,"Children, Families & Cultural Services ",Debit,4.67,aldi,19/04/2017
Nottinghamshire County Council ,Provisions,"Children, Families & Cultural Services ",Debit,12.2,iceland,18/04/2017
Nottinghamshire County Council ,Provisions,"Children, Families & Cultural Services ",Debit,16,original factory s,18/04/2017
Nottinghamshire County Council ,Stationery,"Adult Social Care, Health & Public Protection",Debit,70,tesco stores 5437,19/04/2017
Nottinghamshire County Council ,Stationery,"Adult Social Care, Health & Public Protection",Debit,25.22,wsale office supp,10/04/2017
Nottinghamshire County Council ,Office / General Equipment,"Adult Social Care, Health & Public Protection",Debit,23.66,rs components,08/05/2017
Nottinghamshire County Council ,Stationery,"Adult Social Care, Health & Public Protection",Debit,33.24,wsale office supp,17/05/2017
Nottinghamshire County Council ,Stationery,"Adult Social Care, Health & Public Protection",Debit,13.08,wsale office supp,16/05/2017
Nottinghamshire County Council ,Fuel - Diesel,"Adult Social Care, Health & Public Protection",Debit,57.31,tesco pay at pump 4140,15/05/2017
Nottinghamshire County Council ,Postages,"Adult Social Care, Health & Public Protection",Debit,1.5,royal mail charges,12/05/2017
Nottinghamshire County Council ,Postages,"Adult Social Care, Health & Public Protection",Debit,3,royal mail charges,08/05/2017
Nottinghamshire County Council ,Software Purchases,"Adult Social Care, Health & Public Protection",Debit,167.93,ebuyer (uk) ltd,05/05/2017
Nottinghamshire County Council ,Postages,"Adult Social Care, Health & Public Protection",Debit,1.5,royal mail charges,27/06/2017
Nottinghamshire County Council ,Fuel - Diesel,"Adult Social Care, Health & Public Protection",Debit,41.89,applegreen,27/06/2017
Nottinghamshire County Council ,Internet Charges,"Adult Social Care, Health & Public Protection",Debit,10,tesco stores 5437,23/06/2017
Nottinghamshire County Council ,Stationery,"Adult Social Care, Health & Public Protection",Debit,36.4,amazon uk retail,19/06/2017
Nottinghamshire County Council ,Phone and Network (Land Lines),"Adult Social Care, Health & Public Protection",Debit,67.07,bt bill payment 2,16/06/2017
Nottinghamshire County Council ,Stationery,"Adult Social Care, Health & Public Protection",Debit,44.89,amazon uk marketplace,16/06/2017
Nottinghamshire County Council ,Other Fee's & Services,"Adult Social Care, Health & Public Protection",Debit,39,halfords 0900,07/06/2017
Nottinghamshire County Council ,Other Fee's & Services,"Adult Social Care, Health & Public Protection",Debit,500,companies house,03/04/2017
Nottinghamshire County Council ,Teaching Equipment,"Children, Families & Cultural Services ",Debit,13.97,amazon uk marketplace,03/04/2017
Nottinghamshire County Council ,Teaching Equipment,"Children, Families & Cultural Services ",Debit,10,b  q 1098,18/06/2017
Nottinghamshire County Council ,Teaching Equipment,"Children, Families & Cultural Services ",Debit,4.46,b  q 1098,18/06/2017
Nottinghamshire County Council ,Teaching Equipment,"Children, Families & Cultural Services ",Debit,146.72,paypal  ttsgroupltd,29/06/2017
Nottinghamshire County Council ,Teaching Equipment,"Children, Families & Cultural Services ",Debit,40.69,amazon uk marketplace,21/06/2017
Nottinghamshire County Council ,Teaching Equipment,"Children, Families & Cultural Services ",Debit,9.49,amazon uk marketplace,21/06/2017
Nottinghamshire County Council ,Teaching Equipment,"Children, Families & Cultural Services ",Debit,12.47,amazon uk marketplace,21/06/2017
Nottinghamshire County Council ,Teaching Equipment,"Children, Families & Cultural Services ",Debit,19.99,currys-worksop 2369,19/06/2017
Nottinghamshire County Council ,Teaching Equipment,"Children, Families & Cultural Services ",Debit,4.22,asda stores 4475,12/06/2017
Nottinghamshire County Council ,Teaching Equipment,"Children, Families & Cultural Services ",Debit,79.75,paypal  outdoor val,22/05/2017
Nottinghamshire County Council ,Teaching Equipment,"Children, Families & Cultural Services ",Debit,17.95,decathlon uk ltd,17/05/2017
Nottinghamshire County Council ,Teaching Equipment,"Children, Families & Cultural Services ",Debit,45,sportsdirect 292,30/04/2017
Nottinghamshire County Council ,Teaching Equipment,"Children, Families & Cultural Services ",Debit,123.4,wickes,27/04/2017
Nottinghamshire County Council ,Teaching Equipment,"Children, Families & Cultural Services ",Debit,19.63,amazon uk marketplace,24/04/2017
Nottinghamshire County Council ,Teaching Equipment,"Children, Families & Cultural Services ",Debit,18,wm morrisons petro,22/04/2017
Nottinghamshire County Council ,Teaching Equipment,"Children, Families & Cultural Services ",Debit,29.41,wickes,19/04/2017
Nottinghamshire County Council ,Teaching Equipment,"Children, Families & Cultural Services ",Debit,52.42,amazon uk marketplace,11/04/2017
Nottinghamshire County Council ,Teaching Equipment,"Children, Families & Cultural Services ",Debit,7.28,amazon uk marketplace,11/04/2017
Nottinghamshire County Council ,Teaching Equipment,"Children, Families & Cultural Services ",Debit,4,wm morrison store,06/04/2017
Nottinghamshire County Council ,Activities & Support,"Children, Families & Cultural Services ",Debit,2.94,aldi,12/04/2017
Nottinghamshire County Council ,Activities & Support,"Children, Families & Cultural Services ",Debit,3.49,mcdonalds,04/04/2017
Nottinghamshire County Council ,Section 17,"Children, Families & Cultural Services ",Debit,510,dfm sheffield 2,02/05/2017
Nottinghamshire County Council ,Section 17,"Children, Families & Cultural Services ",Debit,510,dfm sheffield 2,02/05/2017
Nottinghamshire County Council ,Clients - H & S Equipt,"Children, Families & Cultural Services ",Debit,131.53,asda home shopping,24/04/2017
Nottinghamshire County Council ,Clients - H & S Equipt,"Children, Families & Cultural Services ",Credit,-5.6,asda home shopping,24/04/2017
Nottinghamshire County Council ,Aftercare - Equipment,"Children, Families & Cultural Services ",Debit,348.93,www.argos.co.uk,05/04/2017
Nottinghamshire County Council ,Aftercare - Equipment,"Children, Families & Cultural Services ",Debit,259.96,www.argos.co.uk,06/04/2017
Nottinghamshire County Council ,Clients - H & S Equipt,"Children, Families & Cultural Services ",Debit,454.98,currys online,22/05/2017
Nottinghamshire County Council ,Clients - H & S Equipt,"Children, Families & Cultural Services ",Debit,30.66,asda home shopping,22/05/2017
Nottinghamshire County Council ,Clients - H & S Equipt,"Children, Families & Cultural Services ",Debit,14.99,tesco direct,22/05/2017
Nottinghamshire County Council ,Clients - H & S Equipt,"Children, Families & Cultural Services ",Debit,15.98,www.selections.com,10/05/2017
Nottinghamshire County Council ,Aftercare - Equipment,"Children, Families & Cultural Services ",Credit,-29.99,argos retail group,21/06/2017
Nottinghamshire County Council ,Aftercare - Equipment,"Children, Families & Cultural Services ",Debit,39.98,argos retail group,21/06/2017
Nottinghamshire County Council ,Aftercare - Equipment,"Children, Families & Cultural Services ",Debit,325,jrw flooring,19/06/2017
Nottinghamshire County Council ,Aftercare - Equipment,"Children, Families & Cultural Services ",Debit,24.72,www.argos.co.uk,12/06/2017
Nottinghamshire County Council ,Aftercare - Equipment,"Children, Families & Cultural Services ",Debit,50.45,ashfield district,07/06/2017
Nottinghamshire County Council ,Aftercare Lodging/Hostel,"Children, Families & Cultural Services ",Debit,38.92,ashfield district,03/04/2017
Nottinghamshire County Council ,Legal Fees,Resources ,Debit,24,severn trent sales,29/06/2017
Nottinghamshire County Council ,Legal Fees,Resources ,Debit,"2,055.00",www.hmcourt-servic,29/06/2017
Nottinghamshire County Council ,Legal Fees,Resources ,Debit,52.2,care.citrixonline.com,17/06/2017
Nottinghamshire County Council ,Legal Fees,Resources ,Debit,455,www.justice.gov.uk,02/06/2017
Nottinghamshire County Council ,Legal Fees,Resources ,Debit,12.31,amazon uk retail,02/06/2017
Nottinghamshire County Council ,Legal Fees,Resources ,Debit,37.37,amazon uk marketplace,01/06/2017
Nottinghamshire County Council ,Legal Fees,Resources ,Debit,11,paylink internet,31/05/2017
Nottinghamshire County Council ,Legal Fees,Resources ,Debit,10.64,amazon.co.uk,31/05/2017
Nottinghamshire County Council ,Legal Fees,Resources ,Debit,48.18,amazon uk marketplace,31/05/2017
Nottinghamshire County Council ,Legal Fees,Resources ,Debit,9.13,amazon uk marketplace,31/05/2017
Nottinghamshire County Council ,Legal Fees,Resources ,Debit,11,paylink internet,31/05/2017
Nottinghamshire County Council ,Legal Fees,Resources ,Debit,"2,055.00",www.justice.gov.uk,23/05/2017
Nottinghamshire County Council ,Legal Fees,Resources ,Debit,"2,055.00",www.justice.gov.uk,23/05/2017
Nottinghamshire County Council ,Legal Fees,Resources ,Debit,50,www.justice.gov.uk,23/05/2017
Nottinghamshire County Council ,Legal Fees,Resources ,Debit,"2,055.00",www.justice.gov.uk,23/05/2017
Nottinghamshire County Council ,Legal Fees,Resources ,Debit,"2,055.00",www.justice.gov.uk,23/05/2017
Nottinghamshire County Council ,Legal Fees,Resources ,Debit,"2,055.00",www.justice.gov.uk,23/05/2017
Nottinghamshire County Council ,Legal Fees,Resources ,Debit,50,www.justice.gov.uk,23/05/2017
Nottinghamshire County Council ,Legal Fees,Resources ,Debit,"2,055.00",www.justice.gov.uk,23/05/2017
Nottinghamshire County Council ,Legal Fees,Resources ,Debit,215,www.justice.gov.uk,23/05/2017
Nottinghamshire County Council ,Legal Fees,Resources ,Debit,"2,055.00",www.justice.gov.uk,23/05/2017
Nottinghamshire County Council ,Legal Fees,Resources ,Debit,"2,055.00",www.justice.gov.uk,23/05/2017
Nottinghamshire County Council ,Legal Fees,Resources ,Debit,"2,055.00",www.justice.gov.uk,23/05/2017
Nottinghamshire County Council ,Legal Fees,Resources ,Debit,121.2,www.apm.org.uk,23/05/2017
Nottinghamshire County Council ,Legal Fees,Resources ,Debit,"2,055.00",www.justice.gov.uk,23/05/2017
Nottinghamshire County Council ,Legal Fees,Resources ,Debit,155,www.justice.gov.uk,23/05/2017
Nottinghamshire County Council ,Legal Fees,Resources ,Debit,50,www.justice.gov.uk,23/05/2017
Nottinghamshire County Council ,Legal Fees,Resources ,Debit,"2,055.00",www.justice.gov.uk,23/05/2017
Nottinghamshire County Council ,Legal Fees,Resources ,Debit,50,www.justice.gov.uk,23/05/2017
Nottinghamshire County Council ,Legal Fees,Resources ,Debit,50,www.justice.gov.uk,23/05/2017
Nottinghamshire County Council ,Legal Fees,Resources ,Debit,"2,055.00",www.justice.gov.uk,23/05/2017
Nottinghamshire County Council ,Legal Fees,Resources ,Debit,"2,055.00",www.justice.gov.uk,23/05/2017
Nottinghamshire County Council ,Legal Fees,Resources ,Debit,155,www.justice.gov.uk,23/05/2017
Nottinghamshire County Council ,Legal Fees,Resources ,Debit,50,www.justice.gov.uk,23/05/2017
Nottinghamshire County Council ,Legal Fees,Resources ,Debit,"2,055.00",www.justice.gov.uk,23/05/2017
Nottinghamshire County Council ,Legal Fees,Resources ,Debit,170,www.justice.gov.uk,19/05/2017
Nottinghamshire County Council ,Legal Fees,Resources ,Debit,455,www.justice.gov.uk,19/05/2017
Nottinghamshire County Council ,Legal Fees,Resources ,Debit,455,www.justice.gov.uk,19/05/2017
Nottinghamshire County Council ,Legal Fees,Resources ,Debit,52.2,care.citrixonline.com,17/05/2017
Nottinghamshire County Council ,Legal Fees,Resources ,Debit,170,www.justice.gov.uk,09/05/2017
Nottinghamshire County Council ,Legal Fees,Resources ,Debit,"2,055.00",www.justice.gov.uk,08/05/2017
Nottinghamshire County Council ,Legal Fees,Resources ,Debit,"2,055.00",www.justice.gov.uk,08/05/2017
Nottinghamshire County Council ,Legal Fees,Resources ,Debit,155,www.justice.gov.uk,08/05/2017
Nottinghamshire County Council ,Legal Fees,Resources ,Debit,"2,055.00",www.justice.gov.uk,08/05/2017
Nottinghamshire County Council ,Legal Fees,Resources ,Debit,"2,055.00",www.justice.gov.uk,08/05/2017
Nottinghamshire County Council ,Legal Fees,Resources ,Debit,50,www.justice.gov.uk,08/05/2017
Nottinghamshire County Council ,Legal Fees,Resources ,Debit,"2,055.00",www.justice.gov.uk,08/05/2017
Nottinghamshire County Council ,Legal Fees,Resources ,Debit,455,www.justice.gov.uk,05/05/2017
Nottinghamshire County Council ,Legal Fees,Resources ,Debit,455,www.justice.gov.uk,03/05/2017
Nottinghamshire County Council ,Legal Fees,Resources ,Debit,39.83,worderyeu,27/04/2017
Nottinghamshire County Council ,Legal Fees,Resources ,Debit,52.2,gotocitrix.com,17/04/2017
Nottinghamshire County Council ,Legal Fees,Resources ,Debit,21.99,amazon uk marketplace,07/04/2017
Nottinghamshire County Council ,Legal Fees,Resources ,Debit,455,www.justice.gov.uk,06/04/2017
Nottinghamshire County Council ,Legal Fees,Resources ,Debit,10,lincolnshire cc card p,05/04/2017
Nottinghamshire County Council ,Legal Fees,Resources ,Debit,11,paylink internet,05/04/2017
Nottinghamshire County Council ,Minor Works,"Children, Families & Cultural Services ",Debit,145.33,wm morrison food.com,19/04/2017
Nottinghamshire County Council ,Minor Works,"Children, Families & Cultural Services ",Debit,73.74,amazon uk marketplace,18/04/2017
Nottinghamshire County Council ,Minor Works,"Children, Families & Cultural Services ",Debit,1,b  q 1261,24/05/2017
Nottinghamshire County Council ,Minor Works,"Children, Families & Cultural Services ",Debit,1,b  q 1261,24/05/2017
Nottinghamshire County Council ,Minor Works,"Children, Families & Cultural Services ",Debit,1,b  q 1261,24/05/2017
Nottinghamshire County Council ,Minor Works,"Children, Families & Cultural Services ",Debit,5,b  q 1261,24/05/2017
Nottinghamshire County Council ,Minor Works,"Children, Families & Cultural Services ",Debit,11.18,amazon uk marketplace,31/05/2017
Nottinghamshire County Council ,Minor Works,"Children, Families & Cultural Services ",Debit,11.98,amazon uk marketplace,25/05/2017
Nottinghamshire County Council ,Minor Works,"Children, Families & Cultural Services ",Debit,54.67,amazon uk retail,25/05/2017
Nottinghamshire County Council ,Minor Works,"Children, Families & Cultural Services ",Debit,37.98,amazon uk marketplace,25/05/2017
Nottinghamshire County Council ,Minor Works,"Children, Families & Cultural Services ",Debit,45,amazon uk marketplace,25/05/2017
Nottinghamshire County Council ,Minor Works,"Children, Families & Cultural Services ",Debit,138.85,amazon uk retail amazon.,25/05/2017
Nottinghamshire County Council ,Minor Works,"Children, Families & Cultural Services ",Debit,10.97,amazon uk marketplace,25/05/2017
Nottinghamshire County Council ,Minor Works,"Children, Families & Cultural Services ",Debit,3.5,amazon uk marketplace,24/05/2017
Nottinghamshire County Council ,Minor Works,"Children, Families & Cultural Services ",Debit,30.98,amazon uk marketplace,23/05/2017
Nottinghamshire County Council ,Minor Works,"Children, Families & Cultural Services ",Debit,99.99,amazon uk marketplace,23/05/2017
Nottinghamshire County Council ,Minor Works,"Children, Families & Cultural Services ",Debit,20.07,amazon uk marketplace,19/05/2017
Nottinghamshire County Council ,Minor Works,"Children, Families & Cultural Services ",Debit,15.07,amazon svcs europesar,21/05/2017
Nottinghamshire County Council ,Minor Works,"Children, Families & Cultural Services ",Debit,9.99,amazon uk marketplace,21/05/2017
Nottinghamshire County Council ,Minor Works,"Children, Families & Cultural Services ",Debit,68.4,amazon uk marketplace,18/05/2017
Nottinghamshire County Council ,Minor Works,"Children, Families & Cultural Services ",Debit,19.9,amazon uk marketplace,18/05/2017
Nottinghamshire County Council ,Minor Works,"Children, Families & Cultural Services ",Debit,17,mybugboxcouk,16/05/2017
Nottinghamshire County Council ,Minor Works,"Children, Families & Cultural Services ",Debit,142.9,amazon uk marketplace,20/06/2017
Nottinghamshire County Council ,Minor Works,"Children, Families & Cultural Services ",Debit,60.52,wm morrison food.com,15/06/2017
Nottinghamshire County Council ,Minor Works,"Children, Families & Cultural Services ",Debit,155.73,wm morrison food.com,07/06/2017
Nottinghamshire County Council ,Clothing And Footwear,"Adult Social Care, Health & Public Protection",Debit,154.27,amazon uk retail,17/06/2017
Nottinghamshire County Council ,Calor Gas,"Adult Social Care, Health & Public Protection",Debit,28.99,robinsons caravans,03/04/2017
Nottinghamshire County Council ,Other Fee's & Services,"Adult Social Care, Health & Public Protection",Debit,265.2,parkway secure storage,23/05/2017
Nottinghamshire County Council ,Clothing And Footwear,"Adult Social Care, Health & Public Protection",Debit,69.76,amazon uk marketplace,19/05/2017
Nottinghamshire County Council ,Calor Gas,"Adult Social Care, Health & Public Protection",Debit,28.99,robinsons caravans,11/05/2017
Nottinghamshire County Council ,Provisions,"Adult Social Care, Health & Public Protection",Debit,1.96,tesco store 3439,11/05/2017
Nottinghamshire County Council ,Catering Equipment,"Adult Social Care, Health & Public Protection",Debit,306,www.3663.co.uk,24/04/2017
Nottinghamshire County Council ,Office / General Equipment,"Adult Social Care, Health & Public Protection",Debit,265.2,parkway secure storage,24/04/2017
Nottinghamshire County Council ,Catering Equipment,"Adult Social Care, Health & Public Protection",Debit,204,health care services,05/04/2017
Nottinghamshire County Council ,Provisions,"Children, Families & Cultural Services ",Debit,22.96,b  m retail,25/05/2017
Nottinghamshire County Council ,Provisions,"Children, Families & Cultural Services ",Debit,20.95,wilko retail limit,25/05/2017
Nottinghamshire County Council ,Provisions,"Children, Families & Cultural Services ",Debit,0.99,co-op group 010671,25/05/2017
Nottinghamshire County Council ,Provisions,"Children, Families & Cultural Services ",Debit,9.17,aldi,24/05/2017
Nottinghamshire County Council ,Provisions,"Children, Families & Cultural Services ",Debit,8.72,mcdonalds,22/05/2017
Nottinghamshire County Council ,Provisions,"Children, Families & Cultural Services ",Debit,1.59,mcdonalds,22/05/2017
Nottinghamshire County Council ,Provisions,"Children, Families & Cultural Services ",Debit,4.99,decathlon,21/05/2017
Nottinghamshire County Council ,Provisions,"Children, Families & Cultural Services ",Debit,7.92,mcdonalds,18/05/2017
Nottinghamshire County Council ,Provisions,"Children, Families & Cultural Services ",Debit,12.49,bm retail,18/05/2017
Nottinghamshire County Council ,Provisions,"Children, Families & Cultural Services ",Debit,19.55,wilko retail limit,17/05/2017
Nottinghamshire County Council ,Provisions,"Children, Families & Cultural Services ",Debit,22.08,b  m retail,29/06/2017
Nottinghamshire County Council ,Provisions,"Children, Families & Cultural Services ",Debit,8.59,co-op group 011451,23/06/2017
Nottinghamshire County Council ,Provisions,"Children, Families & Cultural Services ",Debit,93.91,decathlon,21/06/2017
Nottinghamshire County Council ,Provisions,"Children, Families & Cultural Services ",Debit,3.95,co-op group 011451,21/06/2017
Nottinghamshire County Council ,Provisions,"Children, Families & Cultural Services ",Debit,8.02,co-op group 011451,19/06/2017
Nottinghamshire County Council ,Provisions,"Children, Families & Cultural Services ",Debit,2,sainsburys local,19/06/2017
Nottinghamshire County Council ,Provisions,"Children, Families & Cultural Services ",Debit,8.25,wilko retail limit,08/06/2017
Nottinghamshire County Council ,Provisions,"Children, Families & Cultural Services ",Debit,7.05,43034760 costa coffee,05/06/2017
Nottinghamshire County Council ,Provisions,"Children, Families & Cultural Services ",Debit,10.5,b  m retail,05/06/2017
Nottinghamshire County Council ,Office / General Equipment,Resources ,Debit,120,wwwtcpaorguk,29/06/2017
Nottinghamshire County Council ,Office / General Equipment,Resources ,Debit,9.23,economy of brighton b cr,28/06/2017
Nottinghamshire County Council ,Office / General Equipment,Resources ,Debit,49.99,amazon uk marketplace,27/06/2017
Nottinghamshire County Council ,Office / General Equipment,Resources ,Debit,18.99,amazon uk marketplace,27/06/2017
Nottinghamshire County Council ,Office / General Equipment,Resources ,Debit,59.9,amazon.co.uk,21/06/2017
Nottinghamshire County Council ,Office / General Equipment,Resources ,Debit,17.98,decathlon uk ltd,05/06/2017
Nottinghamshire County Council ,Office / General Equipment,Resources ,Debit,7.99,amazon prime,03/06/2017
Nottinghamshire County Council ,Office / General Equipment,Resources ,Debit,5.99,amazon uk marketplace,23/05/2017
Nottinghamshire County Council ,Office / General Equipment,Resources ,Debit,14.49,amazon uk marketplace,04/05/2017
Nottinghamshire County Council ,Office / General Equipment,Resources ,Debit,14.49,amazon uk marketplace,04/05/2017
Nottinghamshire County Council ,Office / General Equipment,Resources ,Debit,22.39,amazon uk retail amazon.,07/04/2017
Nottinghamshire County Council ,Office / General Equipment,Resources ,Debit,11.99,www.staples.co.uk,05/04/2017
Nottinghamshire County Council ,Office / General Equipment,Resources ,Debit,32.45,eb  challenging times,04/04/2017
Nottinghamshire County Council ,Provisions,"Children, Families & Cultural Services ",Debit,15.41,tesco stores 3297,27/04/2017
Nottinghamshire County Council ,Provisions,"Children, Families & Cultural Services ",Debit,6.67,lidl uk,26/04/2017
Nottinghamshire County Council ,Provisions,"Children, Families & Cultural Services ",Debit,147,tvlicensing.co.uk,24/04/2017
Nottinghamshire County Council ,Provisions,"Children, Families & Cultural Services ",Debit,11.05,tesco stores 5329,24/04/2017
Nottinghamshire County Council ,Provisions,"Children, Families & Cultural Services ",Debit,8.05,tesco stores 2702,20/04/2017
Nottinghamshire County Council ,Provisions,"Children, Families & Cultural Services ",Debit,1.9,tesco stores 2366,19/04/2017
Nottinghamshire County Council ,Provisions,"Children, Families & Cultural Services ",Debit,2.5,amazon uk marketplace,30/05/2017
Nottinghamshire County Council ,Provisions,"Children, Families & Cultural Services ",Debit,2.35,amazon uk marketplace,30/05/2017
Nottinghamshire County Council ,Provisions,"Children, Families & Cultural Services ",Debit,7.68,amazon.co.uk,26/05/2017
Nottinghamshire County Council ,Provisions,"Children, Families & Cultural Services ",Debit,6.89,tesco stores 6428,26/05/2017
Nottinghamshire County Council ,Provisions,"Children, Families & Cultural Services ",Debit,5.07,amazon uk marketplace,25/05/2017
Nottinghamshire County Council ,Provisions,"Children, Families & Cultural Services ",Debit,6.48,amazon.co.uk,25/05/2017
Nottinghamshire County Council ,Provisions,"Children, Families & Cultural Services ",Debit,5,tesco stores 5329,24/05/2017
Nottinghamshire County Council ,Provisions,"Children, Families & Cultural Services ",Debit,19.44,lidl uk,24/05/2017
Nottinghamshire County Council ,Provisions,"Children, Families & Cultural Services ",Debit,0.5,tesco stores 5329,24/05/2017
Nottinghamshire County Council ,Provisions,"Children, Families & Cultural Services ",Debit,26.09,tesco stores 5329,22/05/2017
Nottinghamshire County Council ,Provisions,"Children, Families & Cultural Services ",Debit,6.92,tesco stores 5329,19/05/2017
Nottinghamshire County Council ,Provisions,"Children, Families & Cultural Services ",Debit,7.15,sainsburys s/mkts,18/05/2017
Nottinghamshire County Council ,Provisions,"Children, Families & Cultural Services ",Debit,4.27,tesco stores 2366,17/05/2017
Nottinghamshire County Council ,Provisions,"Children, Families & Cultural Services ",Debit,15.34,tesco stores 5329,15/05/2017
Nottinghamshire County Council ,Provisions,"Children, Families & Cultural Services ",Debit,4.84,tesco stores 3297,11/05/2017
Nottinghamshire County Council ,Provisions,"Children, Families & Cultural Services ",Debit,1.92,lidl uk,11/05/2017
Nottinghamshire County Council ,Provisions,"Children, Families & Cultural Services ",Debit,8,tesco stores 5329,08/05/2017
Nottinghamshire County Council ,Provisions,"Children, Families & Cultural Services ",Debit,19.99,amazon uk retail amazon.,07/05/2017
Nottinghamshire County Council ,Provisions,"Children, Families & Cultural Services ",Debit,12.76,asda stores,05/05/2017
Nottinghamshire County Council ,Provisions,"Children, Families & Cultural Services ",Debit,94.15,booker limited nottingha,04/05/2017
Nottinghamshire County Council ,Provisions,"Children, Families & Cultural Services ",Debit,17.87,tesco stores 5329,04/05/2017
Nottinghamshire County Council ,Provisions,"Children, Families & Cultural Services ",Debit,2.58,co-op group 310059,29/06/2017
Nottinghamshire County Council ,Provisions,"Children, Families & Cultural Services ",Debit,5.5,tesco stores 5329,26/06/2017
Nottinghamshire County Council ,Provisions,"Children, Families & Cultural Services ",Debit,4.07,tesco stores 5329,26/06/2017
Nottinghamshire County Council ,Provisions,"Children, Families & Cultural Services ",Debit,4.98,tesco stores 2366,23/06/2017
Nottinghamshire County Council ,Provisions,"Children, Families & Cultural Services ",Debit,10.57,lidl uk,21/06/2017
Nottinghamshire County Council ,Provisions,"Children, Families & Cultural Services ",Debit,7.87,tesco stores 5329,19/06/2017
Nottinghamshire County Council ,Provisions,"Children, Families & Cultural Services ",Debit,183.46,booker limited nottingha,14/06/2017
Nottinghamshire County Council ,Provisions,"Children, Families & Cultural Services ",Debit,2.99,home bargains,14/06/2017
Nottinghamshire County Council ,Provisions,"Children, Families & Cultural Services ",Debit,19.71,tesco stores 5329,12/06/2017
Nottinghamshire County Council ,Provisions,"Children, Families & Cultural Services ",Debit,14,timpson ltd,12/06/2017
Nottinghamshire County Council ,Provisions,"Children, Families & Cultural Services ",Debit,14.77,poundstretcher 571,07/06/2017
Nottinghamshire County Council ,Provisions,"Children, Families & Cultural Services ",Debit,6.07,lidl uk,05/06/2017
Nottinghamshire County Council ,Provisions,"Adult Social Care, Health & Public Protection",Debit,7.99,audible ltd,06/04/2017
Nottinghamshire County Council ,Office / General Equipment,Place,Debit,54,phone shop,13/04/2017
Nottinghamshire County Council ,Office / General Equipment,Place,Debit,54,phone shop,13/04/2017
Nottinghamshire County Council ,Office / General Equipment,Place,Debit,54,phone shop,13/04/2017
Nottinghamshire County Council ,Office / General Equipment,Place,Debit,83.3,amazon uk marketplace,10/04/2017
Nottinghamshire County Council ,Office / General Equipment,Place,Debit,58,cotswold medicals ltd,04/04/2017
Nottinghamshire County Council ,Office / General Equipment,Place,Debit,139.99,currys online,01/06/2017
Nottinghamshire County Council ,Office / General Equipment,Place,Debit,192.42,www.lighthouseuk.com,26/05/2017
Nottinghamshire County Council ,Office / General Equipment,Place,Debit,86.58,screwfix direct,17/05/2017
Nottinghamshire County Council ,Office / General Equipment,Place,Debit,293.2,nrs healthcare,23/06/2017
Nottinghamshire County Council ,Office / General Equipment,Place,Debit,130.2,amazon uk marketplace,19/06/2017
Nottinghamshire County Council ,Office / General Equipment,Place,Debit,65.25,www.toolstation.com,05/06/2017
Nottinghamshire County Council ,Office / General Equipment,Place,Debit,149.75,don ruffles ltd,03/04/2017
Nottinghamshire County Council ,Family Financial Assistance,"Children, Families & Cultural Services ",Debit,86.85,ashfield district,03/04/2017
Nottinghamshire County Council ,Family Financial Assistance,"Children, Families & Cultural Services ",Debit,33.98,argos retail group,27/06/2017
Nottinghamshire County Council ,Family Financial Assistance,"Children, Families & Cultural Services ",Debit,10,paypal  freedomprog,19/06/2017
Nottinghamshire County Council ,Family Financial Assistance,"Children, Families & Cultural Services ",Debit,137.7,a b waste disposal ltd,09/06/2017
Nottinghamshire County Council ,Family Financial Assistance,"Children, Families & Cultural Services ",Debit,9.25,gro hm passport office,02/06/2017
Nottinghamshire County Council ,Family Financial Assistance,"Children, Families & Cultural Services ",Debit,91.35,ashfield district,01/06/2017
Nottinghamshire County Council ,Family Financial Assistance,"Children, Families & Cultural Services ",Debit,91.35,ashfield district,02/05/2017
Nottinghamshire County Council ,Family Financial Assistance,"Children, Families & Cultural Services ",Debit,132.6,a b waste disposal ltd,02/05/2017
Nottinghamshire County Council ,Family Financial Assistance,"Children, Families & Cultural Services ",Debit,214.2,a b waste disposal ltd,25/04/2017
Nottinghamshire County Council ,Activities & Support,"Children, Families & Cultural Services ",Debit,9,tramlink nottingham limi,18/04/2017
Nottinghamshire County Council ,Activities & Support,"Children, Families & Cultural Services ",Debit,23.14,mcdonalds,18/04/2017
Nottinghamshire County Council ,Activities & Support,"Children, Families & Cultural Services ",Debit,12.45,frankie  bennys 5176,11/04/2017
Nottinghamshire County Council ,Activities & Support,"Children, Families & Cultural Services ",Debit,10.8,the holocaust centre,06/04/2017
Nottinghamshire County Council ,Activities & Support,"Children, Families & Cultural Services ",Debit,19.48,wm morrisons,05/04/2017
Nottinghamshire County Council ,Activities & Support,"Children, Families & Cultural Services ",Debit,18.65,wm morrison 023,04/04/2017
Nottinghamshire County Council ,Activities & Support,"Children, Families & Cultural Services ",Debit,12.99,tk maxx,23/05/2017
Nottinghamshire County Council ,Activities & Support,"Children, Families & Cultural Services ",Debit,30,tk maxx,23/05/2017
Nottinghamshire County Council ,Activities & Support,"Children, Families & Cultural Services ",Debit,30,jd sports 347,23/05/2017
Nottinghamshire County Council ,Activities & Support,"Children, Families & Cultural Services ",Debit,6.7,marksspencer plc,23/05/2017
Nottinghamshire County Council ,Activities & Support,"Children, Families & Cultural Services ",Debit,3.5,euro garages stock,22/05/2017
Nottinghamshire County Council ,Activities & Support,"Children, Families & Cultural Services ",Debit,20.62,mcdonalds,18/05/2017
Nottinghamshire County Council ,Activities & Support,"Children, Families & Cultural Services ",Debit,10.75,mcdonalds,17/05/2017
Nottinghamshire County Council ,Activities & Support,"Children, Families & Cultural Services ",Debit,5.98,mcdonalds,17/05/2017
Nottinghamshire County Council ,Activities & Support,"Children, Families & Cultural Services ",Debit,6.07,mcdonalds,15/05/2017
Nottinghamshire County Council ,Activities & Support,"Children, Families & Cultural Services ",Debit,16.35,ikea limited,10/05/2017
Nottinghamshire County Council ,Activities & Support,"Children, Families & Cultural Services ",Debit,24.12,tesco stores 5379,20/06/2017
Nottinghamshire County Council ,Activities & Support,"Children, Families & Cultural Services ",Debit,17,wm morrisons,19/06/2017
Nottinghamshire County Council ,Activities & Support,"Children, Families & Cultural Services ",Debit,15.96,bm retail,09/06/2017
Nottinghamshire County Council ,Activities & Support,"Children, Families & Cultural Services ",Debit,24.75,amazon uk marketplace,07/06/2017
Nottinghamshire County Council ,Activities & Support,"Children, Families & Cultural Services ",Debit,160.27,theticketfactory,05/06/2017
Nottinghamshire County Council ,Activities & Support,"Children, Families & Cultural Services ",Debit,1.14,tesco stores 6713,02/06/2017
Nottinghamshire County Council ,Activities & Support,"Children, Families & Cultural Services ",Debit,4,sherwood plaice,02/06/2017
Nottinghamshire County Council ,Activities & Support,"Children, Families & Cultural Services ",Debit,24.99,lidl uk,02/06/2017
Nottinghamshire County Council ,Activities & Support,"Children, Families & Cultural Services ",Debit,32,sherwood plaice,02/06/2017
Nottinghamshire County Council ,Activities & Support,"Children, Families & Cultural Services ",Debit,27.83,tesco stores 3297,30/06/2017
Nottinghamshire County Council ,Activities & Support,"Children, Families & Cultural Services ",Debit,5.59,sainsburys spmkts,22/06/2017
Nottinghamshire County Council ,Activities & Support,"Children, Families & Cultural Services ",Debit,2.1,sainsburys spmkts,15/06/2017
Nottinghamshire County Council ,Activities & Support,"Children, Families & Cultural Services ",Debit,4.45,sainsburys spmkts,13/06/2017
Nottinghamshire County Council ,Activities & Support,"Children, Families & Cultural Services ",Debit,4.74,sainsburys spmkts,09/06/2017
Nottinghamshire County Council ,Activities & Support,"Children, Families & Cultural Services ",Debit,47.76,booker limited nottingha,08/06/2017
Nottinghamshire County Council ,Activities & Support,"Children, Families & Cultural Services ",Debit,7.66,tesco stores 3297,25/05/2017
Nottinghamshire County Council ,Activities & Support,"Children, Families & Cultural Services ",Debit,6.15,sainsburys spmkts,19/05/2017
Nottinghamshire County Council ,Activities & Support,"Children, Families & Cultural Services ",Debit,40,sportsdirect 236,11/05/2017
Nottinghamshire County Council ,Activities & Support,"Children, Families & Cultural Services ",Debit,15.67,lidl uk,05/05/2017
Nottinghamshire County Council ,Activities & Support,"Children, Families & Cultural Services ",Debit,17.97,lidl uk,05/05/2017
Nottinghamshire County Council ,Activities & Support,"Children, Families & Cultural Services ",Debit,8.72,lidl uk,28/04/2017
Nottinghamshire County Council ,Activities & Support,"Children, Families & Cultural Services ",Debit,1.5,sainsburys spmkts,28/04/2017
Nottinghamshire County Council ,Activities & Support,"Children, Families & Cultural Services ",Debit,8.23,lidl uk,24/04/2017
Nottinghamshire County Council ,Activities & Support,"Children, Families & Cultural Services ",Debit,12.05,sainsburys spmkts,21/04/2017
Nottinghamshire County Council ,Activities & Support,"Children, Families & Cultural Services ",Debit,6.05,tesco stores 2702,20/04/2017
Nottinghamshire County Council ,Activities & Support,"Children, Families & Cultural Services ",Debit,7.1,sainsburys spmkts,18/04/2017
Nottinghamshire County Council ,Window Cleaning,"Children, Families & Cultural Services ",Debit,350,retford waste,11/04/2017
Nottinghamshire County Council ,Other Fee's & Services,"Children, Families & Cultural Services ",Debit,11,paylink internet,05/04/2017
Nottinghamshire County Council ,Aftercare Lodging/Hostel,"Children, Families & Cultural Services ",Debit,210,elms hotel hotel,01/06/2017
Nottinghamshire County Council ,Aftercare Lodging/Hostel,"Children, Families & Cultural Services ",Debit,10,travelodge gb0507,05/06/2017
Nottinghamshire County Council ,Aftercare Lodging/Hostel,"Children, Families & Cultural Services ",Debit,142,travelodge gb0000,02/06/2017
Nottinghamshire County Council ,Personal Needs,"Children, Families & Cultural Services ",Debit,13,disclosure  barring,05/06/2017
Nottinghamshire County Council ,Agency Staff,Resources ,Debit,996.17,wpy modern dev llczoho63,29/06/2017
Nottinghamshire County Council ,Software Purchases,Resources ,Debit,85.31,pure chat inc,23/06/2017
Nottinghamshire County Council ,Software Purchases,Resources ,Debit,197.96,godaddy com europe,13/06/2017
Nottinghamshire County Council ,Software Purchases,Resources ,Debit,121.38,bc.basecamp 112397,12/06/2017
Nottinghamshire County Council ,Software Purchases,Resources ,Debit,20.04,github.com ,03/06/2017
Nottinghamshire County Council ,Software Purchases,Resources ,Debit,20.66,github.com ,03/04/2017
Nottinghamshire County Council ,Software Purchases,Resources ,Debit,83.47,pure chat inc,23/05/2017
Nottinghamshire County Council ,Software Purchases,Resources ,Debit,119.44,bc.basecamp 112397,12/05/2017
Nottinghamshire County Council ,Software Purchases,Resources ,Debit,20.02,github.com  ,03/05/2017
Nottinghamshire County Council ,Software Purchases,Resources ,Debit,232.76,fsprg.com vueminder,25/04/2017
Nottinghamshire County Council ,Software Purchases,Resources ,Debit,74.99,amazon uk marketplace,26/04/2017
Nottinghamshire County Council ,Office / General Equipment,Resources ,Debit,58.19,fsprg.com vueminder,25/04/2017
Nottinghamshire County Council ,Software Purchases,Resources ,Debit,84.74,pure chat inc,23/04/2017
Nottinghamshire County Council ,Agency Staff,Resources ,Debit,"1,007.64",wpy modern dev llczoho63,20/04/2017
Nottinghamshire County Council ,Software Purchases,Resources ,Debit,122.94,bc.basecamp 112397,12/04/2017
Nottinghamshire County Council ,Provisions,"Children, Families & Cultural Services ",Debit,4.37,tesco stores 5091,28/04/2017
Nottinghamshire County Council ,Provisions,"Children, Families & Cultural Services ",Debit,54.2,tesco stores 2995,25/04/2017
Nottinghamshire County Council ,Provisions,"Children, Families & Cultural Services ",Debit,5.7,tesco stores 2995,25/04/2017
Nottinghamshire County Council ,Provisions,"Children, Families & Cultural Services ",Debit,5.16,tesco stores 5091,21/04/2017
Nottinghamshire County Council ,Provisions,"Children, Families & Cultural Services ",Debit,8.59,heron foods ltd,19/04/2017
Nottinghamshire County Council ,Provisions,"Children, Families & Cultural Services ",Debit,6.6,tesco stores 5091,26/05/2017
Nottinghamshire County Council ,Provisions,"Children, Families & Cultural Services ",Debit,0.8,tesco stores 2995,24/05/2017
Nottinghamshire County Council ,Provisions,"Children, Families & Cultural Services ",Debit,19.82,key diy ltd,23/05/2017
Nottinghamshire County Council ,Provisions,"Children, Families & Cultural Services ",Debit,7.78,tesco stores 2995,23/05/2017
Nottinghamshire County Council ,Provisions,"Children, Families & Cultural Services ",Debit,6,tesco stores 2995,23/05/2017
Nottinghamshire County Council ,Provisions,"Children, Families & Cultural Services ",Debit,6.04,tesco stores 5091,19/05/2017
Nottinghamshire County Council ,Provisions,"Children, Families & Cultural Services ",Debit,6.18,asda stores 4474,18/05/2017
Nottinghamshire County Council ,Provisions,"Children, Families & Cultural Services ",Debit,15,sainsburys spmrkts,12/05/2017
Nottinghamshire County Council ,Provisions,"Children, Families & Cultural Services ",Debit,9.34,tesco stores 2995,11/05/2017
Nottinghamshire County Council ,Provisions,"Children, Families & Cultural Services ",Debit,8.1,heron foods ltd,10/05/2017
Nottinghamshire County Council ,Provisions,"Children, Families & Cultural Services ",Debit,4,one stop 3018,10/05/2017
Nottinghamshire County Council ,Provisions,"Children, Families & Cultural Services ",Debit,5.65,asda  stores 4201,05/05/2017
Nottinghamshire County Council ,Provisions,"Children, Families & Cultural Services ",Debit,7.17,tesco stores 5091,30/06/2017
Nottinghamshire County Council ,Provisions,"Children, Families & Cultural Services ",Debit,6.85,w boyes  co ltd,29/06/2017
Nottinghamshire County Council ,Provisions,"Children, Families & Cultural Services ",Debit,3.7,tesco stores 2995,29/06/2017
Nottinghamshire County Council ,Provisions,"Children, Families & Cultural Services ",Debit,6.75,tesco stores 5091,23/06/2017
Nottinghamshire County Council ,Provisions,"Children, Families & Cultural Services ",Debit,7.41,tesco stores 2995,22/06/2017
Nottinghamshire County Council ,Provisions,"Children, Families & Cultural Services ",Debit,17.46,w boyes  co ltd,14/06/2017
Nottinghamshire County Council ,Provisions,"Children, Families & Cultural Services ",Debit,11.12,lidl uk,09/06/2017
Nottinghamshire County Council ,Training Fees,"Adult Social Care, Health & Public Protection",Debit,1.4,b  q 1261,23/06/2017
Nottinghamshire County Council ,Training Fees,"Adult Social Care, Health & Public Protection",Debit,2.97,b  q 1261,23/06/2017
Nottinghamshire County Council ,Training Fees,"Adult Social Care, Health & Public Protection",Debit,1.4,b  q 1261,23/06/2017
Nottinghamshire County Council ,Training Fees,"Adult Social Care, Health & Public Protection",Debit,2.97,b  q 1261,23/06/2017
Nottinghamshire County Council ,Training Fees,"Adult Social Care, Health & Public Protection",Debit,18.32,b  q 1261,23/06/2017
Nottinghamshire County Council ,Training Fees,"Adult Social Care, Health & Public Protection",Debit,3.87,b  q 1261,14/06/2017
Nottinghamshire County Council ,Training Fees,"Adult Social Care, Health & Public Protection",Debit,3.87,b  q 1261,14/06/2017
Nottinghamshire County Council ,Training Fees,"Adult Social Care, Health & Public Protection",Debit,2.97,b  q 1261,14/06/2017
Nottinghamshire County Council ,Training Fees,"Adult Social Care, Health & Public Protection",Debit,6.55,b  q 1261,08/06/2017
Nottinghamshire County Council ,Training Fees,"Adult Social Care, Health & Public Protection",Debit,6.55,b  q 1261,08/06/2017
Nottinghamshire County Council ,Training Fees,"Adult Social Care, Health & Public Protection",Debit,6.93,b  q 1261,08/06/2017
Nottinghamshire County Council ,Training Fees,"Adult Social Care, Health & Public Protection",Debit,6.93,b  q 1261,08/06/2017
Nottinghamshire County Council ,Training Fees,"Adult Social Care, Health & Public Protection",Debit,6.55,b  q 1261,08/06/2017
Nottinghamshire County Council ,Training Fees,"Adult Social Care, Health & Public Protection",Debit,6.55,b  q 1261,08/06/2017
Nottinghamshire County Council ,Training Fees,"Adult Social Care, Health & Public Protection",Debit,6.55,b  q 1261,08/06/2017
Nottinghamshire County Council ,Training Fees,"Adult Social Care, Health & Public Protection",Debit,6.93,b  q 1261,08/06/2017
Nottinghamshire County Council ,Training Fees,"Adult Social Care, Health & Public Protection",Debit,6.55,b  q 1261,08/06/2017
Nottinghamshire County Council ,Training Fees,"Adult Social Care, Health & Public Protection",Debit,7.98,city plumbing supp,06/06/2017
Nottinghamshire County Council ,Training Fees,"Adult Social Care, Health & Public Protection",Debit,15.6,amazon uk retail,29/06/2017
Nottinghamshire County Council ,Training Fees,"Adult Social Care, Health & Public Protection",Debit,1.79,amazon uk marketplace,27/06/2017
Nottinghamshire County Council ,Training Fees,"Adult Social Care, Health & Public Protection",Debit,13.99,amazon.co.uk,27/06/2017
Nottinghamshire County Council ,Training Fees,"Adult Social Care, Health & Public Protection",Debit,12.58,amazon uk marketplace,27/06/2017
Nottinghamshire County Council ,Training Fees,"Adult Social Care, Health & Public Protection",Debit,27.69,amazon uk marketplace,27/06/2017
Nottinghamshire County Council ,Training Fees,"Adult Social Care, Health & Public Protection",Debit,54.99,world of water,24/06/2017
Nottinghamshire County Council ,Training Fees,"Adult Social Care, Health & Public Protection",Debit,19.99,screwfix mansfield,21/06/2017
Nottinghamshire County Council ,Training Fees,"Adult Social Care, Health & Public Protection",Debit,212.6,b  q 1261,14/06/2017
Nottinghamshire County Council ,Training Fees,"Adult Social Care, Health & Public Protection",Debit,50.11,asda store ston in as,13/06/2017
Nottinghamshire County Council ,Training Fees,"Adult Social Care, Health & Public Protection",Debit,98.74,aldi,13/06/2017
Nottinghamshire County Council ,Training Fees,"Adult Social Care, Health & Public Protection",Debit,59.98,argos ltd,08/06/2017
Nottinghamshire County Council ,Training Fees,"Adult Social Care, Health & Public Protection",Debit,184.4,high park industries l,08/06/2017
Nottinghamshire County Council ,Training Fees,"Adult Social Care, Health & Public Protection",Debit,87.15,b  q 1261,05/06/2017
Nottinghamshire County Council ,Training Fees,"Adult Social Care, Health & Public Protection",Debit,165.82,wickes,05/06/2017
Nottinghamshire County Council ,Training Fees,"Adult Social Care, Health & Public Protection",Debit,7.99,amazon prime,04/06/2017
Nottinghamshire County Council ,Training Fees,"Adult Social Care, Health & Public Protection",Debit,17,b  q 1261,01/06/2017
Nottinghamshire County Council ,Training Fees,"Adult Social Care, Health & Public Protection",Debit,185,future mini mix ltd,01/06/2017
Nottinghamshire County Council ,Training Fees,"Adult Social Care, Health & Public Protection",Debit,16.48,amazon uk marketplace,26/05/2017
Nottinghamshire County Council ,Training Fees,"Adult Social Care, Health & Public Protection",Debit,2.99,amazon uk marketplace,26/05/2017
Nottinghamshire County Council ,Training Fees,"Adult Social Care, Health & Public Protection",Debit,479.08,amazon uk marketplace,19/05/2017
Nottinghamshire County Council ,Training Fees,"Adult Social Care, Health & Public Protection",Debit,125.94,machine mart ltd,09/05/2017
Nottinghamshire County Council ,Training Fees,"Adult Social Care, Health & Public Protection",Debit,59.99,argos ltd,09/05/2017
Nottinghamshire County Council ,Training Fees,"Adult Social Care, Health & Public Protection",Debit,31.96,amazon svcs europesar,08/05/2017
Nottinghamshire County Council ,Training Fees,"Adult Social Care, Health & Public Protection",Debit,108.41,amazon uk marketplace,08/05/2017
Nottinghamshire County Council ,Training Fees,"Adult Social Care, Health & Public Protection",Debit,13.44,amazon uk marketplace,08/05/2017
Nottinghamshire County Council ,Training Fees,"Adult Social Care, Health & Public Protection",Debit,44.77,amazon uk marketplace,08/05/2017
Nottinghamshire County Council ,Training Fees,"Adult Social Care, Health & Public Protection",Debit,393.45,argos ltd,08/05/2017
Nottinghamshire County Council ,Training Fees,"Adult Social Care, Health & Public Protection",Debit,76.93,the lockshop (sia) ltd,05/05/2017
Nottinghamshire County Council ,Training Fees,"Adult Social Care, Health & Public Protection",Debit,2.15,amazon uk marketplace,06/05/2017
Nottinghamshire County Council ,Training Fees,"Adult Social Care, Health & Public Protection",Debit,38,b  q 1261,22/04/2017
Nottinghamshire County Council ,Training Fees,"Adult Social Care, Health & Public Protection",Debit,1.5,b  q 1261,22/04/2017
Nottinghamshire County Council ,Training Fees,"Adult Social Care, Health & Public Protection",Debit,1.5,b  q 1261,22/04/2017
Nottinghamshire County Council ,Training Fees,"Adult Social Care, Health & Public Protection",Debit,8,b  q 1261,22/04/2017
Nottinghamshire County Council ,Training Fees,"Adult Social Care, Health & Public Protection",Debit,8,b  q 1261,22/04/2017
Nottinghamshire County Council ,Training Fees,"Adult Social Care, Health & Public Protection",Debit,26,b  q 1261,22/04/2017
Nottinghamshire County Council ,Training Fees,"Adult Social Care, Health & Public Protection",Debit,189.64,asda store ston in as,02/05/2017
Nottinghamshire County Council ,Training Fees,"Adult Social Care, Health & Public Protection",Debit,18,asda store ston in as,02/05/2017
Nottinghamshire County Council ,Training Fees,"Adult Social Care, Health & Public Protection",Debit,214.2,a b waste disposal ltd,02/05/2017
Nottinghamshire County Council ,Training Fees,"Adult Social Care, Health & Public Protection",Debit,146.6,safety buyer uk limited,27/04/2017
Nottinghamshire County Council ,Training Fees,"Adult Social Care, Health & Public Protection",Debit,351.25,hatton model railways,27/04/2017
Nottinghamshire County Council ,Training Fees,"Adult Social Care, Health & Public Protection",Debit,15.74,amazon uk marketplace,27/04/2017
Nottinghamshire County Council ,Training Fees,"Adult Social Care, Health & Public Protection",Debit,99.49,amazon uk marketplace,27/04/2017
Nottinghamshire County Council ,Training Fees,"Adult Social Care, Health & Public Protection",Debit,18.45,screwfix mansfield,24/04/2017
Nottinghamshire County Council ,Training Fees,"Adult Social Care, Health & Public Protection",Debit,31.98,amazon uk marketplace,11/04/2017
Nottinghamshire County Council ,Training Fees,"Adult Social Care, Health & Public Protection",Debit,98,amazon uk marketplace,10/04/2017
Nottinghamshire County Council ,Training Fees,"Adult Social Care, Health & Public Protection",Debit,1.99,amazon uk marketplace,07/04/2017
Nottinghamshire County Council ,Training Fees,"Adult Social Care, Health & Public Protection",Debit,32.23,amazon uk marketplace,07/04/2017
Nottinghamshire County Council ,Training Fees,"Adult Social Care, Health & Public Protection",Debit,42.41,bm retail ltd,07/04/2017
Nottinghamshire County Council ,Training Fees,"Adult Social Care, Health & Public Protection",Debit,110.72,screwfix mansfield,07/04/2017
Nottinghamshire County Council ,Training Fees,"Adult Social Care, Health & Public Protection",Debit,28.27,amazon uk marketplace,06/04/2017
Nottinghamshire County Council ,Training Fees,"Adult Social Care, Health & Public Protection",Debit,11.81,amazon uk marketplace,06/04/2017
Nottinghamshire County Council ,Training Fees,"Adult Social Care, Health & Public Protection",Debit,14.97,wickes,06/04/2017
Nottinghamshire County Council ,Training Fees,"Adult Social Care, Health & Public Protection",Debit,122.97,wickes,06/04/2017
Nottinghamshire County Council ,Training Fees,"Adult Social Care, Health & Public Protection",Debit,44,pp amelectric,06/04/2017
Nottinghamshire County Council ,Training Fees,"Adult Social Care, Health & Public Protection",Debit,57.4,aldi,06/04/2017
Nottinghamshire County Council ,Training Fees,"Adult Social Care, Health & Public Protection",Debit,91.88,asda store ston in as,06/04/2017
Nottinghamshire County Council ,Clients - H & S Equipt,"Children, Families & Cultural Services ",Debit,10.77,manor road express 183,03/05/2017
Nottinghamshire County Council ,Clients - H & S Equipt,"Children, Families & Cultural Services ",Debit,219,argos ltd,26/04/2017
Nottinghamshire County Council ,Clients - H & S Equipt,"Children, Families & Cultural Services ",Debit,51.9,wilko retail limit,26/04/2017
Nottinghamshire County Council ,Clients - H & S Equipt,"Children, Families & Cultural Services ",Debit,11.99,carphone warehouse,25/04/2017
Nottinghamshire County Council ,Clients - H & S Equipt,"Children, Families & Cultural Services ",Debit,4,trinity sq car park up,24/04/2017
Nottinghamshire County Council ,Clients - H & S Equipt,"Children, Families & Cultural Services ",Debit,252.4,ikea limited,21/04/2017
Nottinghamshire County Council ,Clients - H & S Equipt,"Children, Families & Cultural Services ",Debit,2.6,ikea limited,21/04/2017
Nottinghamshire County Council ,Clients - H & S Equipt,"Children, Families & Cultural Services ",Debit,25,ikea limited,21/04/2017
Nottinghamshire County Council ,Clients - H & S Equipt,"Children, Families & Cultural Services ",Debit,4.6,costa coffee,10/04/2017
Nottinghamshire County Council ,Clients - H & S Equipt,"Children, Families & Cultural Services ",Debit,11.03,inn keepers fayre,18/05/2017
Nottinghamshire County Council ,Clients - H & S Equipt,"Children, Families & Cultural Services ",Debit,4.5,inn keepers fayre,18/05/2017
Nottinghamshire County Council ,Aftercare - Equipment,"Children, Families & Cultural Services ",Debit,90,ikea online,17/05/2017
Nottinghamshire County Council ,Clients - H & S Equipt,"Children, Families & Cultural Services ",Debit,15.24,sainsburys s/mkts,15/05/2017
Nottinghamshire County Council ,Clients - H & S Equipt,"Children, Families & Cultural Services ",Debit,8,sourced market,12/05/2017
Nottinghamshire County Council ,Clients - H & S Equipt,"Children, Families & Cultural Services ",Debit,9.8,lul ticket machine,12/05/2017
Nottinghamshire County Council ,Clients - H & S Equipt,"Children, Families & Cultural Services ",Debit,2.4,subway,10/05/2017
Nottinghamshire County Council ,Clients - H & S Equipt,"Children, Families & Cultural Services ",Debit,10,sainsburys s/mkts,08/05/2017
Nottinghamshire County Council ,Clients - H & S Equipt,"Children, Families & Cultural Services ",Debit,27.08,one stop 2800,05/05/2017
Nottinghamshire County Council ,Clients - H & S Equipt,"Children, Families & Cultural Services ",Debit,4.19,tesco stores 5329,04/05/2017
Nottinghamshire County Council ,Clients - H & S Equipt,"Children, Families & Cultural Services ",Debit,4,framework housing asso,04/05/2017
Nottinghamshire County Council ,Clients - H & S Equipt,"Children, Families & Cultural Services ",Debit,87.8,east midlands trains,29/06/2017
Nottinghamshire County Council ,Clients - H & S Equipt,"Children, Families & Cultural Services ",Debit,5.8,costa mapperley,28/06/2017
Nottinghamshire County Council ,Clients - H & S Equipt,"Children, Families & Cultural Services ",Debit,7.75,wilko restaurant,28/06/2017
Nottinghamshire County Council ,Clients - H & S Equipt,"Children, Families & Cultural Services ",Debit,5.3,silver spoon,14/06/2017
Nottinghamshire County Council ,Clients - H & S Equipt,"Children, Families & Cultural Services ",Debit,6.45,the picture cafe limit,12/06/2017
Nottinghamshire County Council ,Clients - H & S Equipt,"Children, Families & Cultural Services ",Debit,8,sainsburys s/mkts,12/06/2017
Nottinghamshire County Council ,Clients - H & S Equipt,"Children, Families & Cultural Services ",Debit,50,tesco stores 6439,06/06/2017
Nottinghamshire County Council ,Aftercare - Equipment,"Children, Families & Cultural Services ",Debit,229.99,www.argos.co.uk,02/06/2017
Nottinghamshire County Council ,Office / General Equipment,"Children, Families & Cultural Services ",Debit,298.86,kilmann diagnostics,29/06/2017
Nottinghamshire County Council ,Office / General Equipment,"Children, Families & Cultural Services ",Debit,26,times newspapers ltd,22/06/2017
Nottinghamshire County Council ,Office / General Equipment,"Children, Families & Cultural Services ",Debit,30,http://www.derbyshire.,14/06/2017
Nottinghamshire County Council ,Office / General Equipment,"Children, Families & Cultural Services ",Debit,26,times newspapers ltd,22/05/2017
Nottinghamshire County Council ,Office / General Equipment,"Children, Families & Cultural Services ",Debit,26,times newspapers ltd,22/04/2017
Nottinghamshire County Council ,Other Fee's & Services,"Children, Families & Cultural Services ",Debit,23.4,gro hm passport office,03/05/2017
Nottinghamshire County Council ,Other Fee's & Services,"Children, Families & Cultural Services ",Debit,12,www.wandsworth.gov.uk,26/04/2017
Nottinghamshire County Council ,Other Fee's & Services,"Children, Families & Cultural Services ",Debit,11.2,www.derby.gov.uk,04/04/2017
Nottinghamshire County Council ,Other Fee's & Services,"Children, Families & Cultural Services ",Debit,36,uk deed poll service ltd,09/06/2017
Nottinghamshire County Council ,Other Fee's & Services,"Children, Families & Cultural Services ",Debit,23.4,gro hm passport office,09/06/2017
Nottinghamshire County Council ,Provisions,"Adult Social Care, Health & Public Protection",Debit,176,eb  2 day conference-l,22/06/2017
Nottinghamshire County Council ,Provisions,"Adult Social Care, Health & Public Protection",Debit,115,fat boys,19/06/2017
Nottinghamshire County Council ,Provisions,"Adult Social Care, Health & Public Protection",Debit,161.98,www.healthandcare.co.u,07/06/2017
Nottinghamshire County Council ,Provisions,"Adult Social Care, Health & Public Protection",Debit,19.99,oypla.com,25/04/2017
Nottinghamshire County Council ,Provisions,"Adult Social Care, Health & Public Protection",Debit,24.95,amazon uk marketplace,21/04/2017
Nottinghamshire County Council ,Provisions,"Adult Social Care, Health & Public Protection",Debit,4.8,amazon uk marketplace,21/04/2017
Nottinghamshire County Council ,Provisions,"Adult Social Care, Health & Public Protection",Debit,11.49,amazon uk marketplace,20/04/2017
Nottinghamshire County Council ,Provisions,"Adult Social Care, Health & Public Protection",Debit,30.5,tesco stores 2995,13/04/2017
Nottinghamshire County Council ,Provisions,"Adult Social Care, Health & Public Protection",Debit,27.31,amazon uk marketplace,04/04/2017
Nottinghamshire County Council ,Provisions,"Adult Social Care, Health & Public Protection",Debit,4.97,amazon uk retail,15/05/2017
Nottinghamshire County Council ,Provisions,"Adult Social Care, Health & Public Protection",Debit,26.41,amazon uk retail,14/05/2017
Nottinghamshire County Council ,Provisions,"Adult Social Care, Health & Public Protection",Debit,14.99,amazon uk retail,12/05/2017
Nottinghamshire County Council ,Provisions,"Adult Social Care, Health & Public Protection",Debit,7.99,amazon uk marketplace,13/05/2017
Nottinghamshire County Council ,Provisions,"Adult Social Care, Health & Public Protection",Debit,26.41,amazon uk retail amazon.,13/05/2017
Nottinghamshire County Council ,Provisions,"Adult Social Care, Health & Public Protection",Debit,26.41,amazon uk retail amazon.,12/05/2017
Nottinghamshire County Council ,Provisions,"Adult Social Care, Health & Public Protection",Debit,5.94,amazon uk marketplace,12/05/2017
Nottinghamshire County Council ,Provisions,"Adult Social Care, Health & Public Protection",Debit,26.41,amazon uk retail amazon.,13/05/2017
Nottinghamshire County Council ,Provisions,"Adult Social Care, Health & Public Protection",Debit,353.98,www.greenfingers.com,08/05/2017
Nottinghamshire County Council ,Office / General Equipment,"Children, Families & Cultural Services ",Debit,88.18,aldi,24/04/2017
Nottinghamshire County Council ,Provisions,"Children, Families & Cultural Services ",Debit,85.46,aldi,10/04/2017
Nottinghamshire County Council ,Provisions,"Children, Families & Cultural Services ",Debit,22.6,the promenade fish bar,21/06/2017
Nottinghamshire County Council ,Office / General Equipment,"Children, Families & Cultural Services ",Debit,81.68,aldi,13/06/2017
Nottinghamshire County Council ,Office / General Equipment,"Children, Families & Cultural Services ",Debit,91.53,b  m retail,13/06/2017
Nottinghamshire County Council ,Office / General Equipment,"Children, Families & Cultural Services ",Debit,26.92,tesco stores 2995,09/06/2017
Nottinghamshire County Council ,Office / General Equipment,"Children, Families & Cultural Services ",Debit,112.53,aldi stores,05/06/2017
Nottinghamshire County Council ,Office / General Equipment,"Children, Families & Cultural Services ",Debit,64.05,matalan,03/06/2017
Nottinghamshire County Council ,Office / General Equipment,"Children, Families & Cultural Services ",Debit,7.97,poundstretcher 136,03/06/2017
Nottinghamshire County Council ,Office / General Equipment,"Children, Families & Cultural Services ",Debit,46.69,aldi,02/06/2017
Nottinghamshire County Council ,Provisions,"Children, Families & Cultural Services ",Debit,109.05,aldi,03/04/2017
Nottinghamshire County Council ,Office / General Equipment,Resources ,Debit,180,www.ndcs.org.uk,29/06/2017
Nottinghamshire County Council ,Office / General Equipment,Resources ,Debit,29.5,www.interchangecomms.c,19/06/2017
Nottinghamshire County Council ,Office / General Equipment,Resources ,Debit,50,boots 6552,07/06/2017
Nottinghamshire County Council ,Office / General Equipment,Resources ,Debit,200,boots 6552,07/06/2017
Nottinghamshire County Council ,Office / General Equipment,Resources ,Debit,72,sainsburys s/mkts,24/05/2017
Nottinghamshire County Council ,Office / General Equipment,Resources ,Debit,42.43,amazon uk retail amazon.,22/05/2017
Nottinghamshire County Council ,Office / General Equipment,Resources ,Debit,21.24,amazon uk retail amazon.,19/05/2017
Nottinghamshire County Council ,Office / General Equipment,Resources ,Debit,26.67,toys r us,17/05/2017
Nottinghamshire County Council ,Office / General Equipment,Resources ,Debit,60,www.shopnorthampton,15/05/2017
Nottinghamshire County Council ,Office / General Equipment,Resources ,Debit,480.6,www.westminster-briefi,10/05/2017
Nottinghamshire County Council ,Office / General Equipment,Resources ,Debit,52.99,amazon uk marketplace,10/05/2017
Nottinghamshire County Council ,Office / General Equipment,Resources ,Debit,60,www.shopnorthampton,10/05/2017
Nottinghamshire County Council ,Office / General Equipment,Resources ,Debit,13.79,amazon uk retail amazon.,05/05/2017
Nottinghamshire County Council ,Office / General Equipment,Resources ,Debit,9.98,amazon uk retail amazon.,05/05/2017
Nottinghamshire County Council ,Personal Needs,"Children, Families & Cultural Services ",Debit,14.99,b  m retail,21/06/2017
Nottinghamshire County Council ,Personal Needs,"Children, Families & Cultural Services ",Debit,35,tesco stores 2995,30/06/2017
Nottinghamshire County Council ,Provisions,"Children, Families & Cultural Services ",Debit,5.16,mcdonalds,27/06/2017
Nottinghamshire County Council ,Provisions,"Children, Families & Cultural Services ",Debit,107.04,aldi,26/06/2017
Nottinghamshire County Council ,Provisions,"Children, Families & Cultural Services ",Debit,12.5,sainsburys s/mkts,26/06/2017
Nottinghamshire County Council ,Personal Needs,"Children, Families & Cultural Services ",Debit,6,boots 0012,26/06/2017
Nottinghamshire County Council ,Provisions,"Children, Families & Cultural Services ",Debit,5.16,mcdonalds,20/06/2017
Nottinghamshire County Council ,Personal Needs,"Children, Families & Cultural Services ",Debit,7,ijump trampoline parks,20/06/2017
Nottinghamshire County Council ,Personal Needs,"Children, Families & Cultural Services ",Debit,18,timpson ltd,20/06/2017
Nottinghamshire County Council ,Provisions,"Children, Families & Cultural Services ",Debit,7,tesco stores 2995,19/06/2017
Nottinghamshire County Council ,Personal Needs,"Children, Families & Cultural Services ",Debit,6,wm morrisons plc,15/06/2017
Nottinghamshire County Council ,Personal Needs,"Children, Families & Cultural Services ",Debit,9.6,water meadows,14/06/2017
Nottinghamshire County Council ,Provisions,"Children, Families & Cultural Services ",Debit,3.57,mcdonalds,06/06/2017
Nottinghamshire County Council ,Provisions,"Children, Families & Cultural Services ",Debit,20,i jump trampoline park,01/04/2017
Nottinghamshire County Council ,Personal Needs,"Children, Families & Cultural Services ",Debit,15.2,tesco stores 2995,12/05/2017
Nottinghamshire County Council ,Holidays,"Children, Families & Cultural Services ",Debit,182,onthebeach.co.uk,13/05/2017
Nottinghamshire County Council ,Provisions,"Children, Families & Cultural Services ",Debit,4.17,mcdonalds,02/05/2017
Nottinghamshire County Council ,Provisions,"Children, Families & Cultural Services ",Debit,4,wm morrisons plc,01/05/2017
Nottinghamshire County Council ,Provisions,"Children, Families & Cultural Services ",Debit,7,ijump trampoline parks,25/04/2017
Nottinghamshire County Council ,Provisions,"Children, Families & Cultural Services ",Debit,7.16,mcdonalds,25/04/2017
Nottinghamshire County Council ,Provisions,"Children, Families & Cultural Services ",Debit,14.52,wm morrisons plc,20/04/2017
Nottinghamshire County Council ,Provisions,"Children, Families & Cultural Services ",Debit,10.4,halfords 0900,19/04/2017
Nottinghamshire County Council ,Provisions,"Children, Families & Cultural Services ",Debit,14,ijump trampoline parks,19/04/2017
Nottinghamshire County Council ,Catering Consumables,"Children, Families & Cultural Services ",Debit,134.37,www.nisbets.com,09/06/2017
Nottinghamshire County Council ,Teaching Equipment,"Children, Families & Cultural Services ",Debit,29.97,amazon uk retail,01/04/2017
Nottinghamshire County Council ,Teaching Equipment,"Children, Families & Cultural Services ",Debit,276,eb  children and young,18/05/2017
Nottinghamshire County Council ,Teaching Equipment,"Children, Families & Cultural Services ",Debit,18.9,amazon uk marketplace,17/05/2017
Nottinghamshire County Council ,Teaching Equipment,"Children, Families & Cultural Services ",Debit,181.72,eb  connections in min,17/05/2017
Nottinghamshire County Council ,Teaching Equipment,"Children, Families & Cultural Services ",Debit,95,eb  harmful sexual beh,08/05/2017
Nottinghamshire County Council ,Provisions,"Children, Families & Cultural Services ",Debit,8.38,co-op group 011261,26/05/2017
Nottinghamshire County Council ,Provisions,"Children, Families & Cultural Services ",Debit,32.68,asda stores 4474,23/05/2017
Nottinghamshire County Council ,Provisions,"Children, Families & Cultural Services ",Debit,30.07,co-op group 011261,18/05/2017
Nottinghamshire County Council ,Provisions,"Children, Families & Cultural Services ",Debit,6,theworks.co.uk,16/05/2017
Nottinghamshire County Council ,Provisions,"Children, Families & Cultural Services ",Debit,37.02,sportsdirect 717,16/05/2017
Nottinghamshire County Council ,Provisions,"Children, Families & Cultural Services ",Debit,4.05,theworks.co.uk,16/05/2017
Nottinghamshire County Council ,Provisions,"Children, Families & Cultural Services ",Debit,12.69,co-op group 011261,12/05/2017
Nottinghamshire County Council ,Provisions,"Children, Families & Cultural Services ",Debit,12.5,co-op group 011261,10/05/2017
Nottinghamshire County Council ,Provisions,"Children, Families & Cultural Services ",Debit,35,co-op group 011261,09/05/2017
Nottinghamshire County Council ,Provisions,"Children, Families & Cultural Services ",Debit,3.25,co-op group 011261,03/05/2017
Nottinghamshire County Council ,Provisions,"Children, Families & Cultural Services ",Debit,69.99,bm retail ltd,02/05/2017
Nottinghamshire County Council ,Provisions,"Children, Families & Cultural Services ",Debit,25,grainger games,02/05/2017
Nottinghamshire County Council ,Provisions,"Children, Families & Cultural Services ",Debit,8,heel bar,02/05/2017
Nottinghamshire County Council ,Provisions,"Children, Families & Cultural Services ",Debit,6.38,co-op group 011261,28/04/2017
Nottinghamshire County Council ,Provisions,"Children, Families & Cultural Services ",Debit,29.82,farmfoods- worksop,27/04/2017
Nottinghamshire County Council ,Provisions,"Children, Families & Cultural Services ",Debit,203,cex arnold,20/04/2017
Nottinghamshire County Council ,Provisions,"Children, Families & Cultural Services ",Debit,44.98,mapperley footwear  spo,20/04/2017
Nottinghamshire County Council ,Provisions,"Children, Families & Cultural Services ",Debit,2.51,heron foods ltd,19/04/2017
Nottinghamshire County Council ,Provisions,"Children, Families & Cultural Services ",Debit,2.55,bm retail ltd,19/04/2017
Nottinghamshire County Council ,Provisions,"Children, Families & Cultural Services ",Debit,35.98,farmfoods- worksop,18/04/2017
Nottinghamshire County Council ,Provisions,"Children, Families & Cultural Services ",Debit,6.87,co-op group 011261,18/04/2017
Nottinghamshire County Council ,Provisions,"Children, Families & Cultural Services ",Debit,6.41,asda stores 4475,30/06/2017
Nottinghamshire County Council ,Provisions,"Children, Families & Cultural Services ",Debit,12.53,home bargains worksop,30/06/2017
Nottinghamshire County Council ,Provisions,"Children, Families & Cultural Services ",Debit,32.75,co-op group 011261,29/06/2017
Nottinghamshire County Council ,Provisions,"Children, Families & Cultural Services ",Debit,291.76,decathlon uk ltd,29/06/2017
Nottinghamshire County Council ,Provisions,"Children, Families & Cultural Services ",Debit,53.53,farmfoods- worksop,27/06/2017
Nottinghamshire County Council ,Provisions,"Children, Families & Cultural Services ",Debit,2.79,farmfoods- worksop,27/06/2017
Nottinghamshire County Council ,Provisions,"Children, Families & Cultural Services ",Debit,8.01,co-op group 011261,22/06/2017
Nottinghamshire County Council ,Provisions,"Children, Families & Cultural Services ",Debit,32.47,farmfoods- worksop,20/06/2017
Nottinghamshire County Council ,Provisions,"Children, Families & Cultural Services ",Debit,14,asda stores 4475,20/06/2017
Nottinghamshire County Council ,Provisions,"Children, Families & Cultural Services ",Debit,13.6,co-op group 011261,15/06/2017
Nottinghamshire County Council ,Provisions,"Children, Families & Cultural Services ",Debit,5.05,co-op group 011261,13/06/2017
Nottinghamshire County Council ,Provisions,"Children, Families & Cultural Services ",Debit,26.5,co-op group 011261,13/06/2017
Nottinghamshire County Council ,Provisions,"Children, Families & Cultural Services ",Debit,6.38,co-op group 011261,09/06/2017
Nottinghamshire County Council ,Provisions,"Children, Families & Cultural Services ",Debit,9.65,nicks chippy,29/06/2017
Nottinghamshire County Council ,Provisions,"Children, Families & Cultural Services ",Debit,41.38,www.dominos.co.uk,28/06/2017
Nottinghamshire County Council ,Provisions,"Children, Families & Cultural Services ",Debit,54.1,nicks chippy,27/06/2017
Nottinghamshire County Council ,Provisions,"Children, Families & Cultural Services ",Debit,34.12,lidl uk,26/06/2017
Nottinghamshire County Council ,Provisions,"Children, Families & Cultural Services ",Debit,24.1,tesco stores 5437,24/06/2017
Nottinghamshire County Council ,Provisions,"Children, Families & Cultural Services ",Debit,5.3,costa coffee,01/06/2017
Nottinghamshire County Council ,Provisions,"Children, Families & Cultural Services ",Debit,5.25,post office counter,24/05/2017
Nottinghamshire County Council ,Provisions,"Children, Families & Cultural Services ",Debit,18.99,www.dominos.co.uk,23/05/2017
Nottinghamshire County Council ,Provisions,"Children, Families & Cultural Services ",Debit,230,the post office,12/05/2017
Nottinghamshire County Council ,Provisions,"Children, Families & Cultural Services ",Debit,23.44,tesco stores 5437,30/06/2017
Nottinghamshire County Council ,Provisions,"Children, Families & Cultural Services ",Debit,18.9,sainsburys s/mkts,28/06/2017
Nottinghamshire County Council ,Provisions,"Children, Families & Cultural Services ",Debit,6.16,aldi,27/06/2017
Nottinghamshire County Council ,Provisions,"Children, Families & Cultural Services ",Debit,15.05,the works,22/06/2017
Nottinghamshire County Council ,Provisions,"Children, Families & Cultural Services ",Debit,29.68,aldi,21/06/2017
Nottinghamshire County Council ,Office / General Equipment,Place,Debit,25,sainsburys s/mkts,27/06/2017
Nottinghamshire County Council ,Office / General Equipment,Place,Debit,35.7,eurocoin limited,25/05/2017
Nottinghamshire County Council ,Office / General Equipment,Place,Debit,25,sainsburys s/mkts,13/05/2017
Nottinghamshire County Council ,Stationery,Place,Debit,12,asda  stores 4201,24/04/2017
Nottinghamshire County Council ,Office / General Equipment,Place,Debit,111,www.intelligentvending,21/04/2017
Nottinghamshire County Council ,Office / General Equipment,Place,Debit,177.54,m k scales ltd,18/04/2017
Nottinghamshire County Council ,Activities & Support,"Children, Families & Cultural Services ",Debit,49.47,trainline,21/04/2017
Nottinghamshire County Council ,Activities & Support,"Children, Families & Cultural Services ",Debit,23.6,amazon uk marketplace,18/05/2017
Nottinghamshire County Council ,Activities & Support,"Children, Families & Cultural Services ",Debit,11.6,amazon.co.uk,17/05/2017
Nottinghamshire County Council ,Activities & Support,"Children, Families & Cultural Services ",Debit,22.98,amazon uk marketplace,11/05/2017
Nottinghamshire County Council ,Activities & Support,"Children, Families & Cultural Services ",Debit,26.28,amazon uk marketplace,10/05/2017
Nottinghamshire County Council ,Provisions,"Children, Families & Cultural Services ",Debit,11.4,amazon uk marketplace,25/05/2017
Nottinghamshire County Council ,Provisions,"Children, Families & Cultural Services ",Debit,20.1,poundworld retail,25/05/2017
Nottinghamshire County Council ,Provisions,"Children, Families & Cultural Services ",Debit,3,amazon uk marketplace,24/05/2017
Nottinghamshire County Council ,Provisions,"Children, Families & Cultural Services ",Debit,6,wilko retail limit,23/05/2017
Nottinghamshire County Council ,Provisions,"Children, Families & Cultural Services ",Debit,4.95,amazon uk marketplace,24/05/2017
Nottinghamshire County Council ,Provisions,"Children, Families & Cultural Services ",Debit,1.99,amazon.co.uk,22/05/2017
Nottinghamshire County Council ,Provisions,"Children, Families & Cultural Services ",Debit,1.98,amazon uk marketplace,22/05/2017
Nottinghamshire County Council ,Provisions,"Children, Families & Cultural Services ",Debit,1.99,amazon uk marketplace,22/05/2017
Nottinghamshire County Council ,Provisions,"Children, Families & Cultural Services ",Debit,5.39,amazon uk marketplace,22/05/2017
Nottinghamshire County Council ,Provisions,"Children, Families & Cultural Services ",Debit,9.99,amazon uk marketplace,22/05/2017
Nottinghamshire County Council ,Provisions,"Children, Families & Cultural Services ",Debit,3.4,amazon uk marketplace,20/05/2017
Nottinghamshire County Council ,Provisions,"Children, Families & Cultural Services ",Debit,3.96,amazon uk marketplace,21/05/2017
Nottinghamshire County Council ,Provisions,"Children, Families & Cultural Services ",Debit,3,amazon uk marketplace,19/05/2017
Nottinghamshire County Council ,Provisions,"Children, Families & Cultural Services ",Debit,35.63,amazon uk marketplace,20/05/2017
Nottinghamshire County Council ,Provisions,"Children, Families & Cultural Services ",Debit,1.99,amazon uk marketplace,20/05/2017
Nottinghamshire County Council ,Provisions,"Children, Families & Cultural Services ",Debit,23.98,amazon.co.uk,21/05/2017
Nottinghamshire County Council ,Provisions,"Children, Families & Cultural Services ",Debit,3.94,amazon uk marketplace,20/05/2017
Nottinghamshire County Council ,Provisions,"Children, Families & Cultural Services ",Debit,4.96,wm morrisons plc,16/05/2017
Nottinghamshire County Council ,Provisions,"Children, Families & Cultural Services ",Debit,11.71,tesco stores 5437,16/05/2017
Nottinghamshire County Council ,Provisions,"Children, Families & Cultural Services ",Debit,9.84,tesco stores 5437,09/05/2017
Nottinghamshire County Council ,Provisions,"Children, Families & Cultural Services ",Debit,3.76,wm morrisons plc,02/05/2017
Nottinghamshire County Council ,Provisions,"Children, Families & Cultural Services ",Debit,6.61,wm morrisons plc,02/05/2017
Nottinghamshire County Council ,Provisions,"Children, Families & Cultural Services ",Debit,1,tesco stores 5437,20/04/2017
Nottinghamshire County Council ,Provisions,"Children, Families & Cultural Services ",Debit,4.05,poundworld retail,27/06/2017
Nottinghamshire County Council ,Provisions,"Children, Families & Cultural Services ",Debit,125.94,mansfield shoe repairs,27/06/2017
Nottinghamshire County Council ,Provisions,"Children, Families & Cultural Services ",Debit,1.99,tesco stores 5437,27/06/2017
Nottinghamshire County Council ,Provisions,"Children, Families & Cultural Services ",Debit,3.95,tesco stores 5437,20/06/2017
Nottinghamshire County Council ,Provisions,"Children, Families & Cultural Services ",Debit,7.2,sportsdirect 437,19/06/2017
Nottinghamshire County Council ,Provisions,"Children, Families & Cultural Services ",Debit,18.13,tesco stores 5437,13/06/2017
Nottinghamshire County Council ,Provisions,"Children, Families & Cultural Services ",Debit,4.5,wilko retail limit,12/06/2017
Nottinghamshire County Council ,Provisions,"Children, Families & Cultural Services ",Debit,6,poundworld retail,12/06/2017
Nottinghamshire County Council ,Office / General Equipment,Place,Debit,"2,069.96",wybone ltd,20/06/2017
Nottinghamshire County Council ,Office / General Equipment,Place,Debit,18,amazon uk retail,12/06/2017
Nottinghamshire County Council ,Refuse Collection / Disposal,Place,Debit,747.99,p nwkshwd dc,21/04/2017
Nottinghamshire County Council ,Health & Safety,Place,Debit,101.84,amazon uk marketplace,15/05/2017
Nottinghamshire County Council ,Subscriptions,"Children, Families & Cultural Services ",Debit,12,mountain training,19/04/2017
Nottinghamshire County Council ,Minor Works,"Children, Families & Cultural Services ",Debit,19.55,hitch n hike,03/04/2017
Nottinghamshire County Council ,Activities & Support,"Children, Families & Cultural Services ",Debit,23.35,aldi,03/04/2017
Nottinghamshire County Council ,Activities & Support,"Children, Families & Cultural Services ",Debit,13.5,w m morrison plc,03/04/2017
Nottinghamshire County Council ,Activities & Support,"Children, Families & Cultural Services ",Debit,7.07,aldi,11/04/2017
Nottinghamshire County Council ,Activities & Support,"Children, Families & Cultural Services ",Debit,18.03,aldi,29/05/2017
Nottinghamshire County Council ,Activities & Support,"Children, Families & Cultural Services ",Debit,14.06,w m morrison plc,29/05/2017
Nottinghamshire County Council ,Office / General Equipment,"Children, Families & Cultural Services ",Debit,19.95,aldi stores,31/05/2017
Nottinghamshire County Council ,Office / General Equipment,"Children, Families & Cultural Services ",Debit,7.99,b  m retail,26/05/2017
Nottinghamshire County Council ,Office / General Equipment,"Children, Families & Cultural Services ",Debit,55.55,asda superstore 04261,27/05/2017
Nottinghamshire County Council ,Office / General Equipment,"Children, Families & Cultural Services ",Debit,33.12,aldi,26/05/2017
Nottinghamshire County Council ,Office / General Equipment,"Children, Families & Cultural Services ",Debit,54.49,sportsdirect 292,24/05/2017
Nottinghamshire County Council ,Office / General Equipment,"Children, Families & Cultural Services ",Debit,6.5,asda stores 4449,19/05/2017
Nottinghamshire County Council ,Office / General Equipment,"Children, Families & Cultural Services ",Debit,7.84,asda superstore 04261,16/05/2017
Nottinghamshire County Council ,Provisions,"Children, Families & Cultural Services ",Debit,88.23,aldi,02/05/2017
Nottinghamshire County Council ,Provisions,"Children, Families & Cultural Services ",Debit,6.77,aldi,02/05/2017
Nottinghamshire County Council ,Clothing/Shoes/Uniforms,"Children, Families & Cultural Services ",Debit,9.8,primark,30/04/2017
Nottinghamshire County Council ,Provisions,"Children, Families & Cultural Services ",Debit,20.49,aldi,30/04/2017
Nottinghamshire County Council ,Clothing/Shoes/Uniforms,"Children, Families & Cultural Services ",Debit,15.99,select - mansfield 2,30/04/2017
Nottinghamshire County Council ,Personal Needs,"Children, Families & Cultural Services ",Debit,3.99,cex,27/04/2017
Nottinghamshire County Council ,Provisions,"Children, Families & Cultural Services ",Debit,4.59,heron foods ltd,27/04/2017
Nottinghamshire County Council ,Cleaning Materials,"Children, Families & Cultural Services ",Debit,2.8,tesco stores 5437,27/04/2017
Nottinghamshire County Council ,Provisions,"Children, Families & Cultural Services ",Debit,12.73,b  m retail,26/04/2017
Nottinghamshire County Council ,Personal Needs,"Children, Families & Cultural Services ",Debit,10.58,b  m retail,18/04/2017
Nottinghamshire County Council ,Office / General Equipment,"Children, Families & Cultural Services ",Debit,10.7,b  m retail,18/04/2017
Nottinghamshire County Council ,Office / General Equipment,"Children, Families & Cultural Services ",Debit,17.79,aldi,18/04/2017
Nottinghamshire County Council ,Office / General Equipment,"Children, Families & Cultural Services ",Debit,14.85,asparagus green @ nati,27/06/2017
Nottinghamshire County Council ,Office / General Equipment,"Children, Families & Cultural Services ",Debit,5.94,aldi,26/06/2017
Nottinghamshire County Council ,Office / General Equipment,"Children, Families & Cultural Services ",Debit,92.93,aldi,26/06/2017
Nottinghamshire County Council ,Office / General Equipment,"Children, Families & Cultural Services ",Debit,8.3,south forest leisure c,22/06/2017
Nottinghamshire County Council ,Office / General Equipment,"Children, Families & Cultural Services ",Debit,11.5,south forest leisure c,22/06/2017
Nottinghamshire County Council ,Office / General Equipment,"Children, Families & Cultural Services ",Debit,10,ijump trampoline parks,10/06/2017
Nottinghamshire County Council ,Office / General Equipment,"Children, Families & Cultural Services ",Debit,34.1,www.just-eat.co.uk,03/06/2017
Nottinghamshire County Council ,Stationery,"Adult Social Care, Health & Public Protection",Debit,12.99,wh smith,30/06/2017
Nottinghamshire County Council ,Provisions,"Adult Social Care, Health & Public Protection",Debit,15.26,tesco stores 5379,17/06/2017
Nottinghamshire County Council ,Provisions,"Adult Social Care, Health & Public Protection",Debit,14,tesco stores 5379,29/04/2017
Nottinghamshire County Council ,Office / General Equipment,"Adult Social Care, Health & Public Protection",Debit,18,timpson ltd,29/04/2017
Nottinghamshire County Council ,Provisions,"Adult Social Care, Health & Public Protection",Debit,6.67,tesco stores 5379,27/04/2017
Nottinghamshire County Council ,Provisions,"Adult Social Care, Health & Public Protection",Debit,10.3,sainsburys s/mkts,15/04/2017
Nottinghamshire County Council ,Provisions,"Adult Social Care, Health & Public Protection",Debit,18,tesco stores 5379,15/04/2017
Nottinghamshire County Council ,Provisions,"Adult Social Care, Health & Public Protection",Debit,13.59,aldi,11/04/2017
Nottinghamshire County Council ,Provisions,"Adult Social Care, Health & Public Protection",Debit,18.65,tesco stores 5379,28/05/2017
Nottinghamshire County Council ,Provisions,"Adult Social Care, Health & Public Protection",Debit,3.37,tesco stores 5379,04/05/2017
Nottinghamshire County Council ,Provisions,"Children, Families & Cultural Services ",Credit,-9.36,amz bargains 4 ever,26/05/2017
Nottinghamshire County Council ,Provisions,"Children, Families & Cultural Services ",Debit,10.47,farmfoods- carlton,24/05/2017
Nottinghamshire County Council ,Provisions,"Children, Families & Cultural Services ",Debit,18.55,sainsburys s/mkts,22/05/2017
Nottinghamshire County Council ,Provisions,"Children, Families & Cultural Services ",Debit,16.18,asda superstore,19/05/2017
Nottinghamshire County Council ,Provisions,"Children, Families & Cultural Services ",Debit,40.92,amazon uk marketplace,18/05/2017
Nottinghamshire County Council ,Provisions,"Children, Families & Cultural Services ",Debit,22,bm retail,18/05/2017
Nottinghamshire County Council ,Provisions,"Children, Families & Cultural Services ",Debit,9.36,amazon uk marketplace,16/05/2017
Nottinghamshire County Council ,Provisions,"Children, Families & Cultural Services ",Debit,3,asda superstore,16/05/2017
Nottinghamshire County Council ,Provisions,"Children, Families & Cultural Services ",Debit,9.71,lidl uk,15/05/2017
Nottinghamshire County Council ,Provisions,"Children, Families & Cultural Services ",Debit,64.88,booker limited nottingha,09/05/2017
Nottinghamshire County Council ,Provisions,"Children, Families & Cultural Services ",Debit,10.36,farmfoods- carlton,08/05/2017
Nottinghamshire County Council ,Provisions,"Children, Families & Cultural Services ",Debit,7.15,asda superstore,02/05/2017
Nottinghamshire County Council ,Provisions,"Children, Families & Cultural Services ",Debit,24.61,asda superstore,28/04/2017
Nottinghamshire County Council ,Provisions,"Children, Families & Cultural Services ",Debit,19.99,amazon uk retail amazon.,26/04/2017
Nottinghamshire County Council ,Provisions,"Children, Families & Cultural Services ",Debit,16,poundworld retail,26/04/2017
Nottinghamshire County Council ,Provisions,"Children, Families & Cultural Services ",Debit,39.03,farmfoods- carlton,26/04/2017
Nottinghamshire County Council ,Provisions,"Children, Families & Cultural Services ",Debit,39.99,amazon uk retail amazon.,25/04/2017
Nottinghamshire County Council ,Provisions,"Children, Families & Cultural Services ",Debit,20,amazon uk retail,25/04/2017
Nottinghamshire County Council ,Provisions,"Children, Families & Cultural Services ",Debit,15.85,sainsburys s/mkts,24/04/2017
Nottinghamshire County Council ,Provisions,"Children, Families & Cultural Services ",Debit,147,tvlicensing.co.uk,21/04/2017
Nottinghamshire County Council ,Provisions,"Children, Families & Cultural Services ",Debit,85.85,booker limited nottingha,18/04/2017
Nottinghamshire County Council ,Furniture,"Adult Social Care, Health & Public Protection",Debit,109.95,amazon uk marketplace,30/05/2017
Nottinghamshire County Council ,Furniture,"Adult Social Care, Health & Public Protection",Debit,48.97,amazon.co.uk,30/05/2017
Nottinghamshire County Council ,Furniture,"Adult Social Care, Health & Public Protection",Debit,75.66,amazon uk retail amazon.,30/05/2017
Nottinghamshire County Council ,Furniture,"Adult Social Care, Health & Public Protection",Debit,321.36,amazon.co.uk,27/05/2017
Nottinghamshire County Council ,Catering Consumables,"Adult Social Care, Health & Public Protection",Debit,19,amazon svcs europesar,27/05/2017
Nottinghamshire County Council ,Catering Consumables,"Adult Social Care, Health & Public Protection",Debit,39.96,amazon.co.uk,27/05/2017
Nottinghamshire County Council ,Furniture,"Adult Social Care, Health & Public Protection",Debit,107.48,amazon uk marketplace,27/05/2017
Nottinghamshire County Council ,Personal Needs,"Adult Social Care, Health & Public Protection",Debit,194.4,ikea limited,25/05/2017
Nottinghamshire County Council ,Personal Needs,"Adult Social Care, Health & Public Protection",Debit,221.65,b  m retail,25/05/2017
Nottinghamshire County Council ,Fuel - Petrol,"Adult Social Care, Health & Public Protection",Debit,17.15,morrisons petrol,15/05/2017
Nottinghamshire County Council ,Stationery,"Adult Social Care, Health & Public Protection",Debit,17.5,www.flipfile.co.uk,19/04/2017
Nottinghamshire County Council ,Personal Needs,"Adult Social Care, Health & Public Protection",Debit,13.08,w boyes  co ltd eastw,19/04/2017
Nottinghamshire County Council ,Cleaning Materials,"Adult Social Care, Health & Public Protection",Debit,5.71,w boyes  co ltd eastw,11/04/2017
